Transaction Reference,Supplier Name,Line Value,Department,Category,Transaction Date,Year/Period,SME,Costs split between Babergh and Mid Suffolk District Councils Y/N,% of transaction apportioned to Mid Suffolk District Council
10055929,AARON SERVICES LTD,"1,900.00",Mand Disabled Facilities Grant,Grants,03-Apr-23,2324/01,SME,N,
20028429,AARON SERVICES LTD,"1,664.35",Current Liabilities,Cert IBS Creditors Holding ac,04-Apr-23,2324/01,SME,N,
20028430,AARON SERVICES LTD,"2,517.27",Current Liabilities,Cert IBS Creditors Holding ac,04-Apr-23,2324/01,SME,N,
10056075,AE WHITE SURFACING,411.85,Insurance Claims,Misc Premises Costs,31-Mar-23,2324/01,SME,N,
10056119,AE WHITE SURFACING,"4,605.00",Chilton Depot,Grounds & Site Maintenance,11-Apr-23,2324/01,SME,Y,50%
10056239,ALPHETON GARAGE LTD,550,Taxi & Private Hire Licensing,Contracted Services,13-Apr-23,2324/01,SME,N,
10055543,ANGLIAN WATER,"1,442.99",Sheltered Accommodation,Water Rates - Metered,13-Mar-23,2324/01,LGE,N,
10055899,ANGLIAN WATER,717.73,Other Temp Accommodation,Water Charges,18-Feb-23,2324/01,LGE,N,
10056399,ANGLIAN WATER,522.47,Tenancy Services,Water Rates - Metered,17-Apr-23,2324/01,LGE,N,
10056210,BINDER LTD,354.5,Sewage Treatment Works,Contracted Services,24-Feb-23,2324/01,SME,N,
10056283,BINDER LTD,335.06,Sewage Treatment Works,Contracted Services,14-Apr-23,2324/01,SME,N,
10056285,BINDER LTD,342.93,Sewage Treatment Works,Contracted Services,14-Apr-23,2324/01,SME,N,
10056359,BINDER LTD,326,Sewage Treatment Works,Contracted Services,19-Apr-23,2324/01,SME,N,
10056036,BOTTOMLINE TECHNOLOGIES,701.21,ICT,Software Licnse (Line of Bus) ,31-Mar-23,2324/01,LGE,Y,50%
10055959,BOWER FULLER,353.94,Public Conveniences,Repairs,31-Mar-23,2324/01,SME,N,
10055967,BOWER FULLER,273,Public Conveniences,Electricity,31-Mar-23,2324/01,SME,N,
10056142,BOWER FULLER,123.63,Tenancy Services,Fire Prevention,06-Apr-23,2324/01,SME,N,
10056142,BOWER FULLER,370.89,Temporary Accommodation,Fire Prevention,06-Apr-23,2324/01,SME,N,
10056145,BOWER FULLER,"4,404.27",Sheltered Accommodation,Repairs,06-Apr-23,2324/01,SME,N,
10056146,BOWER FULLER,230,Tenancy Services,Electricity,06-Apr-23,2324/01,SME,N,
10056146,BOWER FULLER,100,Tenancy Services,Repairs,06-Apr-23,2324/01,SME,N,
10056354,BROXAP LTD,286,Tenancy Services,"Equipment, Tools & Materials",19-Apr-23,2324/01,LGE,N,
10055996,AQUASAMPLERS,425,Water Sampling,Sampling & Analysis,28-Feb-23,2324/01,SME,N,
10056166,CHAPPLE SIGNS LTD,577.86,Open Spaces,Plant & Vehicle - Other costs,11-Apr-23,2324/01,SME,N,
10056288,CHEQUERS HOTEL LTD,"1,560.00",Homelessness Private Sector,B&B Costs,30-Jan-23,2324/01,SME,N,
10056289,CHEQUERS HOTEL LTD,"1,960.00",Homelessness Private Sector,B&B Costs,30-Jan-23,2324/01,SME,N,
10055509,D W ADAMS LTD,"4,985.00",Council House Adaptions,Improvements,20-Mar-23,2324/01,SME,N,
10056291,D W ADAMS LTD,"1,829.00",Council House Adaptions,Improvements,17-Apr-23,2324/01,SME,N,
10056331,D W ADAMS LTD,980,Building Services,Repairs,18-Apr-23,2324/01,SME,N,
10056332,D W ADAMS LTD,980,Building Services,Repairs,18-Apr-23,2324/01,SME,N,
10056348,D W ADAMS LTD,361,Disabled Facilities (Revenue),Repairs,19-Apr-23,2324/01,SME,N,
10056511,DISTRICT COUNCILS' NETWORK,"2,577.00",Management Team,Subscriptions,26-Apr-23,2324/01,LGE,N,
10055621,DMA HEALTH AND SAFETY LTD,420,Insulation Imps,Prof & Consultancy Fees,08-Sep-22,2324/01,SME,N,
10055932,DOLPHIN STAIRLIFTS (EAST ANGLIA) LTD,"6,333.00",Mand Disabled Facilities Grant,Grants,03-Apr-23,2324/01,SME,N,
10056244,DOLPHIN STAIRLIFTS (EAST ANGLIA) LTD,"1,900.00",Mand Disabled Facilities Grant,Grants,03-Apr-23,2324/01,SME,N,
10055881,EAST OF ENGLAND LGA,"1,147.50",Organisational Devt,Training,30-Mar-23,2324/01,SME,Y,50%
10055898,EAST SUFFOLK INTERNAL DRAINAGE BOARD,"2,021.00",Land Drainage,Misc Supplies & Services Costs,01-Apr-23,2324/01,SME,N,
10056500,CIVICA ELECTION SERVICES,"22,265.10",Electoral Registration,Returning Officer Fees,03-Apr-23,2324/01,LGE,N,
10055991,ENGLISH SECURITY,"6,671.49",Rewiring,Improvements,04-Apr-23,2324/01,SME,N,
10055949,ENVIRONMENT AGENCY,890,Sewage Treatment Works,Water Rates - Other Charges,01-Apr-23,2324/01,LGE,N,
10055950,ENVIRONMENT AGENCY,"4,250.00",Sewage Treatment Works,Water Rates - Other Charges,01-Apr-23,2324/01,LGE,N,
10056128,FELGAINS CARE CENTRE,991,Council House Adaptions,Improvements,05-Apr-23,2324/01,SME,N,
10056128,FELGAINS CARE CENTRE,"1,296.00",Council House Adaptions,Improvements,05-Apr-23,2324/01,SME,N,
10056202,FELGAINS CARE CENTRE,"1,559.00",Council House Adaptions,Improvements,12-Apr-23,2324/01,SME,N,
10056077,FELLBRIDGE BUILDING SERVICES,"11,089.67",Voids Maintenance,Repairs,06-Apr-23,2324/01,SME,N,
10056230,FELLBRIDGE BUILDING SERVICES,"2,089.40",Building Services,Repairs,13-Apr-23,2324/01,SME,N,
10056231,FELLBRIDGE BUILDING SERVICES,327.21,Building Services,Repairs,13-Apr-23,2324/01,SME,N,
10056232,FELLBRIDGE BUILDING SERVICES,328.31,Building Services,Repairs,13-Apr-23,2324/01,SME,N,
10056117,FORE-MOST GARAGE DOORS LTD,"1,322.00",Building Services,Repairs,31-Mar-23,2324/01,SME,N,
10056117,FORE-MOST GARAGE DOORS LTD,31.5,Voids Maintenance,Repairs,31-Mar-23,2324/01,SME,N,
10055715,G & G SIGNS,643,Street Naming & Numbering,Signs,27-Mar-23,2324/01,SME,N,
10055953,GB ADAPTIONS LTD,"7,497.00",Mand Disabled Facilities Grant,Grants,03-Apr-23,2324/01,SME,N,
10056326,GB ADAPTIONS LTD,"6,552.00",Mand Disabled Facilities Grant,Grants,18-Apr-23,2324/01,SME,N,
10056455,GB ADAPTIONS LTD,"6,382.00",Mand Disabled Facilities Grant,Grants,24-Apr-23,2324/01,SME,N,
10056492,GB ADAPTIONS LTD,"6,200.00",Mand Disabled Facilities Grant,Grants,25-Apr-23,2324/01,SME,N,
10056260,GHB ROOFING,"16,233.60",Roofing,Repairs,28-Feb-23,2324/01,SME,N,
10056453,GO START COMMUNITY TRANSPORT,"10,000.00",Climate Change and Sustainabil,Contributions & Donations,24-Apr-23,2324/01,SME,N,
10056216,KEN GRIME & SON LTD,"1,755.14",Voids Maintenance,Repairs,13-Apr-23,2324/01,SME,N,
10056053,MARTIN BROKERS ( UK ) PLC,"4,065.74",Treasury Management,Prof & Consultancy Fees,31-Mar-23,2324/01,LGE,N,
10056002,MATERIAL CHANGE COMPOSTING LTD,"1,066.56",Open Spaces,Waste Disposal,31-Mar-23,2324/01,LGE,N,
10056378,MERCURY BUILDING SERVICES LTD,266,Sheltered Accommodation,Repairs,20-Apr-23,2324/01,SME,N,
10056378,MERCURY BUILDING SERVICES LTD,784,Hadleigh Pool,Repairs,20-Apr-23,2324/01,SME,N,
10056270,MONTHIND CLEAN LTD,720.21,Jnt Waste Contract,General Cleaning,15-Apr-23,2324/01,LGE,Y,50%
10055951,NORFOLK COUNTY COUNCIL,"9,469.44",Strategic Housing,Subscriptions,29-Mar-23,2324/01,LGE,N,
10056311,ORWELL HOUSING ASSOCIATION LTD,"4,375.00",Other Temp Accommodation,Contracted Services,05-Apr-23,2324/01,LGE,N,
10055998,PRO-FLAT SPECIALIST SERVICES LTD,780,Building Services,Repairs,31-Mar-23,2324/01,SME,N,
10055704,REID PLUMBING & HEATING CONTRACTORS LTD,"10,386.13",Central Heating,Major Contracts,27-Mar-23,2324/01,SME,N,
10055763,REID PLUMBING & HEATING CONTRACTORS LTD,"10,146.48",Central Heating,Major Contracts,29-Mar-23,2324/01,SME,N,
10055768,REID PLUMBING & HEATING CONTRACTORS LTD,"5,267.21",Central Heating,Major Contracts,29-Mar-23,2324/01,SME,N,
10056045,REID PLUMBING & HEATING CONTRACTORS LTD,"5,996.93",Central Heating,Major Contracts,05-Apr-23,2324/01,SME,N,
10056286,REID PLUMBING & HEATING CONTRACTORS LTD,"5,835.70",Central Heating,Major Contracts,17-Apr-23,2324/01,SME,N,
10056347,REID PLUMBING & HEATING CONTRACTORS LTD,"11,533.08",Central Heating,Major Contracts,19-Apr-23,2324/01,SME,N,
10055916,SEAGER HOME SOLUTIONS,"80,980.79",Kitchens/Bathrooms,Major Contracts,03-Apr-23,2324/01,SME,N,
10055924,SEAGER HOME SOLUTIONS,"6,085.00",Mand Disabled Facilities Grant,Grants,03-Apr-23,2324/01,SME,N,
10056392,SOLUTIONS ON SECURITY SERVICES,"6,942.40",Kingfisher Leisure Centre,Repairs,20-Apr-23,2324/01,SME,N,
10056263,SPALDINGS LTD,274.08,Open Spaces,"Equipment, Tools & Materials",13-Apr-23,2324/01,SME,N,
10055979,SUFFOLK TREE SERVICES LTD,"3,750.00",Amenity Areas,Tree felling/maintenance,30-Mar-23,2324/01,SME,N,
10056042,SUFFOLK TREE SERVICES LTD,"1,800.00",Public Tree Programme,Tree felling/maintenance,05-Apr-23,2324/01,SME,N,
10056043,SUFFOLK TREE SERVICES LTD,"1,400.00",Amenity Areas,Tree felling/maintenance,05-Apr-23,2324/01,SME,N,
10056127,SUFFOLK TREE SERVICES LTD,750,Amenity Areas,Tree felling/maintenance,05-Apr-23,2324/01,SME,N,
10055074,SUREFIX,"1,200.00",Window & Door Rplcmts,Repairs,27-Feb-23,2324/01,SME,N,
10055079,SUREFIX,"1,250.00",Major Imps,Improvements,01-Mar-23,2324/01,SME,N,
10055654,SUREFIX,"8,950.00",Window & Door Rplcmts,Repairs,24-Mar-23,2324/01,SME,N,
10056059,SUREFIX,"1,350.00",Window & Door Rplcmts,Repairs,03-Apr-23,2324/01,SME,N,
10056060,SUREFIX,"1,350.00",Window & Door Rplcmts,Repairs,04-Apr-23,2324/01,SME,N,
10056061,SUREFIX,900,Window & Door Rplcmts,Repairs,06-Apr-23,2324/01,SME,N,
10056256,SUREFIX,900,Window & Door Rplcmts,Repairs,12-Apr-23,2324/01,SME,N,
10056395,SUREFIX,260,Building Services,Repairs,13-Apr-23,2324/01,SME,N,
10056396,SUREFIX,"6,100.00",Window & Door Rplcmts,Repairs,19-Apr-23,2324/01,SME,N,
10056159,TANKCHANGE LTD,"2,490.00",Central Heating,Improvements,29-Mar-23,2324/01,SME,N,
10056277,TANKCHANGE LTD,"2,195.00",Central Heating,Improvements,10-Apr-23,2324/01,SME,N,
10055907,TDT ENTERPRISES LTD,295,Sheltered Accommodation,"Equipment, Tools & Materials",31-Mar-23,2324/01,SME,N,
10055997,TDT ENTERPRISES LTD,385,Sheltered Accommodation,"Equipment, Tools & Materials",05-Apr-23,2324/01,SME,N,
10056080,TDT ENTERPRISES LTD,376.94,Community Safety-CCTV,"Equipment, Tools & Materials",06-Apr-23,2324/01,SME,Y,50%
10056099,THE PLAY INSPECTION COMPANY LTD,"1,514.56",Open Spaces,"Equipment, Tools & Materials",31-Mar-23,2324/01,SME,N,
10056307,THERMATECH,"7,900.00",Fire Risk Assessment (Flats),Prof & Consultancy Fees,17-Apr-23,2324/01,SME,N,
10056336,WINDIMAN LTD,780,Building Services,Repairs,18-Apr-23,2324/01,SME,N,
10056391,WINDIMAN LTD,780,Insulation Imps,Improvements,18-Apr-23,2324/01,SME,N,
10055883,WORKWEAR (EAST ANGLIA) LTD,449.35,Street & Major Road Cleansing,Protective clothing,27-Mar-23,2324/01,SME,N,
10055884,WORKWEAR (EAST ANGLIA) LTD,445.1,Street & Major Road Cleansing,Protective clothing,23-Mar-23,2324/01,SME,N,
10055887,WORKWEAR (EAST ANGLIA) LTD,497.68,Street & Major Road Cleansing,Protective clothing,23-Mar-23,2324/01,SME,N,
10056167,LOCAL GOVERNMENT ASSOCIATION,505.9,Management Team,Conference Expenses,12-Apr-23,2324/01,LGE,Y,50%
10056167,LOCAL GOVERNMENT ASSOCIATION,"1,011.80",Cost of Democracy,Member's Courses & Conferences,12-Apr-23,2324/01,LGE,N,
10056393,CHUBB FIRE & SECURITY LTD,728,Sheltered Accommodation,Fire Prevention,20-Apr-23,2324/01,LGE,N,
10056438,IPSWICH BOROUGH COUNCIL,"45,962.80",Endeavour House - HQ,NNDR Payable,24-Apr-23,2324/01,LGE,Y,50%
10055939,SERCO LTD,"12,220.00",Rplcmt Ref Freighters-Jnt Schm,Plant & Vehicle - Purchase,31-Mar-23,2324/01,LGE,N,
20028423,EDF ENERGY,182.6,Belle Vue House,Electricity,14-Apr-23,2324/01,LGE,N,
20028423,EDF ENERGY,909.84,C Parks General,Electricity,14-Apr-23,2324/01,LGE,N,
20028423,EDF ENERGY,12.66,Calais St Depot,Electricity,14-Apr-23,2324/01,LGE,N,
20028423,EDF ENERGY,-93.18,Climate Change and Sustainabil,Electricity,14-Apr-23,2324/01,LGE,N,
20028423,EDF ENERGY,285.5,Community Safety-CCTV,Electricity,14-Apr-23,2324/01,LGE,N,
20028423,EDF ENERGY,36.65,Hadleigh Market,Electricity,14-Apr-23,2324/01,LGE,N,
20028423,EDF ENERGY,"7,026.50",Hadleigh Pool,Electricity,14-Apr-23,2324/01,LGE,N,
20028423,EDF ENERGY,11.16,Headquarters General,Electricity,14-Apr-23,2324/01,LGE,N,
20028423,EDF ENERGY,"2,219.32",HQ Energy,Electricity,14-Apr-23,2324/01,LGE,N,
20028423,EDF ENERGY,"6,510.59",Kingfisher Leisure Centre,Electricity,14-Apr-23,2324/01,LGE,N,
20028423,EDF ENERGY,20.41,Navigation House,Electricity,14-Apr-23,2324/01,LGE,N,
20028423,EDF ENERGY,795.16,Public Conveniences,Electricity,14-Apr-23,2324/01,LGE,N,
20028423,EDF ENERGY,535.11,Sewage Treatment Works,Electricity,14-Apr-23,2324/01,LGE,N,
20028423,EDF ENERGY,"18,030.21",Sheltered Accommodation,Electricity,14-Apr-23,2324/01,LGE,N,
20028423,EDF ENERGY,631.34,SP Comm Alarms (Non-SH),Electricity,14-Apr-23,2324/01,LGE,N,
20028423,EDF ENERGY,"1,336.85",Temporary Accommodation,Electricity,14-Apr-23,2324/01,LGE,N,
20028423,EDF ENERGY,"12,316.30",Tenancy Services,Electricity,14-Apr-23,2324/01,LGE,N,
20028423,EDF ENERGY,-134.29,Wenham Depot,Electricity,14-Apr-23,2324/01,LGE,Y,50%
20028425,GPC BARCLAYS,"13,035.90",Current Assets,Barclaycard Control,16-Apr-23,2324/01,LGE,Y,17.50%
10056189,STANNAH STAIRLIFTS LTD,"2,834.00",Council House Adaptions,Improvements,11-Apr-23,2324/01,LGE,N,
20028391,ACTON PARISH COUNCIL,"10,483.48",Current Liabilities,Parish Payments Available,12-Apr-23,2324/01,SME,N,
20028392,ASSINGTON PARISH COUNCIL,"6,877.84",Current Liabilities,Parish Payments Available,12-Apr-23,2324/01,SME,N,
20028393,BENTLEY PARISH COUNCIL,"5,593.46",Current Liabilities,Parish Payments Available,12-Apr-23,2324/01,SME,N,
10055891,BRANTHAM MANAGEMENT CIC,"4,954.78",VCSE Resilience,"Equipment, Tools & Materials",31-Mar-23,2324/01,SME,N,
20028394,BRANTHAM PARISH COUNCIL,"53,848.41",Current Liabilities,Parish Payments Available,12-Apr-23,2324/01,SME,N,
20028395,CAPEL ST MARY PARISH COUNCIL,"31,569.86",Current Liabilities,Parish Payments Available,12-Apr-23,2324/01,SME,N,
20028404,CHATTISHAM & HINTLESHAM PARISH COUNCIL,"15,940.99",Current Liabilities,Parish Payments Available,12-Apr-23,2324/01,SME,N,
20028396,CHELMONDISTON PARISH COUNCIL,336.98,Current Liabilities,Parish Payments Available,12-Apr-23,2324/01,SME,N,
20028397,CHILTON PARISH COUNCIL,"14,968.02",Current Liabilities,Parish Payments Available,12-Apr-23,2324/01,SME,N,
20028398,COCKFIELD PARISH COUNCIL,"31,107.55",Current Liabilities,Parish Payments Available,12-Apr-23,2324/01,SME,N,
20028399,COPDOCK & WASHBROOK PARISH COUNCIL,"4,122.85",Current Liabilities,Parish Payments Available,12-Apr-23,2324/01,SME,N,
20028400,EAST BERGHOLT PARISH COUNCIL,"3,725.99",Current Liabilities,Parish Payments Available,12-Apr-23,2324/01,SME,N,
20028401,ELMSETT PARISH COUNCIL,"38,344.16",Current Liabilities,Parish Payments Available,12-Apr-23,2324/01,SME,N,
20028403,HADLEIGH TOWN COUNCIL,"5,283.74",Current Liabilities,Parish Payments Available,12-Apr-23,2324/01,SME,N,
20028405,LAVENHAM PARISH COUNCIL,"15,288.81",Current Liabilities,Parish Payments Available,12-Apr-23,2324/01,SME,N,
20028406,LAWSHALL PARISH COUNCIL,"7,855.91",Current Liabilities,Parish Payments Available,12-Apr-23,2324/01,SME,N,
20028407,LEAVENHEATH PARISH COUNCIL,827.44,Current Liabilities,Parish Payments Available,12-Apr-23,2324/01,SME,N,
20028408,LINDSEY PARISH COUNCIL,"5,704.81",Current Liabilities,Parish Payments Available,12-Apr-23,2324/01,SME,N,
20028409,LITTLE WALDINGFIELD PARISH COUNCIL,397.6,Current Liabilities,Parish Payments Available,12-Apr-23,2324/01,SME,N,
20028410,LONG MELFORD PARISH COUNCIL,"103,502.74",Current Liabilities,Parish Payments Available,12-Apr-23,2324/01,SME,N,
20028411,MILDEN PARISH MEETING,"4,291.84",Current Liabilities,Parish Payments Available,12-Apr-23,2324/01,SME,N,
10056237,MONKS ELEIGH PARISH COUNCIL,"27,009.65",S106 Open Spaces Expenditure,Grants,13-Apr-23,2324/01,SME,N,
10056261,MONKS ELEIGH PARISH COUNCIL,"13,097.13",CIL Funded REFCUS,Grants,14-Apr-23,2324/01,SME,N,
20028412,NAYLAND WITH WISSINGTON PARISH COUNCIL,"3,178.28",Current Liabilities,Parish Payments Available,12-Apr-23,2324/01,SME,N,
20028413,NEDGING WITH NAUGHTON PARISH COUNCIL,"4,093.56",Current Liabilities,Parish Payments Available,12-Apr-23,2324/01,SME,N,
20028414,NEWTON PARISH COUNCIL,"4,836.56",Current Liabilities,Parish Payments Available,12-Apr-23,2324/01,SME,N,
20028415,PRESTON ST MARY PARISH COUNCIL,"9,547.63",Current Liabilities,Parish Payments Available,12-Apr-23,2324/01,SME,N,
20028416,RAYDON PARISH COUNCIL,"3,301.53",Current Liabilities,Parish Payments Available,12-Apr-23,2324/01,SME,N,
20028417,SHIMPLING PARISH COUNCIL,750,Current Liabilities,Parish Payments Available,12-Apr-23,2324/01,SME,N,
20028418,STANSTEAD PARISH COUNCIL,"3,995.92",Current Liabilities,Parish Payments Available,12-Apr-23,2324/01,SME,N,
20028419,STUTTON PARISH COUNCIL,"15,461.76",Current Liabilities,Parish Payments Available,12-Apr-23,2324/01,SME,N,
20028420,SUDBURY TOWN COUNCIL,"3,278.97",Current Liabilities,Parish Payments Available,12-Apr-23,2324/01,SME,N,
20028421,WHERSTEAD PARISH COUNCIL,"21,651.72",Current Liabilities,Parish Payments Available,12-Apr-23,2324/01,SME,N,
10055316,SUFFOLK COUNTY COUNCIL,675,Land Chgs,Contracted Services,10-Mar-23,2324/01,LGE,N,
10055879,SUFFOLK COUNTY COUNCIL,"1,109.25",Building Services,Computer Equpt Purchases,30-Mar-23,2324/01,LGE,Y,50%
10055976,SUFFOLK COUNTY COUNCIL,"62,000.00",ICT,Misc Supplies & Services Costs,29-Mar-23,2324/01,LGE,Y,50%
10056073,SUFFOLK COUNTY COUNCIL,845,Land Chgs,Contracted Services,05-Apr-23,2324/01,LGE,N,
10056203,SUFFOLK COUNTY COUNCIL,"25,884.00",Civil Protection & Emerg Plg,Contributions & Donations,11-Apr-23,2324/01,LGE,N,
10056483,SUFFOLK COUNTY COUNCIL,400,HRA Strategic Property,Misc Supplies & Services Costs,24-Apr-23,2324/01,LGE,N,
10055912,REED SPECIALIST RECRUITMENT LTD,714.84,Financial Servs,Agency Staff,24-Mar-23,2324/01,LGE,N,
10055913,REED SPECIALIST RECRUITMENT LTD,333.11,PP&I,Agency Staff,24-Mar-23,2324/01,LGE,Y,50%
10056149,REED SPECIALIST RECRUITMENT LTD,766.64,Financial Servs,Agency Staff,31-Mar-23,2324/01,LGE,Y,50%
10056272,REED SPECIALIST RECRUITMENT LTD,582.23,Financial Servs,Agency Staff,07-Apr-23,2324/01,LGE,Y,50%
10056273,REED SPECIALIST RECRUITMENT LTD,984.73,PP&I,Agency Staff,31-Mar-23,2324/01,LGE,Y,50%
10056274,REED SPECIALIST RECRUITMENT LTD,789.9,PP&I,Agency Staff,07-Apr-23,2324/01,LGE,Y,50%
10056433,REED SPECIALIST RECRUITMENT LTD,613.31,Financial Servs,Agency Staff,14-Apr-23,2324/01,LGE,Y,50%
10056217,BUPA,"7,734.25",BUPA Family Expenses,Misc Supplies & Services Costs,12-Apr-23,2324/01,LGE,Y,50%
10056532,TELEFONICA UK LIMITED - O2,312.63,ICT,Telephone Costs,27-Apr-23,2324/01,LGE,Y,50%
10056158,LACY SCOTT & KNIGHT,550,Assets & Development,Prof & Consultancy Fees,29-Mar-23,2324/01,SME,N,
10056367,EAST OF ENGLAND CO-OPERATIVE SOCIETY LTD,"1,413.00",Public Health Funerals,Contracted Services,28-Mar-23,2324/01,LGE,N,
10056100,LEX AUTOLEASE,323.02,Building Services,Lease Cars - Payment,27-Mar-23,2324/01,SME,Y,50%
10056101,LEX AUTOLEASE,304.25,Building Services,Lease Cars - Payment,27-Mar-23,2324/01,SME,Y,50%
10056403,LEX AUTOLEASE,331.38,Building Services,Lease Cars - Payment,10-Apr-23,2324/01,SME,Y,50%
10056404,LEX AUTOLEASE,311.43,Building Services,Lease Cars - Payment,10-Apr-23,2324/01,SME,Y,50%
10056405,LEX AUTOLEASE,324.97,Building Services,Lease Cars - Payment,10-Apr-23,2324/01,SME,Y,50%
10056406,LEX AUTOLEASE,318.97,Building Services,Lease Cars - Payment,10-Apr-23,2324/01,SME,Y,50%
10056407,LEX AUTOLEASE,332.77,Building Services,Lease Cars - Payment,10-Apr-23,2324/01,SME,Y,50%
10056408,LEX AUTOLEASE,380.78,Building Services,Lease Cars - Payment,10-Apr-23,2324/01,SME,Y,50%
10056409,LEX AUTOLEASE,328.72,Building Services,Lease Cars - Payment,10-Apr-23,2324/01,SME,Y,50%
10056410,LEX AUTOLEASE,346.16,Building Services,Lease Cars - Payment,10-Apr-23,2324/01,SME,Y,50%
10056411,LEX AUTOLEASE,311.34,Building Services,Lease Cars - Payment,10-Apr-23,2324/01,SME,Y,50%
10056412,LEX AUTOLEASE,336.11,Building Services,Lease Cars - Payment,10-Apr-23,2324/01,SME,Y,50%
10056450,LEX AUTOLEASE,365.95,Building Services,Lease Cars - Payment,27-Mar-23,2324/01,SME,Y,50%
10056451,LEX AUTOLEASE,365.95,Building Services,Lease Cars - Payment,27-Mar-23,2324/01,SME,Y,50%
10055890,KERNOS CENTRE,"5,000.00",VCSE Resilience,"Equipment, Tools & Materials",31-Mar-23,2324/01,SME,N,
10055304,WHYBROW PROPERTY SOLUTIONS LTD,353.28,Voids Maintenance,Repairs,09-Mar-23,2324/01,SME,N,
10056321,WHYBROW PROPERTY SOLUTIONS LTD,260,Voids Maintenance,Repairs,17-Apr-23,2324/01,SME,N,
10056449,WHYBROW PROPERTY SOLUTIONS LTD,"2,200.00",Responsive maintenance,Repairs,05-Apr-23,2324/01,SME,N,
10056040,L A C CLEANING CONTRACTORS LIMITED,525.5,Other Temp Accommodation,General Cleaning,05-Apr-23,2324/01,SME,N,
10056356,ARMSTRONG YORK ASBESTOS ENVIRONMENTAL,"17,738.02",Asbestos Survey & Reinspection,Prof & Consultancy Fees,31-Mar-23,2324/01,SME,N,
10056452,CADCORP,"38,692.53",ICT,Software Licnse (Line of Bus) ,20-Apr-23,2324/01,SME,Y,50%
10056240,STOWE VETERINARY GROUP,279.75,Animal Welfare Licensing,Prof & Consultancy Fees,13-Apr-23,2324/01,SME,N,
10056328,ORSIS UK LTD,"6,304.20",PV Panels,Contracted Services,18-Apr-23,2324/01,SME,N,
10056183,OPUS PEOPLE SOLUTIONS LTD,339.38,Homeless Prevention Fund,Agency Staff,06-Apr-23,2324/01,SME,N,
10056183,OPUS PEOPLE SOLUTIONS LTD,179.8,Health & Safety,Agency Staff,06-Apr-23,2324/01,SME,N,
10056345,OPUS PEOPLE SOLUTIONS LTD,68.28,Devt Management -Applications,Agency Staff,13-Apr-23,2324/01,SME,N,
10056345,OPUS PEOPLE SOLUTIONS LTD,197.78,Health & Safety,Agency Staff,13-Apr-23,2324/01,SME,N,
10056454,OPUS PEOPLE SOLUTIONS LTD,990,Climate Change and Sustainabil,Agency Staff,20-Apr-23,2324/01,SME,N,
10056454,OPUS PEOPLE SOLUTIONS LTD,295.92,Health & Safety,Agency Staff,20-Apr-23,2324/01,SME,N,
10056454,OPUS PEOPLE SOLUTIONS LTD,197.78,Homeless Prevention Fund,Agency Staff,20-Apr-23,2324/01,SME,N,
10056454,OPUS PEOPLE SOLUTIONS LTD,68.28,Devt Management -Applications,Agency Staff,20-Apr-23,2324/01,SME,N,
10055623,VERTAS GROUP LTD,"1,525.57",Central Postal Serv,Postage,23-Mar-23,2324/01,SME,N,
10055623,VERTAS GROUP LTD,"1,525.57",Central Postal Serv,Postage,23-Mar-23,2324/01,SME,Y,50%
10055311,COLLINS SKIP HIRE,"1,375.00",Building Services,Waste Disposal,13-Mar-23,2324/01,SME,Y,50%
10055500,COLLINS SKIP HIRE,275,Building Services,Waste Disposal,20-Mar-23,2324/01,SME,Y,50%
10055928,COLLINS SKIP HIRE,275,Building Services,Waste Disposal,31-Mar-23,2324/01,SME,Y,50%
10055860,POSTURITE LTD,747,Organisational Devt,Health & Safety Training,30-Mar-23,2324/01,SME,Y,50%
10055861,POSTURITE LTD,498,Organisational Devt,Health & Safety Training,30-Mar-23,2324/01,SME,Y,50%
10056067,POSTURITE LTD,"2,292.00",Organisational Devt,Health & Safety Training,04-Apr-23,2324/01,SME,Y,50%
10056009,4PRINCIPLES CONSTRUCTION LTD,"7,337.00",Mand Disabled Facilities Grant,Grants,04-Apr-23,2324/01,SME,N,
10056074,PENNA PLC,"11,160.00",Management Team,Agency Staff,05-Apr-23,2324/01,SME,Y,50%
10056207,PENNA PLC,"15,400.00",Management Team,Agency Staff,12-Apr-23,2324/01,SME,Y,50%
10056114,"DUNCAN, CAMERON AND HUTCHINSON LTD",404.1,Building Services,Repairs,27-Jul-22,2324/01,SME,N,
10056115,"DUNCAN, CAMERON AND HUTCHINSON LTD",253.2,Building Services,Repairs,01-Aug-22,2324/01,SME,N,
10056116,"DUNCAN, CAMERON AND HUTCHINSON LTD",285,Building Services,Repairs,04-Aug-22,2324/01,SME,N,
10055906,NAFN DATA AND INTELLIGENCE SERVICES,"1,700.00",Management Team,Subscriptions,24-Mar-23,2324/01,SME,N,
10056357,SUFFOLK MARKET EVENTS,682.5,Hadleigh Market,Contracted Services,17-Apr-23,2324/01,SME,N,
10056501,SUFFOLK MARKET EVENTS,937.5,RHSSF,Prof & Consultancy Fees,25-Apr-23,2324/01,SME,N,
10056439,ADVANCE SUPPLIES,535.01,Sheltered Accommodation,Cleaning Materials,21-Apr-23,2324/01,SME,N,
10056440,ADVANCE SUPPLIES,813.11,Public Conveniences,Cleaning Materials,21-Apr-23,2324/01,SME,N,
10055975,HAYS SPECIALIST RECRUITMENT LTD,"2,597.40",Commissioning & Procurement,Agency Staff,03-Apr-23,2324/01,LGE,N,
10056037,HAYS SPECIALIST RECRUITMENT LTD,"1,782.30",ICT - Finance System,Agency Staff,04-Apr-23,2324/01,LGE,Y,50%
10056212,HAYS SPECIALIST RECRUITMENT LTD,"1,461.48",ICT - Finance System,Agency Staff,12-Apr-23,2324/01,LGE,Y,50%
10056385,HAYS SPECIALIST RECRUITMENT LTD,"1,461.48",ICT - Finance System,Agency Staff,19-Apr-23,2324/01,LGE,Y,50%
10056136,RICHARD UTTING ASSOCIATES LLP,"1,889.18",Waldingfield Rd S106 Andersons,Prof & Consultancy Fees,28-Feb-23,2324/01,SME,N,
10056398,RICHARD UTTING ASSOCIATES LLP,"1,750.00","Bantocks Rd, Gt Walding S106",Prof & Consultancy Fees,31-Mar-23,2324/01,SME,N,
10056352,PUBLIC SEWER SERVICES,"1,263.83",Sewage Treatment Works,Repairs,28-Feb-23,2324/01,SME,N,
10055894,CABINET OFFICE,"2,535.00",Management Team,Subscriptions,27-Mar-23,2324/01,LGE,N,
10055897,PRIVATE LANDLORD,680,Guaranteed Rent Scheme,Rent Payable,03-Apr-23,2324/01,ST,N,
10056397,CHARISMA SPATIAL PLANNING LTD T/A ANN SK,"6,045.45",Nghbrhd Plan Designations,Prof & Consultancy Fees,20-Apr-23,2324/01,SME,N,
10055745,PLACE SERVICES,"5,300.00",Devt Policy & Local Plans,Prof & Consultancy Fees,28-Mar-23,2324/01,SME,Y,50%
10055982,THE STOWMARKET GLASS COMPANY LTD,"1,885.00",Building Services,Repairs,17-Mar-23,2324/01,SME,N,
10055985,THE STOWMARKET GLASS COMPANY LTD,260,Building Services,Repairs,02-Mar-23,2324/01,SME,N,
10055986,THE STOWMARKET GLASS COMPANY LTD,455,Building Services,Repairs,02-Mar-23,2324/01,SME,N,
10056083,THE STOWMARKET GLASS COMPANY LTD,871.26,Building Services,Repairs,09-Mar-23,2324/01,SME,N,
10055946,ASPECT CONTRACTS LTD,"10,123.00",Asbestos,Improvements,31-Mar-23,2324/01,LGE,N,
20028422,RIX PETROLEUM (EAST ANGLIA) LTD,"1,194.10",Open Spaces,Plant & Vehicle Fuel,04-Apr-23,2324/01,SME,Y,50%
20028422,RIX PETROLEUM (EAST ANGLIA) LTD,"2,441.77",Tenancy Services,Heating Oil,04-Apr-23,2324/01,SME,N,
10056034,KNOWLES ASSOCIATES TFM LTD,397.67,Building Services,Lease Cars - Payment,06-Mar-23,2324/01,SME,Y,50%
10056034,KNOWLES ASSOCIATES TFM LTD,25.94,Public Realm TransitionProject,"Equipment, Tools & Materials",06-Mar-23,2324/01,SME,N,
10056034,KNOWLES ASSOCIATES TFM LTD,8.64,RHSSF,"Equipment, Tools & Materials",06-Mar-23,2324/01,SME,N,
10056102,KNOWLES ASSOCIATES TFM LTD,365.95,Building Services,Lease Cars - Payment,27-Mar-23,2324/01,SME,Y,50%
10056103,KNOWLES ASSOCIATES TFM LTD,365.95,Building Services,Lease Cars - Payment,27-Mar-23,2324/01,SME,Y,50%
10056147,STORETEC SERVICES LTD,736.65,ICT,"Equipment, Tools & Materials",31-Mar-23,2324/01,SME,Y,50%
10055990,AIRMAX REMOTE LTD,459.61,Building Services,Plant & Vehicle - Other costs,31-Mar-23,2324/01,SME,Y,50%
10056046,TILIA SOLUTIONS LTD,"3,250.00",Internal Audit,Prof & Consultancy Fees,04-Apr-23,2324/01,SME,Y,50%
10056017,GRAVITAS RECRUITMENT GROUP LTD,"2,000.00",ICT,Agency Staff,04-Apr-23,2324/01,LGE,Y,50%
10055947,JOHN FORD GROUP LTD,"6,218.02",Mand Disabled Facilities Grant,Grants,03-Apr-23,2324/01,SME,N,
10055930,RESIDENTIALLY CHARTERED SURVEYORS,"1,560.00",Waldingfield Rd S106 Andersons,Prof & Consultancy Fees,30-Mar-23,2324/01,SME,N,
10055920,SUDBURYS,825,Guaranteed Rent Scheme,Rent Payable,04-Apr-23,2324/01,SME,N,
10056480,SUDBURYS,440,Guaranteed Rent Scheme,Rent Payable,25-Apr-23,2324/01,SME,N,
10055923,WILLIAM H BROWN ESTATE AGENTS - SUDBURY,925,Guaranteed Rent Scheme,Rent Payable,04-Apr-23,2324/01,SME,N,
10056106,WILLIAM H BROWN ESTATE AGENTS - SUDBURY,725,Guaranteed Rent Scheme,Rent Payable,11-Apr-23,2324/01,SME,N,
10055667,COLCHESTER AND IPSWICH HOSPITALS CHARITY,"3,073.04",Cost of Democracy,Chairman's Expenses,24-Mar-23,2324/01,SME,N,
10055757,COLCHESTER AND IPSWICH HOSPITALS CHARITY,497,Cost of Democracy,Chairman's Expenses,29-Mar-23,2324/01,SME,N,
10056066,ABBEYCROFT LEISURE,"3,057.60",VCSE Resilience,"Equipment, Tools & Materials",06-Apr-23,2324/01,LGE,N,
10056227,ABBEYCROFT LEISURE,"1,886.42",Holiday Activity Funding,"Equipment, Tools & Materials",31-Mar-23,2324/01,LGE,N,
10056312,ABBEYCROFT LEISURE,"26,689.96",Policy & Strategy (H & W),Grants,17-Apr-23,2324/01,LGE,N,
10056135,BELLWAY HOMES LIMITED (ESSEX DIVISION),"115,409.20",Bourne Hill Wherstead S106 acq,Prof & Consultancy Fees,20-Mar-23,2324/01,LGE,N,
10055840,EARTH ANCHORS LTD,645,Sheltered General Mgmt,Furniture,10-Mar-23,2324/01,SME,N,
10056197,A C LEIGH (NORWICH) LTD,395.98,Building Services,"Equipment, Tools & Materials",05-Apr-23,2324/01,SME,N,
10056123,SUFFOLK POWER EQUIPMENT,920.52,Open Spaces,"Equipment, Tools & Materials",30-Mar-23,2324/01,ST,N,
10056268,3 POINT PROPERTY MANAGEMENT LTD,580,Guaranteed Rent Scheme,Rent Payable,17-Apr-23,2324/01,SME,N,
10056330,FLAGSHIP HOUSING GROUP LTD-RENT ACCOUNT,277.34,Household Support Grant,Misc Supplies & Services Costs,18-Apr-23,2324/01,LGE,N,
10056335,FLAGSHIP HOUSING GROUP LTD-RENT ACCOUNT,800,Household Support Grant,Misc Supplies & Services Costs,18-Apr-23,2324/01,LGE,N,
10056578,FLAGSHIP HOUSING GROUP LTD-RENT ACCOUNT,500,Household Support Grant,Misc Supplies & Services Costs,28-Apr-23,2324/01,LGE,N,
10055445,EDMUNDSON ELECTRICAL LTD (IPSWICH),"2,388.30",Building Services,Repairs,15-Mar-23,2324/01,LGE,Y,50%
10055602,EDMUNDSON ELECTRICAL LTD (IPSWICH),"3,519.72",Building Services,Repairs,21-Mar-23,2324/01,LGE,Y,50%
10055636,EDMUNDSON ELECTRICAL LTD (IPSWICH),"1,670.30",Building Services,Repairs,22-Mar-23,2324/01,LGE,Y,50%
10056155,EDMUNDSON ELECTRICAL LTD (IPSWICH),316.25,Building Services,Repairs,03-Apr-23,2324/01,LGE,Y,50%
10056339,EDMUNDSON ELECTRICAL LTD (IPSWICH),277.05,Building Services,Repairs,03-Apr-23,2324/01,LGE,Y,50%
10056361,EDMUNDSON ELECTRICAL LTD (IPSWICH),316.25,Building Services,Repairs,24-Mar-23,2324/01,LGE,Y,50%
10056384,EDMUNDSON ELECTRICAL LTD (IPSWICH),335.74,Building Services,Repairs,19-Apr-23,2324/01,LGE,Y,50%
10055978,WEST SUFFOLK COUNCIL,"1,000.00",Community Safety-CCTV,"Equipment, Tools & Materials",03-Apr-23,2324/01,LGE,N,
10056200,WEST SUFFOLK COUNCIL,"144,537.62",Legal & Info Gov Services,Contributions to other Bodies,01-Mar-23,2324/01,LGE,Y,50%
10056249,WEST SUFFOLK COUNCIL,"4,600.00",Community Safety-General,Contributions & Donations,03-Apr-23,2324/01,LGE,N,
10056476,WEST SUFFOLK COUNCIL,"30,000.00",Management Team,Subscriptions,04-Apr-23,2324/01,LGE,Y,50%
10056188,STAGE EVENT SECURITY LTD,"1,395.00",Open Spaces,Contracted Services,31-Mar-23,2324/01,SME,N,
10055850,APTL ENTERPRISES LTD,"5,506.67",PV Panels,Contracted Services,31-Mar-23,2324/01,SME,N,
10056065,APTL ENTERPRISES LTD,"6,775.00",PV Panels,Contracted Services,31-Mar-23,2324/01,SME,N,
10055729,ANGLIA COMMERCIAL FLOORING LTD,625.31,Building Services,Repairs,13-Mar-23,2324/01,SME,N,
10056086,ANGLIA COMMERCIAL FLOORING LTD,400.22,Voids Maintenance,Repairs,28-Mar-23,2324/01,SME,N,
10056089,ANGLIA COMMERCIAL FLOORING LTD,276.58,Voids Maintenance,Repairs,13-Mar-23,2324/01,SME,N,
10056093,ANGLIA COMMERCIAL FLOORING LTD,697.46,Voids Maintenance,Repairs,28-Mar-23,2324/01,SME,N,
10056182,ANGLIA COMMERCIAL FLOORING LTD,501.5,Building Services,Repairs,02-Mar-23,2324/01,SME,N,
10056390,ANGLIA COMMERCIAL FLOORING LTD,372.75,Voids Maintenance,Repairs,13-Mar-23,2324/01,SME,N,
10055948,STUDLEY CAPITAL LIMITED,"3,087.50",Hamilton Road Regeneration,Prof & Consultancy Fees,03-Apr-23,2324/01,ST,N,
10056047,GREENACRE RECRUITMENT LTD,"3,515.90",Management Team,Agency Staff,05-Apr-23,2324/01,SME,N,
10056048,GREENACRE RECRUITMENT LTD,"2,450.00",Building Services,Agency Staff,05-Apr-23,2324/01,SME,Y,50%
10056204,GREENACRE RECRUITMENT LTD,"2,768.80",Management Team,Agency Staff,12-Apr-23,2324/01,SME,Y,50%
10056205,GREENACRE RECRUITMENT LTD,"1,920.00",Building Services,Agency Staff,12-Apr-23,2324/01,SME,Y,50%
10056349,GREENACRE RECRUITMENT LTD,"2,790.40",Management Team,Agency Staff,19-Apr-23,2324/01,SME,Y,50%
10056350,GREENACRE RECRUITMENT LTD,"1,920.00",Building Services,Agency Staff,19-Apr-23,2324/01,SME,Y,50%
10055866,BABERGH GROWTH LTD,"1,594.39","Norman Way, Lavenham S106",Prof & Consultancy Fees,31-Mar-23,2324/01,SME,N,
10055915,TIAA LTD,"4,506.38",Internal Audit,Contracted Services,01-Apr-23,2324/01,SME,Y,50%
10056472,BYCHOICE LTD,950,Guaranteed Rent Scheme,Rent Payable,25-Apr-23,2324/01,SME,N,
10056126,LAND USE CONSULTANTS LTD,"18,268.00",Devt Policy & Local Plans,Prof & Consultancy Fees,28-Feb-23,2324/01,SME,Y,50%
10056329,P & P PROPERTY MAINTENANCE,"5,800.00",Mand Disabled Facilities Grant,Grants,18-Apr-23,2324/01,SME,N,
10056457,REEFER PROPERTIES LTD,695,Guaranteed Rent Scheme,Rent Payable,25-Apr-23,2324/01,SME,N,
10055993,WADDINGTON BROWN LTD,985.96,Organisational Devt,Agency Staff,03-Apr-23,2324/01,SME,Y,50%
10056226,WADDINGTON BROWN LTD,816.4,Organisational Devt,Agency Staff,11-Apr-23,2324/01,SME,Y,50%
10056098,LONG MELFORD COMMUNITY ACSSOCIATION,"1,120.00",Comm Devt Grants,Grants,06-Apr-23,2324/01,SME,N,
10055917,TOTALMOBILE LTD,"1,555.20",Health & Safety,"Equipment, Tools & Materials",31-Mar-23,2324/01,SME,Y,50%
10056262,ACTON PLAYGROUP,"5,000.00",Grants & Contrbns,Grants,14-Apr-23,2324/01,SME,N,
10056162,PRIVATE LANDLORD,675,Guaranteed Rent Scheme,Rent Payable,12-Apr-23,2324/01,ST,N,
10055977,NEW LIFE CHURCH GREAT CORNARD,"5,000.00",VCSE Resilience,"Equipment, Tools & Materials",04-Apr-23,2324/01,SME,N,
10056278,PRIVATE LANDLORD,700,Guaranteed Rent Scheme,Rent Payable,17-Apr-23,2324/01,ST,N,
10056290,PRIVATE LANDLORD,"1,198.00",Guaranteed Rent Scheme,Rent Payable,17-Apr-23,2324/01,ST,N,
10056170,BUCHER MUNICIPAL LTD,818.48,Street & Major Road Cleansing,Plant & Vehicle - Other costs,04-Apr-23,2324/01,LGE,Y,50%
10056068,PAUL WRIGHT & CO,500,Guaranteed Rent Scheme,Rent Payable,11-Apr-23,2324/01,SME,N,
10056496,PRIVATE LANDLORD,550,Guaranteed Rent Scheme,Rent Payable,25-Apr-23,2324/01,ST,N,
10056473,PRIVATE LANDLORD,750,Guaranteed Rent Scheme,Rent Payable,25-Apr-23,2324/01,ST,N,
10055922,PRIVATE LANDLORD,490,Guaranteed Rent Scheme,Rent Payable,04-Apr-23,2324/01,ST,N,
10056140,PRIVATE LANDLORD,"1,320.00",Guaranteed Rent Scheme,Rent Payable,11-Apr-23,2324/01,ST,N,
10055937,SUFFOLK DOORS & WINDOWS LTD,850,Building Services,Repairs,03-Apr-23,2324/01,SME,N,
10055925,PRIVATE LANDLORD,786.5,Guaranteed Rent Scheme,Rent Payable,04-Apr-23,2324/01,ST,N,
10056069,PRIVATE LANDLORD,650,Guaranteed Rent Scheme,Rent Payable,11-Apr-23,2324/01,ST,N,
10055988,COUNTRYSTYLE RECYCLING LTD,"3,759.72",Bring Sites,Contracted Services,31-Mar-23,2324/01,SME,N,
10056148,ANDERSON DESIGN & BUILD LIMITED,"152,913.67",Waldingfield Rd S106 Andersons,Prof & Consultancy Fees,31-Mar-23,2324/01,SME,N,
10055945,PRIVATE LANDLORD,750,Guaranteed Rent Scheme,Rent Payable,04-Apr-23,2324/01,ST,N,
10056105,PRIVATE LANDLORD,835,Guaranteed Rent Scheme,Rent Payable,11-Apr-23,2324/01,ST,N,
10056014,CARE PLUS STAFFORDSHIRE LTD,"6,566.62",Sheltered General Mgmt,Community Alarm Costs,01-Apr-23,2324/01,SME,N,
10056014,CARE PLUS STAFFORDSHIRE LTD,58.37,Homelessness Private Sector,Telephone Costs,01-Apr-23,2324/01,SME,N,
10056014,CARE PLUS STAFFORDSHIRE LTD,496.14,Building Services,Telephone Costs,01-Apr-23,2324/01,SME,N,
10056014,CARE PLUS STAFFORDSHIRE LTD,58.37,Other Public Health Matters,Telephone Costs,01-Apr-23,2324/01,SME,N,
10056014,CARE PLUS STAFFORDSHIRE LTD,58.37,Bldg Control Commercial Income,Telephone Costs,01-Apr-23,2324/01,SME,N,
10056014,CARE PLUS STAFFORDSHIRE LTD,58.37,Civil Protection & Emerg Plg,Telephone Costs,01-Apr-23,2324/01,SME,N,
10056344,TT MAN WITH A VAN,500,Homeless Prevention Fund,Removal Expenses,11-Apr-23,2324/01,ST,N,
10056160,PRIVATE LANDLORD,880,Guaranteed Rent Scheme,Rent Payable,12-Apr-23,2324/01,ST,N,
10055795,ARAN INSULATION LTD,"28,127.46",Insulation Imps,Major Contracts,27-Mar-23,2324/01,SME,N,
10055994,ARAN INSULATION LTD,"1,879.85",Insulation Imps,Improvements,04-Apr-23,2324/01,SME,N,
10055995,ARAN INSULATION LTD,"2,686.57",Insulation Imps,Improvements,04-Apr-23,2324/01,SME,N,
10056194,ARAN INSULATION LTD,"5,189.84",Insulation Imps,Repairs,12-Apr-23,2324/01,SME,N,
10056234,ARAN INSULATION LTD,"2,090.46",Insulation Imps,Repairs,13-Apr-23,2324/01,SME,N,
10055919,PRIVATE LANDLORD,500,Guaranteed Rent Scheme,Rent Payable,04-Apr-23,2324/01,ST,N,
10056267,PRIVATE LANDLORD,580,Guaranteed Rent Scheme,Rent Payable,17-Apr-23,2324/01,ST,N,
10056430,DRISCOLL KINGSTON SOLICITORS,"4,271.00",Building Services,Payments to Tenants,21-Apr-23,2324/01,SME,N,
10055987,WOODLAND CORNER CIO,"4,800.00",VCSE Resilience,"Equipment, Tools & Materials",04-Apr-23,2324/01,SME,N,
10056012,SSE,396.84,Other Temp Accommodation,Electricity,31-Mar-23,2324/01,LGE,N,
10056013,SSE,575.1,Other Temp Accommodation,Gas,31-Mar-23,2324/01,LGE,N,
10056494,DAVID BURR LETTINGS,750,Guaranteed Rent Scheme,Rent Payable,25-Apr-23,2324/01,SME,N,
10055576,FOURWAYS VEHICLE SOLUTIONS LTD,685.58,Building Services,Plant & Vehicle - Other costs,06-Feb-23,2324/01,SME,Y,50%
10056104,FOURWAYS VEHICLE SOLUTIONS LTD,726.6,Open Spaces,Plant & Vehicle - Other costs,30-Mar-23,2324/01,SME,N,
10056138,PRIVATE LANDLORD,715,Guaranteed Rent Scheme,Rent Payable,11-Apr-23,2324/01,ST,N,
10056493,PRIVATE LANDLORD,500,Guaranteed Rent Scheme,Rent Payable,25-Apr-23,2324/01,ST,N,
10056011,KEYS REMOVALS LTD,600,Homeless Prevention Fund,Removal Expenses,03-Apr-23,2324/01,SME,N,
10056130,KEYS REMOVALS LTD,"1,350.00",Homeless Prevention Fund,Removal Expenses,03-Apr-23,2324/01,SME,N,
10056446,ANGLIA SPORTS MANAGEMENT LTD,"1,370.83",Holiday Activity Funding,"Equipment, Tools & Materials",21-Apr-23,2324/01,SME,N,
10056279,PRIVATE LANDLORD,675,Guaranteed Rent Scheme,Rent Payable,17-Apr-23,2324/01,ST,N,
10055944,PRIVATE LANDLORD,500,Guaranteed Rent Scheme,Rent Payable,04-Apr-23,2324/01,ST,N,
10056284,PRIVATE LANDLORD,650,Guaranteed Rent Scheme,Rent Payable,17-Apr-23,2324/01,ST,N,
10056497,PRIVATE LANDLORD,650,Guaranteed Rent Scheme,Rent Payable,25-Apr-23,2324/01,ST,N,
10056063,THE BUMBLEBEE CHILDRENS CHARITY,"5,000.00",VCSE Resilience,"Equipment, Tools & Materials",06-Apr-23,2324/01,SME,N,
10056198,MINI WASTE LTD,842,Open Spaces,Waste Disposal,31-Mar-23,2324/01,SME,N,
10056322,MAXIM SPORTS COACHING,902.5,Holiday Activity Funding,"Equipment, Tools & Materials",17-Apr-23,2324/01,SME,N,
10056292,PRIVATE LANDLORD,725,Guaranteed Rent Scheme,Rent Payable,17-Apr-23,2324/01,ST,N,
10056187,EQUANS REGENERATION LTD,"29,937.70",Major Imps,Major Contracts,06-Mar-23,2324/01,LGE,N,
10056280,HAMILTON SMITH LETTINGS,670,Guaranteed Rent Scheme,Rent Payable,17-Apr-23,2324/01,SME,N,
10056107,JB PROPERTY SOLUTIONS (SUFFOLK) LTD T/A,455,Guaranteed Rent Scheme,Rent Payable,11-Apr-23,2324/01,SME,N,
10056082,KBM HOUSE SHARE & PROPERTY MANAGEMENT LT,550,Guaranteed Rent Scheme,Rent Payable,11-Apr-23,2324/01,SME,N,
10056243,PAY 360 LIMITED,"7,494.08",Bank Chgs,Bank Charges,14-Apr-23,2324/01,LGE,N,
10056264,PAY 360 LIMITED,"5,650.00",ICT,Desktop Software,14-Apr-23,2324/01,LGE,Y,50%
10056490,PAY 360 LIMITED,913.54,Bank Chgs,Bank Charges,06-Apr-23,2324/01,LGE,Y,50%
10056269,PRIVATE LANDLORD,550,Guaranteed Rent Scheme,Rent Payable,17-Apr-23,2324/01,ST,N,
10056121,FRESH START CHARITY,"4,275.90",VCSE Resilience,"Equipment, Tools & Materials",05-Apr-23,2324/01,SME,N,
10056139,PRIVATE LANDLORD,750,Guaranteed Rent Scheme,Rent Payable,11-Apr-23,2324/01,ST,N,
10056479,PRIVATE LANDLORD,575,Guaranteed Rent Scheme,Rent Payable,25-Apr-23,2324/01,ST,N,
10056442,JPK TRADE SUPPLIES LTD,"1,400.00",Street & Major Road Cleansing,"Equipment, Tools & Materials",18-Apr-23,2324/01,SME,N,
10056421,FUSE PAT TESTING,261,Sheltered Accommodation,Electricity,30-Jan-23,2324/01,ST,N,
10056124,NEWSQUEST MEDIA GROUP,"1,077.40",Devt Management -Applications,Advertising&mkting (non-staff),05-Apr-23,2324/01,LGE,N,
10056125,NEWSQUEST MEDIA GROUP,346.1,Devt Management -Applications,Advertising&mkting (non-staff),05-Apr-23,2324/01,LGE,N,
10056236,NEWSQUEST MEDIA GROUP,995,Devt Management -Applications,Advertising&mkting (non-staff),12-Apr-23,2324/01,LGE,N,
10056360,NEWSQUEST MEDIA GROUP,871.4,Devt Management -Applications,Advertising&mkting (non-staff),19-Apr-23,2324/01,LGE,N,
10055921,BELL DECORATING GROUP LTD,"5,040.00",Insulation Imps,Repairs,31-Mar-23,2324/01,LGE,N,
10056049,MARKS CONSULTING PARTNERS LIMTED,"1,560.00",Building Servs Tech Staff,Agency Staff,05-Apr-23,2324/01,SME,N,
10056208,MARKS CONSULTING PARTNERS LIMTED,"1,560.00",Building Servs Tech Staff,Agency Staff,12-Apr-23,2324/01,SME,Y,50%
10056353,MARKS CONSULTING PARTNERS LIMTED,"1,560.00",Building Servs Tech Staff,Agency Staff,19-Apr-23,2324/01,SME,Y,50%
10055892,FAITHORN FARRELL TIMMS,"5,000.00",Building Servs Tech Staff,Contracted Services,31-Mar-23,2324/01,SME,Y,50%
10055935,GCS COMPLIANCE LTD,"1,276.44",Building Services,Prof & Consultancy Fees,31-Mar-23,2324/01,SME,N,
10056486,SCH SUPPLIES LTD,"6,164.50",Open Spaces,Horticultural Purchases,19-Apr-23,2324/01,SME,N,
10056400,FRIENDS OF SUDBURY LIBRARY,"4,900.00",Grants & Contrbns,Grants,21-Apr-23,2324/01,SME,N,
10056498,PRIVATE LANDLORD,575,Guaranteed Rent Scheme,Rent Payable,25-Apr-23,2324/01,ST,N,
10056010,PRECISION RESOURCE GROUP LTD T/A PANORAM,"2,812.50",HRA Strategic Property,Agency Staff,04-Apr-23,2324/01,LGE,N,
10056062,PRECISION RESOURCE GROUP LTD T/A PANORAM,"2,400.00",Building Servs Tech Staff,Agency Staff,29-Mar-23,2324/01,LGE,Y,50%
10056206,PRECISION RESOURCE GROUP LTD T/A PANORAM,"2,250.00",HRA Strategic Property,Agency Staff,12-Apr-23,2324/01,LGE,Y,50%
10056342,PRECISION RESOURCE GROUP LTD T/A PANORAM,"2,400.00",Building Servs Tech Staff,Agency Staff,04-Apr-23,2324/01,LGE,Y,50%
10056346,PRECISION RESOURCE GROUP LTD T/A PANORAM,"2,400.00",Building Servs Tech Staff,Agency Staff,12-Apr-23,2324/01,LGE,Y,50%
10056355,PRECISION RESOURCE GROUP LTD T/A PANORAM,"2,250.00",HRA Strategic Property,Agency Staff,19-Apr-23,2324/01,LGE,Y,50%
10056108,CUTLERS WOOD LTD,750,Guaranteed Rent Scheme,Rent Payable,11-Apr-23,2324/01,SME,N,
10056495,PRIVATE LANDLORD,575,Guaranteed Rent Scheme,Rent Payable,25-Apr-23,2324/01,ST,N,
10055926,HOME TO RENT LTD,975,Guaranteed Rent Scheme,Rent Payable,04-Apr-23,2324/01,SME,N,
10055927,PRIVATE LANDLORD,"1,000.00",Guaranteed Rent Scheme,Rent Payable,04-Apr-23,2324/01,ST,N,
10055448,TODD STORAGE,632.9,Homeless Prevention Fund,Removal Expenses,07-Mar-23,2324/01,SME,N,
10056343,BUILDING COST INFORMATION SERVICE LTD,"1,122.00",Jnt Waste Contract,Subscriptions,11-Apr-23,2324/01,SME,Y,50%
10055934,MORE IQ LIMITED,"6,400.00",Building Services,Prof & Consultancy Fees,03-Apr-23,2324/01,SME,Y,50%
10055955,HIREBASE (HUWS GRAY LTD),296.1,Assets & Development,Repairs,31-Mar-23,2324/01,LGE,N,
10056022,PRIVATE LANDLORD,450,Guaranteed Rent Scheme,Misc Supplies & Services Costs,04-Apr-23,2324/01,ST,N,
10056016,WOOLVERSTONE UNITED FOOTBALL CLUB,"2,249.16",S106 Open Spaces Expenditure,Grants,04-Apr-23,2324/01,SME,N,
10056222,LAW MORGAN LTD T/A MORGAN LAW,"1,210.00",Commissioning & Procurement,Agency Staff,30-Mar-23,2324/01,SME,Y,50%
10056228,LAW MORGAN LTD T/A MORGAN LAW,"3,025.00",ICT - Finance System,Agency Staff,13-Apr-23,2324/01,SME,Y,50%
10056388,LAW MORGAN LTD T/A MORGAN LAW,"2,420.00",ICT - Finance System,Agency Staff,20-Apr-23,2324/01,SME,Y,50%
10055954,PRIVATE LANDLORD,400,Homeless Prevention Fund,Misc Supplies & Services Costs,03-Apr-23,2324/01,ST,N,
10055989,IPSWICH DISABLED ADVICE BUREAU,"5,000.00",VCSE Resilience,"Equipment, Tools & Materials",04-Apr-23,2324/01,SME,Y,60%
10056122,KATE & CO LTD,"8,308.62",Organisational Devt,Agency Staff,31-Mar-23,2324/01,SME,Y,50%
10056039,BILDESTON RECREATION GROUND,"5,000.00",VCSE Resilience,"Equipment, Tools & Materials",05-Apr-23,2324/01,SME,N,
10056185,PRIVATE LANDLORD,440,Guaranteed Rent Scheme,Misc Supplies & Services Costs,12-Apr-23,2324/01,SME,N,
10056366,FIRST FRIENDS PRE SCHOOL,"4,313.40",VCSE Resilience,"Equipment, Tools & Materials",19-Apr-23,2324/01,SME,N,
10056362,J SMART ROOFING LTD,"6,240.00",Mand Disabled Facilities Grant,Grants,19-Apr-23,2324/01,SME,N,
20028428,MR A D WAIN,750,Independent Living Service,Prof & Consultancy Fees,21-Apr-23,2324/01,SME,N,
10056445,ARBON BUILDING CONTRACTORS,"7,460.00",Mand Disabled Facilities Grant,Grants,24-Apr-23,2324/01,SME,N,
1114,AARON SERVICES LTD,"-1,900.00",Mand Disabled Facilities Grant,Grants,18-Apr-23,2324/01,SME,N,
DDT0102117,COMPUTERSHARE ,155.38,Current Assets,LLOYDS GENERAL PAYMENTS,26-Apr-23,2324/01,LGE,N,
312,MILDEN PARISH MEETING,"-4,291.84",Current Liabilities,Parish Payments Available,12-Apr-23,2324/01,SME,N,
1108,SUDBURY TOWN COUNCIL,-192.5,Policy & Strategy (H & W),Misc Supplies & Services Costs,31-Mar-23,2324/01,SME,N,
1109,SUDBURY TOWN COUNCIL,192.5,Current Assets,LLOYDS GENERAL PAYMENTS,31-Mar-23,2324/01,SME,N,
10056169,POSTURITE LTD,-498,Organisational Devt,Health & Safety Training,04-Apr-23,2324/01,SME,Y,50%
10056024,KNOWLES ASSOCIATES TFM LTD,-216.23,Building Services,Lease Cars - Payment,31-Mar-23,2324/01,SME,Y,50%
10056035,KNOWLES ASSOCIATES TFM LTD,-216.23,Building Services,Lease Cars - Payment,31-Mar-23,2324/01,SME,Y,50%
10056241,EDMUNDSON ELECTRICAL LTD (IPSWICH),-11.22,Building Services,Repairs,03-Apr-23,2324/01,LGE,Y,50%
1111,PRIVATE LANDLORD,27,Current Assets,LLOYDS GENERAL PAYMENTS,03-Mar-23,2324/01,ST,N,
1112,PRIVATE LANDLORD,-27,Guaranteed Rent Scheme,Rent Payable,03-Mar-23,2324/01,ST,N,
10056386,SEFE ENERGY LIMITED,421.27,Belle Vue House,Gas,17-Apr-23,2324/01,LGE,N,
10056386,SEFE ENERGY LIMITED,58.1,HQ Energy,Gas,17-Apr-23,2324/01,LGE,N,
10056386,SEFE ENERGY LIMITED,"-6,169.75",Sheltered Accommodation,Gas,17-Apr-23,2324/01,LGE,N,
10056386,SEFE ENERGY LIMITED,604.73,Temporary Accommodation,Gas,17-Apr-23,2324/01,LGE,N,
10056471,AARON SERVICES LTD,"28,814.11",Planned Maint - Heating,Property Servicing,28-Mar-23,2324/02,SME,N,
10056475,AARON SERVICES LTD,"28,814.11",Planned Maint - Heating,Property Servicing,25-Apr-23,2324/02,SME,N,
10056766,AARON SERVICES LTD,"17,233.32",Planned Maint - Heating,Property Servicing,09-May-23,2324/02,SME,N,
20028442,AARON SERVICES LTD,"6,125.19",Current Liabilities,Cert IBS Creditors Holding ac,27-Apr-23,2324/02,SME,N,
20028443,AARON SERVICES LTD,690.6,Current Liabilities,Cert IBS Creditors Holding ac,27-Apr-23,2324/02,SME,N,
20028444,AARON SERVICES LTD,"14,002.76",Current Liabilities,Cert IBS Creditors Holding ac,27-Apr-23,2324/02,SME,N,
20028445,AARON SERVICES LTD,"7,476.70",Current Liabilities,Cert IBS Creditors Holding ac,11-May-23,2324/02,SME,N,
20028458,AARON SERVICES LTD,"7,191.56",Current Liabilities,Cert IBS Creditors Holding ac,18-May-23,2324/02,SME,N,
10057006,AE WHITE SURFACING,275,C Parks General,Repairs,16-May-23,2324/02,SME,N,
10056573,AINGER HOLBROWS LTD,300,Taxi & Private Hire Licensing,Contracted Services,28-Apr-23,2324/02,SME,N,
10057216,ANGLIAN WATER,656.7,Water Sampling,Sampling & Analysis,23-May-23,2324/02,LGE,N,
10057217,ANGLIAN WATER,563.93,Water Sampling,Sampling & Analysis,23-May-23,2324/02,LGE,N,
10057218,ANGLIAN WATER,503.63,Water Sampling,Sampling & Analysis,23-May-23,2324/02,LGE,N,
10057271,ANTALIS LTD,343.64,Devt Management -Applications,Stationery,25-May-23,2324/02,SME,N,
10056566,BINDER LTD,268,Sewage Treatment Works,Contracted Services,27-Apr-23,2324/02,SME,N,
10057058,BINDER LTD,"4,148.08",Sewage Treatment Works,Improvements,18-May-23,2324/02,SME,N,
10056692,BOTTOMLINE TECHNOLOGIES,701.21,ICT,Software Licnse (Line of Bus) ,30-Apr-23,2324/02,LGE,Y,50%
10056744,BOWER FULLER,286.5,Chilton Depot,Electricity,28-Apr-23,2324/02,SME,Y,50%
10056744,BOWER FULLER,"1,818.10",Sheltered Accommodation,Electricity,28-Apr-23,2324/02,SME,N,
10056744,BOWER FULLER,693.8,Temporary Accommodation,Electricity,28-Apr-23,2324/02,SME,N,
10056744,BOWER FULLER,503,Tenancy Services,Electricity,28-Apr-23,2324/02,SME,N,
10056745,BOWER FULLER,"6,924.00",Tenancy Services,Fire Prevention,28-Apr-23,2324/02,SME,N,
10056748,BOWER FULLER,"1,800.00",Sheltered Accommodation,Fire Prevention,28-Apr-23,2324/02,SME,N,
10056749,BOWER FULLER,"2,736.43",Tenancy Services,Fire Prevention,28-Apr-23,2324/02,SME,N,
10056752,BOWER FULLER,350,Temporary Accommodation,Repairs,28-Apr-23,2324/02,SME,N,
10056753,BOWER FULLER,291.08,Tenancy Services,Repairs,28-Apr-23,2324/02,SME,N,
10056756,BOWER FULLER,270,Sheltered Accommodation,Fire Prevention,28-Apr-23,2324/02,SME,N,
10056757,BOWER FULLER,498.13,Sheltered Accommodation,Fire Prevention,28-Apr-23,2324/02,SME,N,
10056864,BOWER FULLER,"5,430.00",Tenancy Services,Fire Prevention,11-May-23,2324/02,SME,N,
10056704,AQUASAMPLERS,775,Water Sampling,Sampling & Analysis,31-Mar-23,2324/02,SME,N,
10057297,CENTRAL TYRE LTD,388.16,Open Spaces,Plant & Vehicle - Other costs,26-May-23,2324/02,SME,N,
10056701,CHAMBERLIN HALL,"14,972.24",Comm Devt Grants,Grants,04-May-23,2324/02,SME,N,
10056646,CHARTERED INSTITUTE OF HOUSING,780,Homelessness Private Sector,Training,18-Jan-23,2324/02,LGE,Y,50%
10056050,CHIPSIDE LTD,486.34,C Parks General,Contracted Services,31-Mar-23,2324/02,SME,N,
10056463,D W ADAMS LTD,"6,241.00",Council House Adaptions,Improvements,06-Apr-23,2324/02,SME,N,
10056548,D W ADAMS LTD,"1,981.00",Building Services,Repairs,26-Apr-23,2324/02,SME,N,
10056610,D W ADAMS LTD,"10,349.00",Council House Adaptions,Improvements,02-May-23,2324/02,SME,N,
10056850,D W ADAMS LTD,"3,493.00",Council House Adaptions,Improvements,09-May-23,2324/02,SME,N,
10057061,D W ADAMS LTD,"5,211.00",Council House Adaptions,Improvements,18-May-23,2324/02,SME,N,
10056957,DANCE EAST,"2,925.00",Grants & Contrbns,Grants,15-May-23,2324/02,SME,N,
10056956,DOLPHIN STAIRLIFTS (EAST ANGLIA) LTD,"2,180.00",Mand Disabled Facilities Grant,Grants,15-May-23,2324/02,SME,N,
10056879,CIVICA ELECTION SERVICES,"40,990.25",Electoral Registration,Returning Officer Fees,28-Apr-23,2324/02,LGE,N,
10057290,CIVICA ELECTION SERVICES,257.77,Electoral Registration,Contracted Services,18-May-23,2324/02,LGE,N,
10056427,ENER-G SWITCH2 LTD,414.33,Temporary Accommodation,Repairs,03-Apr-23,2324/02,SME,N,
10056718,ENER-G SWITCH2 LTD,515.92,Homelessness Private Sector,Electricity,05-May-23,2324/02,SME,N,
10056847,ENGLISH SECURITY,327.75,Tenancy Services,Fire Prevention,10-May-23,2324/02,SME,N,
10056724,ENVIROVENT LTD,"1,204.17",Insulation Imps,Repairs,24-Apr-23,2324/02,SME,N,
10056960,FELGAINS CARE CENTRE,"6,762.00",Mand Disabled Facilities Grant,Grants,15-May-23,2324/02,SME,N,
10056443,FELLBRIDGE BUILDING SERVICES,"2,112.29",Voids Maintenance,Repairs,24-Apr-23,2324/02,SME,N,
10056444,FELLBRIDGE BUILDING SERVICES,"6,378.06",Voids Maintenance,Repairs,24-Apr-23,2324/02,SME,N,
10056555,FELLBRIDGE BUILDING SERVICES,"1,311.89",Building Services,Repairs,27-Apr-23,2324/02,SME,N,
10056993,FELLBRIDGE BUILDING SERVICES,358.68,Building Services,Repairs,15-May-23,2324/02,SME,N,
10057125,FELLBRIDGE BUILDING SERVICES,836.25,Building Services,Repairs,22-May-23,2324/02,SME,N,
10057127,FELLBRIDGE BUILDING SERVICES,851.4,Building Services,Repairs,22-May-23,2324/02,SME,N,
10056648,FORE-MOST GARAGE DOORS LTD,792,Voids Maintenance,Repairs,30-Apr-23,2324/02,SME,N,
10056648,FORE-MOST GARAGE DOORS LTD,"3,425.20",Building Services,Repairs,30-Apr-23,2324/02,SME,N,
10056884,G & G SIGNS,464.9,Street Naming & Numbering,Signs,10-May-23,2324/02,SME,N,
10056132,G4S CASH SOLUTIONS LTD,532.32,C Parks General,Audit Fees,31-Mar-23,2324/02,LGE,N,
10056990,GHB ROOFING,"71,256.65",Roofing,Repairs,30-Apr-23,2324/02,SME,N,
10056841,GIPPING PRESS LTD,589,Cost of Democracy,Commercial Printing,10-May-23,2324/02,SME,Y,50%
10057014,HOUSEMARK LTD,"9,900.00",Software/ICT Projects/Surveys,Prof & Consultancy Fees,16-May-23,2324/02,SME,Y,50%
10055878,HUDSON MEDIA PARTNERSHIP LTD,"1,395.00",Tenants Forum,Misc Supplies & Services Costs,31-Mar-23,2324/02,SME,Y,50%
10056509,KEN GRIME & SON LTD,691.65,Voids Maintenance,Repairs,26-Apr-23,2324/02,SME,N,
10056517,KEN GRIME & SON LTD,342.06,Building Services,Repairs,26-Apr-23,2324/02,SME,N,
10057069,KEN GRIME & SON LTD,"1,088.64",Voids Maintenance,Repairs,29-Mar-23,2324/02,SME,N,
10057070,KEN GRIME & SON LTD,870.42,Voids Maintenance,Repairs,19-May-23,2324/02,SME,N,
10057033,KENDA-CLEAN,43,Chilton Depot,Window Cleaning,17-May-23,2324/02,SME,Y,50%
10057033,KENDA-CLEAN,"1,739.00",Sheltered Accommodation,Window Cleaning,17-May-23,2324/02,SME,N,
10057033,KENDA-CLEAN,27,Temporary Accommodation,Window Cleaning,17-May-23,2324/02,SME,N,
10057033,KENDA-CLEAN,375,Tenancy Services,Window Cleaning,17-May-23,2324/02,SME,N,
10056939,KINGSLEY HOUSE HOTEL,560,Homelessness Private Sector,B&B Costs,09-May-23,2324/02,SME,N,
10056562,M & H CIVIL ENGINEERING LTD,"1,207.40",Building Services,Repairs,26-Apr-23,2324/02,SME,N,
10057236,M & H CIVIL ENGINEERING LTD,750,Building Services,Repairs,25-May-23,2324/02,SME,N,
10056738,MARTIN BROKERS ( UK ) PLC,690.41,Treasury Management,Prof & Consultancy Fees,30-Apr-23,2324/02,LGE,N,
10056638,MERCURY BUILDING SERVICES LTD,"8,758.50",Kingfisher Leisure Centre,Repairs,01-May-23,2324/02,SME,N,
10056786,MIXBROW LTD,"5,450.00",Council House Adaptions,Improvements,05-May-23,2324/02,SME,N,
10056787,MIXBROW LTD,"7,245.30",Council House Adaptions,Improvements,05-May-23,2324/02,SME,N,
10056846,MIXBROW LTD,"6,453.56",Council House Adaptions,Improvements,05-May-23,2324/02,SME,N,
10057012,MONTHIND CLEAN LTD,720.21,Jnt Waste Contract,General Cleaning,15-May-23,2324/02,LGE,Y,50%
10057224,NEW LOCAL,"7,200.00",Management Team,Subscriptions,11-Apr-23,2324/02,LGE,Y,50%
10056546,ORWELL HOUSING ASSOCIATION LTD,575.8,Sheltered Accommodation,Contracted Services,24-Apr-23,2324/02,LGE,N,
10056598,ORWELL HOUSING ASSOCIATION LTD,783.35,Sheltered Accommodation,"Equipment, Tools & Materials",28-Apr-23,2324/02,LGE,N,
10056599,ORWELL HOUSING ASSOCIATION LTD,580.87,Sheltered Accommodation,"Equipment, Tools & Materials",28-Apr-23,2324/02,LGE,N,
10056815,PLASUFIX LTD,"3,195.00",Roofing,Improvements,30-Apr-23,2324/02,SME,N,
10056293,PRO-FLAT SPECIALIST SERVICES LTD,"3,424.00",Building Services,Repairs,06-Apr-23,2324/02,SME,N,
10056713,R H ENVIRONMENTAL LTD,"1,500.00",Housing Standards,Prof & Consultancy Fees,28-Apr-23,2324/02,LGE,N,
10056714,R H ENVIRONMENTAL LTD,"1,500.00",Housing Standards,Training,28-Apr-23,2324/02,LGE,N,
10056716,R H ENVIRONMENTAL LTD,"1,500.00",Housing Standards,Training,28-Apr-23,2324/02,LGE,N,
10056456,REID PLUMBING & HEATING CONTRACTORS LTD,"10,086.60",Central Heating,Major Contracts,24-Apr-23,2324/02,SME,N,
10056565,REID PLUMBING & HEATING CONTRACTORS LTD,"21,981.48",Central Heating,Major Contracts,27-Apr-23,2324/02,SME,N,
10056763,SEAGER HOME SOLUTIONS,"96,621.43",Kitchens/Bathrooms,Major Contracts,09-May-23,2324/02,SME,N,
10056141,SPALDINGS LTD,603.1,Open Spaces,"Equipment, Tools & Materials",05-Apr-23,2324/02,SME,N,
10057202,SPALDINGS LTD,794.69,Open Spaces,"Equipment, Tools & Materials",23-May-23,2324/02,SME,N,
10056998,SUFFOLK LIBRARIES IPS LTD IPSWICH,"4,897.68",Grants & Contrbns,Grants,17-May-23,2324/02,LGE,N,
10056998,SUFFOLK LIBRARIES IPS LTD IPSWICH,102.32,VCSE Resilience,"Equipment, Tools & Materials",17-May-23,2324/02,LGE,N,
10056676,SUFFOLK TREE SERVICES LTD,650,Public Tree Programme,Tree felling/maintenance,03-May-23,2324/02,SME,N,
10056807,SUFFOLK TREE SERVICES LTD,"1,795.00",Neighbourhood Services,Grounds & Site Maintenance,05-May-23,2324/02,SME,N,
10056414,SUREFIX,"4,750.00",Window & Door Rplcmts,Repairs,21-Apr-23,2324/02,SME,N,
10056584,SUREFIX,"1,250.00",Major Imps,Repairs,26-Apr-23,2324/02,SME,N,
10056585,SUREFIX,900,Building Services,Repairs,27-Apr-23,2324/02,SME,N,
10056731,SUREFIX,316.44,Voids Maintenance,Repairs,20-Apr-23,2324/02,SME,N,
10056732,SUREFIX,900,Building Services,Repairs,28-Apr-23,2324/02,SME,N,
10056735,SUREFIX,262.69,Building Services,Repairs,03-May-23,2324/02,SME,N,
10056900,SUREFIX,900,Building Services,Repairs,07-May-23,2324/02,SME,N,
10056901,SUREFIX,950,Building Services,Repairs,10-May-23,2324/02,SME,N,
10056903,SUREFIX,450,Building Services,Repairs,09-May-23,2324/02,SME,N,
10056904,SUREFIX,900,Building Services,Repairs,09-May-23,2324/02,SME,N,
10056905,SUREFIX,355.48,Voids Maintenance,Repairs,21-Apr-23,2324/02,SME,N,
10057094,SUREFIX,"1,100.00",Building Services,Repairs,12-May-23,2324/02,SME,N,
10057095,SUREFIX,925,Building Services,Repairs,19-May-23,2324/02,SME,N,
10056690,THERMATECH,350,Wenham Depot,Fire Prevention,03-May-23,2324/02,SME,Y,50%
10056691,THERMATECH,"3,135.00",Tenancy Services,Fire Prevention,03-May-23,2324/02,SME,Y,50%
10056881,TRUCKEAST LTD,654.33,Street & Major Road Cleansing,Plant & Vehicle - Other costs,19-Apr-23,2324/02,LGE,N,
10056513,WINDIMAN LTD,700,Window & Door Rplcmts,Repairs,25-Apr-23,2324/02,SME,N,
10056514,WINDIMAN LTD,"4,400.00",Window & Door Rplcmts,Repairs,25-Apr-23,2324/02,SME,N,
10056872,WINDIMAN LTD,600,Building Services,Repairs,25-Apr-23,2324/02,SME,N,
10057056,WINDIMAN LTD,790,Window & Door Rplcmts,Improvements,18-May-23,2324/02,SME,N,
10056531,WORKWEAR (EAST ANGLIA) LTD,686.72,Open Spaces,Protective clothing,25-Apr-23,2324/02,SME,N,
10056531,WORKWEAR (EAST ANGLIA) LTD,666.42,Street & Major Road Cleansing,Protective clothing,25-Apr-23,2324/02,SME,N,
10056651,WORKWEAR (EAST ANGLIA) LTD,282.3,Street & Major Road Cleansing,Protective clothing,25-Apr-23,2324/02,SME,N,
10057225,WORKWEAR (EAST ANGLIA) LTD,388.46,Open Spaces,Protective clothing,09-May-23,2324/02,SME,N,
20028436,LOCAL GOVERNMENT ASSOCIATION,"9,312.46",Governance,Subscriptions,03-Apr-23,2324/02,LGE,N,
10056980,CHUBB FIRE & SECURITY LTD,379.5,Sheltered Accommodation,Fire Prevention,15-May-23,2324/02,LGE,N,
20028453,EDF ENERGY,15.04,Belle Vue House,Electricity,14-May-23,2324/02,LGE,N,
20028453,EDF ENERGY,6.5,C Parks General,Electricity,14-May-23,2324/02,LGE,N,
20028453,EDF ENERGY,594.79,Climate Change and Sustainabil,Electricity,14-May-23,2324/02,LGE,N,
20028453,EDF ENERGY,"4,223.30",Hadleigh Pool,Electricity,14-May-23,2324/02,LGE,N,
20028453,EDF ENERGY,12.45,Headquarters General,Electricity,14-May-23,2324/02,LGE,N,
20028453,EDF ENERGY,"5,246.18",Kingfisher Leisure Centre,Electricity,14-May-23,2324/02,LGE,N,
20028453,EDF ENERGY,1.88,Public Conveniences,Electricity,14-May-23,2324/02,LGE,N,
20028453,EDF ENERGY,"13,526.48",Sheltered Accommodation,Electricity,14-May-23,2324/02,LGE,N,
20028453,EDF ENERGY,"2,385.44",Tenancy Services,Electricity,14-May-23,2324/02,LGE,N,
10056955,RURAL COFFEE CARAVAN INFORMATION PROJECT,"4,000.00",Grants & Contrbns,Grants,15-May-23,2324/02,SME,N,
20028456,GPC BARCLAYS,"8,258.38",Current Assets,Barclaycard Control,16-May-23,2324/02,LGE,Y,14%
10056988,STANNAH STAIRLIFTS LTD,312.94,Sheltered Accommodation,Repairs,15-May-23,2324/02,LGE,N,
10056845,BUILDING ENERGY COMPLIANCE LTD,265,Hadleigh Pool,Repairs,22-Mar-23,2324/02,SME,N,
10056845,BUILDING ENERGY COMPLIANCE LTD,265,Kingfisher Leisure Centre,Repairs,22-Mar-23,2324/02,SME,N,
10056958,ASSOCIATION FOR SUFFOLK MUSEUMS,"1,000.00",Grants & Contrbns,Grants,15-May-23,2324/02,SME,N,
20028465,BENTLEY VILLAGE HALL,310,Elections,Misc Supplies & Services Costs,22-May-23,2324/02,SME,N,
20028438,CHELMONDISTON PARISH COUNCIL,600.18,Bring Sites,Contributions & Donations,10-May-23,2324/02,SME,N,
10056964,EASTERN ANGLES THEATRE CO LTD,400,Grants & Contrbns,Grants,15-May-23,2324/02,SME,N,
20028484,HADLEIGH MARKET FEOFFMENT CHARITY,320,Elections,Misc Supplies & Services Costs,22-May-23,2324/02,SME,N,
20028486,HINTLESHAM & CHATTISHAM COMMUNITY COUNCI,425,Elections,Misc Supplies & Services Costs,22-May-23,2324/02,SME,N,
20028487,HITCHAM VILLAGE HALL,256,Elections,Misc Supplies & Services Costs,22-May-23,2324/02,SME,N,
10056952,IPSWICH & DISTRICT CITIZENS ADVICE BUREA,"7,673.00",Grants & Contrbns,Grants,15-May-23,2324/02,SME,N,
10056959,LIGHTHOUSE WOMENS AID LTD,"1,250.00",Grants & Contrbns,Grants,15-May-23,2324/02,SME,N,
20028527,LONG MELFORD FOOTBALL CLUB,300,Elections,Misc Supplies & Services Costs,22-May-23,2324/02,SME,N,
20028515,SUDBURY TOWN COUNCIL,305,Elections,Misc Supplies & Services Costs,22-May-23,2324/02,SME,N,
10056954,SUFFOLK ACCIDENT RESCUE SERVICE,500,Grants & Contrbns,Grants,15-May-23,2324/02,SME,N,
10056962,SUFFOLK ARTLINK,"1,500.00",Grants & Contrbns,Grants,15-May-23,2324/02,SME,N,
10056521,SUFFOLK COUNTY COUNCIL,869.09,ICT,Desktop Software,25-Apr-23,2324/02,LGE,Y,50%
10056549,SUFFOLK COUNTY COUNCIL,400,Council House Adaptions,Improvements,26-Apr-23,2324/02,LGE,N,
10056682,SUFFOLK COUNTY COUNCIL,"7,409.59",Domestic Waste,MRF Disposal,02-May-23,2324/02,LGE,N,
10056682,SUFFOLK COUNTY COUNCIL,"8,568.32",Garden Waste,Garden Waste Disposal,02-May-23,2324/02,LGE,N,
10056888,SUFFOLK COUNTY COUNCIL,477.16,ICT,Desktop Software,12-May-23,2324/02,LGE,Y,50%
10056921,SUFFOLK COUNTY COUNCIL,"2,536.22",ICT,Computer Equpt Purchases,12-May-23,2324/02,LGE,Y,50%
10056924,SUFFOLK COUNTY COUNCIL,"237,750.00",CIL Funded REFCUS,Grants,15-May-23,2324/02,LGE,N,
10057042,SUFFOLK COUNTY COUNCIL,300,Governance,Misc Supplies & Services Costs,17-Mar-23,2324/02,LGE,N,
10057050,SUFFOLK COUNTY COUNCIL,"57,387.59",Trade Waste,Trade Waste Disposal,17-May-23,2324/02,LGE,N,
10057107,SUFFOLK COUNTY COUNCIL,361.87,ICT,Desktop Software,19-May-23,2324/02,LGE,Y,50%
10056650,ROYAL MAIL,"4,716.16",Elections,Postage,02-May-23,2324/02,LGE,Y,100%
10056720,ROYAL MAIL,"3,649.00",Elections,Postage,01-May-23,2324/02,LGE,Y,100%
10056806,ROYAL MAIL,"1,107.82",Elections,Postage,09-May-23,2324/02,LGE,Y,100%
10056448,REED SPECIALIST RECRUITMENT LTD,840.18,PP&I,Agency Staff,21-Apr-23,2324/02,LGE,Y,50%
10056608,REED SPECIALIST RECRUITMENT LTD,745.92,Financial Servs,Agency Staff,21-Apr-23,2324/02,LGE,Y,50%
10056609,REED SPECIALIST RECRUITMENT LTD,879.9,PP&I,Agency Staff,21-Apr-23,2324/02,LGE,Y,50%
10056801,REED SPECIALIST RECRUITMENT LTD,766.64,Financial Servs,Agency Staff,28-Apr-23,2324/02,LGE,Y,50%
10056802,REED SPECIALIST RECRUITMENT LTD,"1,066.44",PP&I,Agency Staff,28-Apr-23,2324/02,LGE,Y,50%
10056912,REED SPECIALIST RECRUITMENT LTD,613.31,Financial Servs,Agency Staff,05-May-23,2324/02,LGE,Y,50%
10056933,REED SPECIALIST RECRUITMENT LTD,827.61,PP&I,Agency Staff,05-May-23,2324/02,LGE,Y,50%
10057097,REED SPECIALIST RECRUITMENT LTD,613.31,Financial Servs,Agency Staff,12-May-23,2324/02,LGE,Y,50%
10057099,REED SPECIALIST RECRUITMENT LTD,"1,158.45",PP&I,Agency Staff,12-May-23,2324/02,LGE,Y,50%
10057100,REED SPECIALIST RECRUITMENT LTD,676.77,PP&I,Agency Staff,19-May-23,2324/02,LGE,Y,50%
10057253,REED SPECIALIST RECRUITMENT LTD,439.95,PP&I,Agency Staff,19-May-23,2324/02,LGE,Y,50%
10056684,UNIT 4 BUSINESS SOFTWARE LIMITED,"39,892.39",ICT - Finance System,Contracted Services,30-Apr-23,2324/02,LGE,Y,50%
10057220,UNIT 4 BUSINESS SOFTWARE LIMITED,"28,757.64",ICT - Finance System,Contracted Services,24-May-23,2324/02,LGE,Y,50%
10056770,WELLS HALL PRIMARY SCHOOL,650,Wellbeing CCG Funding,"Equipment, Tools & Materials",09-May-23,2324/02,SME,N,
20028475,COPDOCK & WASHBROOK VILLAGE HALL,310,Elections,Misc Supplies & Services Costs,22-May-23,2324/02,SME,N,
10056590,AUTO INNOVATIONS LTD,340,Jnt Waste Contract,"Equipment, Tools & Materials",28-Apr-23,2324/02,SME,Y,50%
10057255,ZURICH MUNICIPAL,716,Building Services,Payments to Tenants,02-May-23,2324/02,LGE,N,
10056803,BT PAYMENT SERVICES,"5,422.55",ICT,Telephone Costs,04-May-23,2324/02,LGE,N,
10056971,LEX AUTOLEASE,355.2,Building Services,Lease Cars - Payment,11-Apr-23,2324/02,SME,Y,50%
10056972,LEX AUTOLEASE,365.95,Building Services,Lease Cars - Payment,27-Apr-23,2324/02,SME,Y,50%
10056974,LEX AUTOLEASE,365.95,Building Services,Lease Cars - Payment,27-Apr-23,2324/02,SME,Y,50%
10057088,LEX AUTOLEASE,323.02,Building Services,Lease Cars - Payment,01-May-23,2324/02,SME,Y,50%
10057089,LEX AUTOLEASE,304.25,Building Services,Lease Cars - Payment,01-May-23,2324/02,SME,Y,50%
10057169,LEX AUTOLEASE,355.2,Building Services,Lease Cars - Payment,11-May-23,2324/02,SME,Y,50%
10057170,LEX AUTOLEASE,346.16,Building Services,Lease Cars - Payment,10-May-23,2324/02,SME,Y,50%
10057171,LEX AUTOLEASE,324.97,Building Services,Lease Cars - Payment,10-May-23,2324/02,SME,Y,50%
10057172,LEX AUTOLEASE,311.43,Building Services,Lease Cars - Payment,10-May-23,2324/02,SME,Y,50%
10057173,LEX AUTOLEASE,331.38,Building Services,Lease Cars - Payment,10-May-23,2324/02,SME,Y,50%
10057174,LEX AUTOLEASE,311.34,Building Services,Lease Cars - Payment,09-May-23,2324/02,SME,Y,50%
10057175,LEX AUTOLEASE,336.11,Building Services,Lease Cars - Payment,09-May-23,2324/02,SME,Y,50%
10057176,LEX AUTOLEASE,376.73,Building Services,Lease Cars - Payment,02-Apr-23,2324/02,SME,Y,50%
10057177,LEX AUTOLEASE,318.97,Building Services,Lease Cars - Payment,08-May-23,2324/02,SME,Y,50%
10057178,LEX AUTOLEASE,376.73,Building Services,Lease Cars - Payment,02-May-23,2324/02,SME,Y,50%
10057179,LEX AUTOLEASE,332.77,Building Services,Lease Cars - Payment,08-May-23,2324/02,SME,Y,50%
10057180,LEX AUTOLEASE,380.78,Building Services,Lease Cars - Payment,08-May-23,2324/02,SME,Y,50%
10057181,LEX AUTOLEASE,328.72,Building Services,Lease Cars - Payment,09-May-23,2324/02,SME,Y,50%
10056637,CIVICA UK LIMITED,"1,280.00",Lettings & Allocations,Contracted Services,23-Mar-23,2324/02,LGE,N,
10057000,CIVICA UK LIMITED,768,Lettings & Allocations,Contracted Services,12-May-23,2324/02,LGE,N,
20028525,HADLEIGH UNITED REFORMED CHURCH,320,Elections,Misc Supplies & Services Costs,22-May-23,2324/02,SME,N,
10056951,EDENS PROJECT,"7,920.00",Grants & Contrbns,Grants,15-May-23,2324/02,SME,N,
10056953,KERNOS CENTRE,"4,000.00",Grants & Contrbns,Grants,15-May-23,2324/02,SME,N,
10056966,THE QUAY THEATRE AT SUDBURY,"23,000.00",Grants & Contrbns,Grants,15-May-23,2324/02,SME,N,
10056316,WHYBROW PROPERTY SOLUTIONS LTD,"6,000.00",Voids Maintenance,Repairs,17-Apr-23,2324/02,SME,N,
10056320,WHYBROW PROPERTY SOLUTIONS LTD,"5,759.81",Voids Maintenance,Repairs,17-Apr-23,2324/02,SME,N,
10056515,WHYBROW PROPERTY SOLUTIONS LTD,"11,017.14",Voids Maintenance,Repairs,17-Apr-23,2324/02,SME,N,
10056592,WHYBROW PROPERTY SOLUTIONS LTD,"7,588.65",Insurance Claims,Misc Premises Costs,27-Apr-23,2324/02,SME,N,
10056597,WHYBROW PROPERTY SOLUTIONS LTD,"9,739.17",Voids Maintenance,Repairs,28-Apr-23,2324/02,SME,N,
10056600,WHYBROW PROPERTY SOLUTIONS LTD,"16,000.00",Voids Maintenance,Repairs,28-Apr-23,2324/02,SME,N,
10056602,WHYBROW PROPERTY SOLUTIONS LTD,"1,377.52",Building Services,Capital Income,28-Apr-23,2324/02,SME,N,
10056603,WHYBROW PROPERTY SOLUTIONS LTD,"1,225.12",Building Services,Capital Income,28-Apr-23,2324/02,SME,N,
10056604,WHYBROW PROPERTY SOLUTIONS LTD,"7,971.69",Voids Maintenance,Repairs,27-Apr-23,2324/02,SME,N,
10056775,WHYBROW PROPERTY SOLUTIONS LTD,"1,570.00",Council House Adaptions,Improvements,05-May-23,2324/02,SME,N,
10056777,WHYBROW PROPERTY SOLUTIONS LTD,"12,000.00",Voids Maintenance,Repairs,05-May-23,2324/02,SME,N,
10056779,WHYBROW PROPERTY SOLUTIONS LTD,"6,172.98",Building Services,Repairs,05-May-23,2324/02,SME,N,
10056790,WHYBROW PROPERTY SOLUTIONS LTD,"1,951.87",Voids Maintenance,Repairs,05-May-23,2324/02,SME,N,
10056791,WHYBROW PROPERTY SOLUTIONS LTD,"1,308.87",Voids Maintenance,Repairs,05-May-23,2324/02,SME,N,
10056856,WHYBROW PROPERTY SOLUTIONS LTD,"14,133.00",Major Imps,Repairs,10-May-23,2324/02,SME,N,
10056857,WHYBROW PROPERTY SOLUTIONS LTD,"10,000.00",Major Imps,Repairs,10-May-23,2324/02,SME,N,
10056887,WHYBROW PROPERTY SOLUTIONS LTD,"7,662.25",Window & Door Rplcmts,Repairs,11-May-23,2324/02,SME,N,
10056889,WHYBROW PROPERTY SOLUTIONS LTD,"13,082.03",Major Imps,Repairs,11-May-23,2324/02,SME,N,
10057120,WHYBROW PROPERTY SOLUTIONS LTD,"13,000.00",Major Imps,Repairs,22-May-23,2324/02,SME,N,
10056477,L A C CLEANING CONTRACTORS LIMITED,680.5,Voids Maintenance,Repairs,25-Apr-23,2324/02,SME,N,
10056508,L A C CLEANING CONTRACTORS LIMITED,352.5,Building Services,Repairs,26-Apr-23,2324/02,SME,N,
10056543,L A C CLEANING CONTRACTORS LIMITED,730.8,Wenham Depot TDP,General Cleaning,24-Apr-23,2324/02,SME,Y,50%
10056576,L A C CLEANING CONTRACTORS LIMITED,425.5,Voids Maintenance,Repairs,28-Apr-23,2324/02,SME,N,
10056982,L A C CLEANING CONTRACTORS LIMITED,425.5,Voids Maintenance,Repairs,15-May-23,2324/02,SME,N,
10057264,L A C CLEANING CONTRACTORS LIMITED,455.5,Voids Maintenance,Repairs,26-May-23,2324/02,SME,N,
10056963,COMMUNITY ACTION SUFFOLK,"10,000.00",Grants & Contrbns,Grants,15-May-23,2324/02,SME,N,
10056917,CONCERTUS DESIGN & PROPERTY CONSULTANTS,870,Public Conveniences,Repairs,31-Mar-23,2324/02,SME,N,
10056918,CONCERTUS DESIGN & PROPERTY CONSULTANTS,950,Public Conveniences,Repairs,31-Mar-23,2324/02,SME,N,
20028492,LAWSHALL VILLAGE HALL MANAGEMENT COMMITT,272,Elections,Misc Supplies & Services Costs,22-May-23,2324/02,SME,N,
10056644,OPUS PEOPLE SOLUTIONS LTD,422.55,Building Services,Agency Staff,27-Apr-23,2324/02,SME,N,
10056644,OPUS PEOPLE SOLUTIONS LTD,197.78,Health & Safety,Agency Staff,27-Apr-23,2324/02,SME,N,
10056644,OPUS PEOPLE SOLUTIONS LTD,331.13,Homeless Prevention Fund,Agency Staff,27-Apr-23,2324/02,SME,N,
10056644,OPUS PEOPLE SOLUTIONS LTD,68.28,Devt Management -Applications,Agency Staff,27-Apr-23,2324/02,SME,N,
10056839,OPUS PEOPLE SOLUTIONS LTD,371.25,Climate Change and Sustainabil,Agency Staff,04-May-23,2324/02,SME,N,
10056839,OPUS PEOPLE SOLUTIONS LTD,197.78,Health & Safety,Agency Staff,04-May-23,2324/02,SME,N,
10056839,OPUS PEOPLE SOLUTIONS LTD,325.14,Homeless Prevention Fund,Agency Staff,04-May-23,2324/02,SME,N,
10056839,OPUS PEOPLE SOLUTIONS LTD,281.7,Building Services,Agency Staff,04-May-23,2324/02,SME,N,
10056919,OPUS PEOPLE SOLUTIONS LTD,742.5,Climate Change and Sustainabil,Agency Staff,11-May-23,2324/02,SME,N,
10056919,OPUS PEOPLE SOLUTIONS LTD,197.78,Health & Safety,Agency Staff,11-May-23,2324/02,SME,N,
10056919,OPUS PEOPLE SOLUTIONS LTD,268.2,Homeless Prevention Fund,Agency Staff,11-May-23,2324/02,SME,N,
10056919,OPUS PEOPLE SOLUTIONS LTD,281.7,Building Services,Agency Staff,11-May-23,2324/02,SME,N,
10056919,OPUS PEOPLE SOLUTIONS LTD,68.28,Devt Management -Applications,Agency Staff,11-May-23,2324/02,SME,N,
10057101,OPUS PEOPLE SOLUTIONS LTD,247.5,Climate Change and Sustainabil,Agency Staff,18-May-23,2324/02,SME,N,
10057101,OPUS PEOPLE SOLUTIONS LTD,197.78,Health & Safety,Agency Staff,18-May-23,2324/02,SME,N,
10057101,OPUS PEOPLE SOLUTIONS LTD,252.47,Homeless Prevention Fund,Agency Staff,18-May-23,2324/02,SME,N,
10057101,OPUS PEOPLE SOLUTIONS LTD,211.28,Building Services,Agency Staff,18-May-23,2324/02,SME,N,
10057101,OPUS PEOPLE SOLUTIONS LTD,136.56,Devt Management -Applications,Agency Staff,18-May-23,2324/02,SME,N,
10057321,OPUS PEOPLE SOLUTIONS LTD,433.13,Climate Change and Sustainabil,Agency Staff,25-May-23,2324/02,SME,N,
10057321,OPUS PEOPLE SOLUTIONS LTD,"1,604.95",Electoral Registration,Agency Staff,25-May-23,2324/02,SME,N,
10057321,OPUS PEOPLE SOLUTIONS LTD,331.13,Homeless Prevention Fund,Agency Staff,25-May-23,2324/02,SME,N,
10057321,OPUS PEOPLE SOLUTIONS LTD,281.7,Building Services,Agency Staff,25-May-23,2324/02,SME,N,
10056667,CORNERSTONE BARRISTERS,"5,950.39",Devt Management -Appeals,Legal Expenses,27-Apr-23,2324/02,SME,N,
10056679,CORNERSTONE BARRISTERS,"3,000.00",Devt Management -Applications,Legal Expenses,17-Apr-23,2324/02,SME,N,
10056702,CORNERSTONE BARRISTERS,"3,500.00",Planning Enforcement,Legal Expenses,04-May-23,2324/02,SME,N,
10056631,ANNETTE FEENEY,676,Devt Policy & Local Plans,Prof & Consultancy Fees,28-Apr-23,2324/02,ST,Y,50%
10056535,COLLINS SKIP HIRE,"1,100.00",Building Services,Waste Disposal,17-Apr-23,2324/02,SME,Y,50%
10056539,COLLINS SKIP HIRE,275,Building Services,Waste Disposal,24-Apr-23,2324/02,SME,Y,50%
10056642,COLLINS SKIP HIRE,550,Building Services,Waste Disposal,30-Apr-23,2324/02,SME,Y,50%
10056840,COLLINS SKIP HIRE,275,Building Services,Waste Disposal,09-May-23,2324/02,SME,Y,50%
10056932,COLLINS SKIP HIRE,275,Building Services,Waste Disposal,15-May-23,2324/02,SME,Y,50%
10056886,POSTURITE LTD,598,Organisational Devt,Health & Safety Training,11-May-23,2324/02,SME,Y,50%
10056544,4PRINCIPLES CONSTRUCTION LTD,"5,829.23",Mand Disabled Facilities Grant,Grants,27-Apr-23,2324/02,SME,N,
10056771,4PRINCIPLES CONSTRUCTION LTD,"6,976.34",Mand Disabled Facilities Grant,Grants,09-May-23,2324/02,SME,N,
10057016,4PRINCIPLES CONSTRUCTION LTD,"5,216.01",Mand Disabled Facilities Grant,Grants,17-May-23,2324/02,SME,N,
20028480,GREAT WALDINGFIELD VILLAGE HALL,384,Elections,Misc Supplies & Services Costs,22-May-23,2324/02,SME,N,
10057261,FORESOLUTIONS LTD,"1,237.00",Street & Major Road Cleansing,Plant & Vehicle - Other costs,26-May-23,2324/02,SME,N,
10056023,HEALTH  ASSURED LTD,"5,380.20",Organisational Devt,Contracted Services,01-Apr-23,2324/02,LGE,Y,50%
10056697,PENNA PLC,"8,640.00",Management Team,Agency Staff,04-May-23,2324/02,SME,Y,50%
20028435,FROST AND PARTNERS,253,Homes for Ukraine,Rent Payable,03-May-23,2324/02,SME,N,
20028447,FROST AND PARTNERS,"2,116.00",Homes for Ukraine,Rent Payable,15-May-23,2324/02,SME,N,
20028447,FROST AND PARTNERS,750,Homes for Ukraine,Misc Supplies & Services Costs,15-May-23,2324/02,SME,N,
20028517,HADLEIGH CRICKET CLUB,350,Elections,Misc Supplies & Services Costs,22-May-23,2324/02,SME,N,
10056572,SUFFOLK MARKET EVENTS,420,RHSSF,Prof & Consultancy Fees,30-Mar-23,2324/02,SME,N,
10057118,SUFFOLK MARKET EVENTS,937.5,RHSSF,Prof & Consultancy Fees,22-May-23,2324/02,SME,N,
10057288,SUFFOLK MARKET EVENTS,682.5,Hadleigh Market,Contracted Services,22-May-23,2324/02,SME,N,
20028503,PINEWOOD COMMUNITY HALL,324,Elections,Misc Supplies & Services Costs,22-May-23,2324/02,SME,N,
10057045,ADVANCE SUPPLIES,262.96,Sheltered Accommodation,Cleaning Materials,16-May-23,2324/02,SME,N,
10056502,HAYS SPECIALIST RECRUITMENT LTD,"1,737.97",Pld Maint/Enhncmts-Corp Bldgs,Agency Staff,25-Apr-23,2324/02,LGE,Y,50%
10056503,HAYS SPECIALIST RECRUITMENT LTD,617.28,Pld Maint/Enhncmts-Corp Bldgs,Agency Staff,25-Apr-23,2324/02,LGE,Y,50%
10056504,HAYS SPECIALIST RECRUITMENT LTD,"3,540.00",Financial Servs,Agency Staff,25-Apr-23,2324/02,LGE,Y,50%
10056505,HAYS SPECIALIST RECRUITMENT LTD,"1,719.99",Pld Maint/Enhncmts-Corp Bldgs,Agency Staff,25-Apr-23,2324/02,LGE,Y,50%
10056506,HAYS SPECIALIST RECRUITMENT LTD,"3,540.00",Financial Servs,Agency Staff,25-Apr-23,2324/02,LGE,Y,50%
10056547,HAYS SPECIALIST RECRUITMENT LTD,"1,826.85",ICT - Finance System,Agency Staff,26-Apr-23,2324/02,LGE,Y,50%
10056639,HAYS SPECIALIST RECRUITMENT LTD,"3,540.00",Financial Servs,Agency Staff,28-Apr-23,2324/02,LGE,Y,50%
10056675,HAYS SPECIALIST RECRUITMENT LTD,"1,777.42",Assets & Development,Agency Staff,02-May-23,2324/02,LGE,Y,50%
10056675,HAYS SPECIALIST RECRUITMENT LTD,444.36,HRA Strategic Property,Agency Staff,02-May-23,2324/02,LGE,Y,50%
10056678,HAYS SPECIALIST RECRUITMENT LTD,"1,198.60",Pld Maint/Enhncmts-Corp Bldgs,Agency Staff,02-May-23,2324/02,LGE,Y,50%
10056808,HAYS SPECIALIST RECRUITMENT LTD,"1,198.60",Pld Maint/Enhncmts-Corp Bldgs,Agency Staff,09-May-23,2324/02,LGE,Y,50%
10056809,HAYS SPECIALIST RECRUITMENT LTD,"1,826.85",ICT - Finance System,Agency Staff,09-May-23,2324/02,LGE,Y,50%
10056858,HAYS SPECIALIST RECRUITMENT LTD,"3,540.00",Financial Servs,Agency Staff,10-May-23,2324/02,LGE,Y,50%
10056860,HAYS SPECIALIST RECRUITMENT LTD,"1,461.48",ICT - Finance System,Agency Staff,10-May-23,2324/02,LGE,Y,50%
10056991,HAYS SPECIALIST RECRUITMENT LTD,"3,540.00",Financial Servs,Agency Staff,15-May-23,2324/02,LGE,Y,50%
10057034,HAYS SPECIALIST RECRUITMENT LTD,"1,461.48",ICT - Finance System,Agency Staff,17-May-23,2324/02,LGE,Y,50%
10057035,HAYS SPECIALIST RECRUITMENT LTD,"1,198.60",Pld Maint/Enhncmts-Corp Bldgs,Agency Staff,17-May-23,2324/02,LGE,Y,50%
10057133,HAYS SPECIALIST RECRUITMENT LTD,"3,982.50",Financial Servs,Agency Staff,22-May-23,2324/02,LGE,Y,50%
10057134,HAYS SPECIALIST RECRUITMENT LTD,"2,023.90",Financial Servs,Recruitment,22-May-23,2324/02,LGE,Y,50%
10057135,HAYS SPECIALIST RECRUITMENT LTD,"2,378.65",Financial Servs,Recruitment,22-May-23,2324/02,LGE,Y,50%
10057222,HAYS SPECIALIST RECRUITMENT LTD,"1,826.85",ICT - Finance System,Agency Staff,24-May-23,2324/02,LGE,Y,50%
10056315,RICHARD UTTING ASSOCIATES LLP,"1,889.18",Waldingfield Rd S106 Andersons,Prof & Consultancy Fees,31-Mar-23,2324/02,SME,N,
10056706,RICHARD UTTING ASSOCIATES LLP,"1,889.18",Waldingfield Rd S106 Andersons,Prof & Consultancy Fees,30-Apr-23,2324/02,SME,N,
10056618,PRIVATE LANDLORD,710,Guaranteed Rent Scheme,Rent Payable,02-May-23,2324/02,ST,N,
10057316,PRIVATE LANDLORD,710,Guaranteed Rent Scheme,Rent Payable,30-May-23,2324/02,ST,N,
10056661,THE STOWMARKET GLASS COMPANY LTD,390,Building Services,Repairs,25-Apr-23,2324/02,SME,N,
10056743,THE STOWMARKET GLASS COMPANY LTD,910,Building Services,Repairs,04-May-23,2324/02,SME,N,
20028514,SUDBURY RUGBY UNION FOOTBALL CLUB,360,Elections,Misc Supplies & Services Costs,22-May-23,2324/02,SME,N,
10056587,SUPERSTRUCTURES LTD,875,Responsive maintenance,Repairs,28-Apr-23,2324/02,SME,N,
10056928,JDi SOLUTIONS LTD,"7,180.00",ICT,Software Licnse (Line of Bus) ,15-May-23,2324/02,SME,Y,50%
20028455,RIX PETROLEUM (EAST ANGLIA) LTD,"2,174.83",Tenancy Services,Heating Oil,04-May-23,2324/02,SME,N,
20028455,RIX PETROLEUM (EAST ANGLIA) LTD,383.58,Wenham Depot,Heating Oil,04-May-23,2324/02,SME,Y,50%
20028455,RIX PETROLEUM (EAST ANGLIA) LTD,"1,743.86",Open Spaces,Plant & Vehicle Fuel,04-May-23,2324/02,SME,Y,50%
10056965,GREAT CORNARD SPORTS CENTRE,"6,000.00",Grants & Contrbns,Grants,15-May-23,2324/02,SME,N,
10056586,KNOWLES ASSOCIATES TFM LTD,312.44,Building Services,Vehicle Hire,19-Apr-23,2324/02,SME,Y,50%
10056768,KNOWLES ASSOCIATES TFM LTD,"19,828.76",Vehicle and Plant Renewals,Plant & Vehicle - Purchase,21-Mar-23,2324/02,SME,N,
10056792,STORETEC SERVICES LTD,792.45,ICT,"Equipment, Tools & Materials",30-Apr-23,2324/02,SME,Y,50%
10057341,GIPPING OCCUPATIONAL HEALTH LTD,767.67,Health & Safety,Contracted Services,24-May-23,2324/02,SME,Y,50%
10056615,AIRMAX REMOTE LTD,459.61,Building Services,Plant & Vehicle - Other costs,30-Apr-23,2324/02,SME,Y,50%
10056672,WS TRAINING LTD,"1,648.00",Building Services,Training,03-May-23,2324/02,SME,Y,50%
10056673,WS TRAINING LTD,"3,190.00",Building Services,Training,03-May-23,2324/02,SME,Y,50%
10056837,JOHN FORD GROUP LTD,"7,088.13",Mand Disabled Facilities Grant,Grants,11-May-23,2324/02,SME,N,
10056668,RESIDENTIALLY CHARTERED SURVEYORS,600,Bourne Hill Wherstead S106 acq,Prof & Consultancy Fees,27-Apr-23,2324/02,SME,N,
10056626,SUDBURYS,825,Guaranteed Rent Scheme,Rent Payable,02-May-23,2324/02,SME,N,
10056910,SUDBURYS,"2,532.10",Rent Deposit Scheme,Misc Supplies & Services Costs,15-May-23,2324/02,SME,N,
10056968,SUDBURYS,461.54,Rent Deposit Scheme,Misc Premises Costs,16-May-23,2324/02,SME,N,
10057138,SUDBURYS,440,Guaranteed Rent Scheme,Rent Payable,23-May-23,2324/02,SME,N,
10057312,SUDBURYS,825,Guaranteed Rent Scheme,Rent Payable,30-May-23,2324/02,SME,N,
10056961,HOME-START IN SUFFOLK,"9,000.00",Grants & Contrbns,Grants,15-May-23,2324/02,SME,N,
10056630,WILLIAM H BROWN ESTATE AGENTS - SUDBURY,925,Guaranteed Rent Scheme,Rent Payable,02-May-23,2324/02,SME,N,
10056728,WILLIAM H BROWN ESTATE AGENTS - SUDBURY,725,Guaranteed Rent Scheme,Rent Payable,09-May-23,2324/02,SME,N,
10056915,MTM PLANT AND SALES LTD,630,Open Spaces,Horticultural Purchases,30-Apr-23,2324/02,SME,N,
10056949,ABBEYCROFT LEISURE,900,Holiday Activity Funding,"Equipment, Tools & Materials",02-May-23,2324/02,LGE,N,
20028483,ABBEYCROFT LEISURE,262.5,Elections,Misc Supplies & Services Costs,22-May-23,2324/02,LGE,N,
10056465,BELLWAY HOMES LIMITED (ESSEX DIVISION),"9,491.65",Bourne Hill Wherstead S106 acq,Prof & Consultancy Fees,18-Apr-23,2324/02,LGE,N,
10056976,A C LEIGH (NORWICH) LTD,390.8,Building Services,"Equipment, Tools & Materials",10-May-23,2324/02,SME,N,
10056979,A C LEIGH (NORWICH) LTD,339.15,Building Services,"Equipment, Tools & Materials",12-May-23,2324/02,SME,N,
10056942,3 POINT PROPERTY MANAGEMENT LTD,580,Guaranteed Rent Scheme,Rent Payable,15-May-23,2324/02,SME,N,
10056529,EDMUNDSON ELECTRICAL LTD (IPSWICH),476.45,Building Services,"Equipment, Tools & Materials",25-Apr-23,2324/02,LGE,N,
10056663,EDMUNDSON ELECTRICAL LTD (IPSWICH),"1,063.18",Building Services,"Equipment, Tools & Materials",02-May-23,2324/02,LGE,N,
10056715,EDMUNDSON ELECTRICAL LTD (IPSWICH),"1,263.33",Building Services,"Equipment, Tools & Materials",03-May-23,2324/02,LGE,N,
10056793,EDMUNDSON ELECTRICAL LTD (IPSWICH),441.96,Building Services,"Equipment, Tools & Materials",05-May-23,2324/02,LGE,N,
10057238,WEST SUFFOLK COUNCIL,"122,116.93",Legal & Info Gov Services,Contributions to other Bodies,25-May-23,2324/02,LGE,Y,50%
10056784,CHUBB - PENDANT & LANYARD ONLY,282.16,Sheltered Accommodation,Community Alarm Costs,02-May-23,2324/02,LGE,N,
10056788,STAGE EVENT SECURITY LTD,"1,488.00",Open Spaces,Contracted Services,05-Apr-23,2324/02,SME,N,
10056698,HUGHES TRADE,718.93,Other Temp Accommodation,Furniture,15-Mar-23,2324/02,LGE,N,
10057064,HUGHES TRADE,937.32,Other Temp Accommodation,Furniture,18-May-23,2324/02,LGE,N,
10057131,HUGHES TRADE,381.78,Other Temp Accommodation,Furniture,22-May-23,2324/02,LGE,N,
10056534,ANGLIA COMMERCIAL FLOORING LTD,313.9,Voids Maintenance,Repairs,20-Apr-23,2324/02,SME,N,
10056563,ANGLIA COMMERCIAL FLOORING LTD,540.89,Building Services,Repairs,20-Apr-23,2324/02,SME,N,
10056619,ANGLIA COMMERCIAL FLOORING LTD,392.37,Voids Maintenance,Repairs,27-Apr-23,2324/02,SME,N,
10056707,ANGLIA COMMERCIAL FLOORING LTD,360.98,Voids Maintenance,Repairs,02-May-23,2324/02,SME,N,
10056709,ANGLIA COMMERCIAL FLOORING LTD,895.48,Voids Maintenance,Repairs,02-May-23,2324/02,SME,N,
10056710,ANGLIA COMMERCIAL FLOORING LTD,494.39,Voids Maintenance,Repairs,02-May-23,2324/02,SME,N,
10056877,ANGLIA COMMERCIAL FLOORING LTD,681.5,Building Services,Repairs,27-Apr-23,2324/02,SME,N,
10057002,FLOWBIRD SMART CITY UK LIMITED,329,C Parks General,Contracted Services,15-May-23,2324/02,SME,N,
10056944,ANGLIAN WATER BUS (NAT) LTD T/A WAVE,70.86,Belle Vue House,Water Rates - Metered,12-May-23,2324/02,LGE,N,
10056944,ANGLIAN WATER BUS (NAT) LTD T/A WAVE,10.1,C Parks General,Water Rates - Metered,12-May-23,2324/02,LGE,N,
10056944,ANGLIAN WATER BUS (NAT) LTD T/A WAVE,5.62,C Parks General,Water Rates - Unmetered,12-May-23,2324/02,LGE,N,
10056944,ANGLIAN WATER BUS (NAT) LTD T/A WAVE,10.1,Friars Meadow Sudb,Water Rates - Metered,12-May-23,2324/02,LGE,N,
10056944,ANGLIAN WATER BUS (NAT) LTD T/A WAVE,30.44,HQ Energy,Water Rates - Metered,12-May-23,2324/02,LGE,N,
10056944,ANGLIAN WATER BUS (NAT) LTD T/A WAVE,30.44,Public Conveniences,Water Rates - Metered,12-May-23,2324/02,LGE,N,
10056944,ANGLIAN WATER BUS (NAT) LTD T/A WAVE,30.44,Temporary Accommodation,Water Rates - Other Charges,12-May-23,2324/02,LGE,N,
10056944,ANGLIAN WATER BUS (NAT) LTD T/A WAVE,"1,339.77",Temporary Accommodation,Water Rates - Metered,12-May-23,2324/02,LGE,N,
10056944,ANGLIAN WATER BUS (NAT) LTD T/A WAVE,30.44,Tenancy Services,Water Rates - Unmetered,12-May-23,2324/02,LGE,N,
10056944,ANGLIAN WATER BUS (NAT) LTD T/A WAVE,30.44,Tenancy Services,Water Rates - Metered,12-May-23,2324/02,LGE,N,
10056829,STUDLEY CAPITAL LIMITED,"2,850.00",Hamilton Road Regeneration,Prof & Consultancy Fees,09-May-23,2324/02,ST,N,
10056556,GREENACRE RECRUITMENT LTD,"2,118.45",Management Team,Agency Staff,26-Apr-23,2324/02,SME,Y,50%
10056570,GREENACRE RECRUITMENT LTD,"2,432.40",Building Services,Agency Staff,26-Apr-23,2324/02,SME,Y,50%
10056670,GREENACRE RECRUITMENT LTD,"3,522.65",Management Team,Agency Staff,03-May-23,2324/02,SME,Y,50%
10056671,GREENACRE RECRUITMENT LTD,"2,467.50",Building Services,Agency Staff,03-May-23,2324/02,SME,Y,50%
10056854,GREENACRE RECRUITMENT LTD,"1,920.00",Building Services,Agency Staff,10-May-23,2324/02,SME,Y,50%
10056862,GREENACRE RECRUITMENT LTD,"2,740.00",Management Team,Agency Staff,11-May-23,2324/02,SME,Y,50%
10056929,GREENACRE RECRUITMENT LTD,"10,000.00",HRA General Management,Recruitment,28-Apr-23,2324/02,SME,Y,50%
10056930,GREENACRE RECRUITMENT LTD,"10,000.00",HRA General Management,Recruitment,28-Apr-23,2324/02,SME,Y,50%
10057030,GREENACRE RECRUITMENT LTD,"2,740.00",Management Team,Agency Staff,17-May-23,2324/02,SME,Y,50%
10057031,GREENACRE RECRUITMENT LTD,"2,400.00",Building Services,Agency Staff,17-May-23,2324/02,SME,Y,50%
10057206,GREENACRE RECRUITMENT LTD,"3,147.75",Management Team,Agency Staff,24-May-23,2324/02,SME,Y,50%
10057207,GREENACRE RECRUITMENT LTD,"3,475.00",Building Services,Agency Staff,24-May-23,2324/02,SME,Y,51.50%
10057208,GREENACRE RECRUITMENT LTD,"2,400.00",Building Services,Agency Staff,24-May-23,2324/02,SME,Y,50%
20028482,HADLEIGH - ST JOSEPHS CATHOLIC CHURCH,350,Elections,Misc Supplies & Services Costs,22-May-23,2324/02,SME,N,
20028496,LITTLE CORNARD VILLAGE HALL,280,Elections,Misc Supplies & Services Costs,22-May-23,2324/02,SME,N,
20028502,PINEWOOD - BELSTEAD BROOK MUTHU HOTEL,300,Elections,Misc Supplies & Services Costs,22-May-23,2324/02,SME,N,
20028529,SUDBURY-ST JOHNS METHODIST CHURCH HALL,600,Elections,Misc Supplies & Services Costs,22-May-23,2324/02,SME,N,
10056653,BABERGH GROWTH LTD,"4,552.26","Norman Way, Lavenham S106",Prof & Consultancy Fees,30-Apr-23,2324/02,SME,N,
10057059,TIAA LTD,"4,506.38",Internal Audit,Contracted Services,01-May-23,2324/02,SME,Y,50%
10057338,BYCHOICE LTD,950,Guaranteed Rent Scheme,Rent Payable,30-May-23,2324/02,SME,N,
10056553,LAND USE CONSULTANTS LTD,"3,500.00",Nghbrhd Plan Designations,Prof & Consultancy Fees,27-Apr-23,2324/02,SME,N,
10057112,PINSENT MASONS LLP,"9,506.00",Belle Vue Refurb/Rplcmt,Prof & Consultancy Fees,16-May-23,2324/02,LGE,N,
10056041,SPRYTAR LTD,680.5,Shared Prosperity Fund,Advertising&mkting (non-staff),04-Apr-23,2324/02,SME,N,
10056334,WADDINGTON BROWN LTD,791.28,Organisational Devt,Agency Staff,17-Apr-23,2324/02,SME,Y,50%
10056571,WADDINGTON BROWN LTD,"1,067.60",Organisational Devt,Agency Staff,24-Apr-23,2324/02,SME,Y,50%
10057021,WADDINGTON BROWN LTD,891.76,Organisational Devt,Agency Staff,15-May-23,2324/02,SME,Y,50%
10057223,WADDINGTON BROWN LTD,"1,142.96",Organisational Devt,Agency Staff,22-May-23,2324/02,SME,Y,50%
10057200,TOTALMOBILE LTD,972,Health & Safety,"Equipment, Tools & Materials",24-May-23,2324/02,SME,Y,50%
10056627,PRIVATE LANDLORD,515,Guaranteed Rent Scheme,Rent Payable,02-May-23,2324/02,ST,N,
10057291,PRIVATE LANDLORD,515,Guaranteed Rent Scheme,Rent Payable,26-May-23,2324/02,ST,N,
10056726,PRIVATE LANDLORD,675,Guaranteed Rent Scheme,Rent Payable,09-May-23,2324/02,ST,N,
10057103,PRIVATE LANDLORD,700,Guaranteed Rent Scheme,Rent Payable,22-May-23,2324/02,ST,N,
10057104,PRIVATE LANDLORD,"1,198.00",Guaranteed Rent Scheme,Rent Payable,22-May-23,2324/02,ST,N,
10056865,BUCHER MUNICIPAL LTD,818.48,Street & Major Road Cleansing,Plant & Vehicle - Other costs,09-May-23,2324/02,LGE,Y,50%
10056762,PAUL WRIGHT & CO,500,Guaranteed Rent Scheme,Rent Payable,09-May-23,2324/02,SME,N,
10057129,PRIVATE LANDLORD,550,Guaranteed Rent Scheme,Rent Payable,22-May-23,2324/02,ST,N,
10057314,PRIVATE LANDLORD,750,Guaranteed Rent Scheme,Rent Payable,30-May-23,2324/02,ST,N,
10056621,PRIVATE LANDLORD,490,Guaranteed Rent Scheme,Rent Payable,02-May-23,2324/02,ST,N,
10056729,PRIVATE LANDLORD,"1,320.00",Guaranteed Rent Scheme,Rent Payable,09-May-23,2324/02,ST,N,
10056489,SUFFOLK DOORS & WINDOWS LTD,"4,390.00",Building Services,Repairs,25-Apr-23,2324/02,SME,N,
10056622,SUFFOLK DOORS & WINDOWS LTD,500,Building Services,Repairs,02-May-23,2324/02,SME,N,
10056705,SUFFOLK DOORS & WINDOWS LTD,950,Building Services,Repairs,04-May-23,2324/02,SME,N,
10056719,SUFFOLK DOORS & WINDOWS LTD,"3,400.00",Building Services,Repairs,05-May-23,2324/02,SME,N,
10056916,SUFFOLK DOORS & WINDOWS LTD,270,Building Services,Repairs,02-May-23,2324/02,SME,N,
10057108,SUFFOLK DOORS & WINDOWS LTD,450,Building Services,Repairs,10-May-23,2324/02,SME,N,
10057124,SUFFOLK DOORS & WINDOWS LTD,550,Building Services,Repairs,22-May-23,2324/02,SME,N,
10057284,SUFFOLK DOORS & WINDOWS LTD,450,Building Services,Repairs,26-May-23,2324/02,SME,N,
10056730,PRIVATE LANDLORD,786.5,Guaranteed Rent Scheme,Rent Payable,09-May-23,2324/02,ST,N,
10056940,PRIVATE LANDLORD,650,Guaranteed Rent Scheme,Rent Payable,15-May-23,2324/02,ST,N,
10056238,COUNTRYSTYLE RECYCLING LTD,400,Street & Major Road Cleansing,"Equipment, Tools & Materials",31-Mar-23,2324/02,SME,N,
10056712,COUNTRYSTYLE RECYCLING LTD,"3,877.26",Bring Sites,Contracted Services,30-Apr-23,2324/02,SME,N,
10056823,ANDERSON DESIGN & BUILD LIMITED,"61,999.57",Waldingfield Rd S106 Andersons,Prof & Consultancy Fees,28-Apr-23,2324/02,SME,N,
10056725,PRIVATE LANDLORD,835,Guaranteed Rent Scheme,Rent Payable,09-May-23,2324/02,ST,N,
10056758,PRIVATE LANDLORD,750,Guaranteed Rent Scheme,Rent Payable,09-May-23,2324/02,ST,N,
10056760,PRIVATE LANDLORD,880,Guaranteed Rent Scheme,Rent Payable,09-May-23,2324/02,ST,N,
10056989,ARAN INSULATION LTD,"3,983.50",Insulation Imps,Repairs,16-May-23,2324/02,SME,N,
10057063,ARAN INSULATION LTD,450,Insulation Imps,Repairs,18-May-23,2324/02,SME,N,
10056987,ORWELL REMOVALS & STORAGE LTD,595,Homeless Prevention Fund,Removal Expenses,13-Mar-23,2324/02,SME,N,
10056628,PRIVATE LANDLORD,500,Guaranteed Rent Scheme,Rent Payable,02-May-23,2324/02,ST,N,
10057132,PRIVATE LANDLORD,595,Guaranteed Rent Scheme,Rent Payable,22-May-23,2324/02,ST,N,
10057313,PRIVATE LANDLORD,500,Guaranteed Rent Scheme,Rent Payable,30-May-23,2324/02,ST,N,
10056623,PRIVATE LANDLORD,575,Guaranteed Rent Scheme,Rent Payable,02-May-23,2324/02,ST,N,
10057286,PRIVATE LANDLORD,575,Guaranteed Rent Scheme,Rent Payable,26-May-23,2324/02,ST,N,
10057164,E.ON NEXT,123.24,HRA Strategic Property,Electricity,20-Jul-22,2324/02,LGE,N,
10057164,E.ON NEXT,290.36,HRA Strategic Property,Gas,20-Jul-22,2324/02,LGE,N,
10056882,SSE,"2,296.72",Tenancy Services,Electricity,04-May-23,2324/02,LGE,N,
10057285,DAVID BURR LETTINGS,750,Guaranteed Rent Scheme,Rent Payable,26-May-23,2324/02,SME,N,
10056740,FOURWAYS VEHICLE SOLUTIONS LTD,"1,092.00",Building Services,Lease Cars - Payment,17-Apr-23,2324/02,SME,Y,50%
10056983,FOURWAYS VEHICLE SOLUTIONS LTD,"1,158.60",Building Services,Lease Cars - Payment,16-Mar-23,2324/02,SME,Y,50%
10056943,PRIVATE LANDLORD,715,Guaranteed Rent Scheme,Rent Payable,15-May-23,2324/02,ST,N,
10057196,PIXEL FINANCIAL MANAGEMENT LTD,"1,100.00",Financial Servs,Subscriptions,19-May-23,2324/02,SME,N,
10057130,PRIVATE LANDLORD,500,Guaranteed Rent Scheme,Rent Payable,22-May-23,2324/02,ST,N,
10057039,ANGLIA SPORTS MANAGEMENT LTD,673.66,Holiday Activity Funding,"Equipment, Tools & Materials",18-May-23,2324/02,SME,N,
10056927,PRIVATE LANDLORD,675,Guaranteed Rent Scheme,Rent Payable,15-May-23,2324/02,ST,N,
10056625,PRIVATE LANDLORD,500,Guaranteed Rent Scheme,Rent Payable,02-May-23,2324/02,ST,N,
10056947,PRIVATE LANDLORD,650,Guaranteed Rent Scheme,Rent Payable,15-May-23,2324/02,ST,N,
10057113,PRIVATE LANDLORD,650,Guaranteed Rent Scheme,Rent Payable,22-May-23,2324/02,ST,N,
10056545,ABLEWORLD,"2,922.00",Mand Disabled Facilities Grant,Grants,27-Apr-23,2324/02,SME,N,
10056838,BELL CONTAINER TRADING LTD,672.85,Public Realm TransitionProject,"Equipment, Tools & Materials",26-Apr-23,2324/02,SME,N,
10056595,ONYX SOLUTIONS (EAST) LTD,542,Renovation/Home Repair Grants,Grants,28-Apr-23,2324/02,SME,N,
10056649,ONYX SOLUTIONS (EAST) LTD,"5,941.00",Mand Disabled Facilities Grant,Grants,02-May-23,2324/02,SME,N,
10057149,MAXIM SPORTS COACHING,590,Holiday Activity Funding,"Equipment, Tools & Materials",23-May-23,2324/02,SME,N,
10056945,PRIVATE LANDLORD,725,Guaranteed Rent Scheme,Rent Payable,15-May-23,2324/02,ST,N,
10057147,NEC SOFTWARE SOLUTIONS UK LTD,"17,687.00",ICT,Software Licnse (Line of Bus) ,22-May-23,2324/02,LGE,Y,50%
10056925,HAMILTON SMITH LETTINGS,670,Guaranteed Rent Scheme,Rent Payable,15-May-23,2324/02,SME,N,
10056759,JB PROPERTY SOLUTIONS (SUFFOLK) LTD T/A,455,Guaranteed Rent Scheme,Rent Payable,09-May-23,2324/02,SME,N,
10056946,KBM HOUSE SHARE & PROPERTY MANAGEMENT LT,550,Guaranteed Rent Scheme,Rent Payable,15-May-23,2324/02,SME,N,
10056938,PRIVATE LANDLORD,550,Guaranteed Rent Scheme,Rent Payable,15-May-23,2324/02,ST,N,
10056941,PRIVATE LANDLORD,750,Guaranteed Rent Scheme,Rent Payable,15-May-23,2324/02,ST,N,
10057128,PRIVATE LANDLORD,575,Guaranteed Rent Scheme,Rent Payable,22-May-23,2324/02,ST,N,
10056520,NEWSQUEST MEDIA GROUP,706.6,Devt Management -Applications,Advertising&mkting (non-staff),26-Apr-23,2324/02,LGE,N,
10056683,NEWSQUEST MEDIA GROUP,"2,060.00",Devt Management -Applications,Advertising&mkting (non-staff),03-May-23,2324/02,LGE,N,
10057026,NEWSQUEST MEDIA GROUP,556.2,Footpaths,Advertising&mkting (non-staff),16-May-23,2324/02,LGE,N,
10057062,NEWSQUEST MEDIA GROUP,499.04,Devt Management -Applications,Advertising&mkting (non-staff),17-May-23,2324/02,LGE,N,
10057245,NEWSQUEST MEDIA GROUP,595.34,Devt Management -Applications,Advertising&mkting (non-staff),24-May-23,2324/02,LGE,N,
10057003,INSIGHT TECHNOLOGY (SUFFOLK) LTD,719.2,Sheltered Accommodation,Fire Prevention,16-May-23,2324/02,SME,N,
10056484,BELL DECORATING GROUP LTD,"20,709.56",Planned Maint - Ext Painting,Major Contracts,25-Apr-23,2324/02,LGE,N,
10056564,BELL DECORATING GROUP LTD,"19,600.00",Insulation Imps,Repairs,27-Apr-23,2324/02,LGE,N,
10056948,J COOK CARPENTRY LTD,"1,175.00",Sheltered Accommodation,Fire Prevention,15-May-23,2324/02,SME,N,
10056518,MARKS CONSULTING PARTNERS LIMTED,"1,950.00",Building Servs Tech Staff,Agency Staff,26-Apr-23,2324/02,SME,Y,50%
10056669,MARKS CONSULTING PARTNERS LIMTED,"1,950.00",Building Servs Tech Staff,Agency Staff,03-May-23,2324/02,SME,Y,50%
10056594,FAITHORN FARRELL TIMMS,"1,250.00",HRA Strategic Property,Contracted Services,28-Apr-23,2324/02,SME,Y,50%
10056764,GREENHALGH KERR,969,Shared Revenues Partnership,Misc Supplies & Services Costs,28-Apr-23,2324/02,SME,N,50%
10056765,GREENHALGH KERR,"1,045.00",Shared Revenues Partnership,Misc Supplies & Services Costs,30-Mar-23,2324/02,SME,N,50%
10056525,HOLBROOK METHODIST CHURCH,"1,000.00",VCSE Resilience,"Equipment, Tools & Materials",26-Apr-23,2324/02,SME,N,50%
10057315,PRIVATE LANDLORD,575,Guaranteed Rent Scheme,Rent Payable,30-May-23,2324/02,ST,Y,50%
10056516,PRECISION RESOURCE GROUP LTD T/A PANORAM,"2,812.50",HRA Strategic Property,Agency Staff,26-Apr-23,2324/02,LGE,Y,50%
10056550,PRECISION RESOURCE GROUP LTD T/A PANORAM,"2,100.00",Building Servs Tech Staff,Agency Staff,19-Apr-23,2324/02,LGE,Y,50%
10056551,PRECISION RESOURCE GROUP LTD T/A PANORAM,"2,700.00",Building Servs Tech Staff,Agency Staff,26-Apr-23,2324/02,LGE,Y,50%
10056674,PRECISION RESOURCE GROUP LTD T/A PANORAM,"2,250.00",HRA Strategic Property,Agency Staff,03-May-23,2324/02,LGE,Y,50%
10056778,PRECISION RESOURCE GROUP LTD T/A PANORAM,"2,700.00",Building Servs Tech Staff,Agency Staff,03-May-23,2324/02,LGE,Y,50%
10056828,PRECISION RESOURCE GROUP LTD T/A PANORAM,"2,250.00",HRA Strategic Property,Agency Staff,10-May-23,2324/02,LGE,Y,50%
10056891,PRECISION RESOURCE GROUP LTD T/A PANORAM,"2,100.00",Building Servs Tech Staff,Agency Staff,10-May-23,2324/02,LGE,Y,50%
10056892,PRECISION RESOURCE GROUP LTD T/A PANORAM,"1,125.00",Building Servs Tech Staff,Agency Staff,10-May-23,2324/02,LGE,Y,50%
10057205,PRECISION RESOURCE GROUP LTD T/A PANORAM,"2,812.50",HRA Strategic Property,Agency Staff,24-May-23,2324/02,LGE,Y,50%
10057302,PRECISION RESOURCE GROUP LTD T/A PANORAM,"1,500.00",Building Servs Tech Staff,Agency Staff,17-May-23,2324/02,LGE,Y,50%
10056761,CUTLERS WOOD LTD,750,Guaranteed Rent Scheme,Rent Payable,09-May-23,2324/02,SME,N,
10057322,PRIVATE LANDLORD,575,Guaranteed Rent Scheme,Rent Payable,30-May-23,2324/02,ST,N,
20028441,PRIVATE LANDLORD,170.14,Guaranteed Rent Scheme,Rent Payable,10-May-23,2324/02,ST,N,
20028441,PRIVATE LANDLORD,95,Guaranteed Rent Scheme,Misc Supplies & Services Costs,10-May-23,2324/02,ST,N,
10056780,HARDTOPS UK LTD,"1,745.00",Street & Major Road Cleansing,Plant & Vehicle - Other costs,05-May-23,2324/02,SME,N,
10056624,HOME TO RENT LTD,975,Guaranteed Rent Scheme,Rent Payable,02-May-23,2324/02,SME,N,
10056727,PRIVATE LANDLORD,"1,000.00",Guaranteed Rent Scheme,Rent Payable,09-May-23,2324/02,ST,N,
10056694,MORE IQ LIMITED,"3,200.00",Building Services,Prof & Consultancy Fees,04-May-23,2324/02,SME,Y,50%
10056741,HIREBASE (HUWS GRAY LTD),310.2,Open Spaces,Horticultural Purchases,30-Apr-23,2324/02,LGE,N,
10056832,NEATLINES LTD,"4,125.00",Homeless Prevention Fund,Misc Supplies & Services Costs,09-May-23,2324/02,SME,Y,50%
10056677,ALL STAR TRAINING,325,Health & Safety,Conference Expenses,02-May-23,2324/02,SME,Y,50%
10056994,ALL STAR TRAINING,"3,040.00",Organisational Devt,Health & Safety Training,16-May-23,2324/02,SME,Y,50%
10057027,PRINCIPLE CONSTRUCTION & MAINTENANCE LTD,"6,069.15",Council House Adaptions,Improvements,09-May-23,2324/02,SME,N,
10056789,BRETT VALE PROPERTY MAINTENANCE,"1,740.00",Other Temp Accommodation,Property Enhancements & Imps,03-Apr-23,2324/02,ST,N,
10056554,LAW MORGAN LTD T/A MORGAN LAW,"3,025.00",ICT - Finance System,Agency Staff,27-Apr-23,2324/02,SME,Y,50%
10056722,LAW MORGAN LTD T/A MORGAN LAW,"3,025.00",ICT - Finance System,Agency Staff,04-May-23,2324/02,SME,Y,50%
10056866,LAW MORGAN LTD T/A MORGAN LAW,"3,219.44",Financial Servs,Agency Staff,11-May-23,2324/02,SME,Y,50%
10056867,LAW MORGAN LTD T/A MORGAN LAW,"2,420.00",ICT - Finance System,Agency Staff,11-May-23,2324/02,SME,Y,50%
10057051,LAW MORGAN LTD T/A MORGAN LAW,920,Commissioning & Procurement,Agency Staff,18-May-23,2324/02,SME,Y,50%
10057052,LAW MORGAN LTD T/A MORGAN LAW,"3,219.44",Financial Servs,Agency Staff,18-May-23,2324/02,SME,Y,50%
10057233,LAW MORGAN LTD T/A MORGAN LAW,"2,300.00",Commissioning & Procurement,Agency Staff,25-May-23,2324/02,SME,Y,50%
10057234,LAW MORGAN LTD T/A MORGAN LAW,"3,025.00",ICT - Finance System,Agency Staff,25-May-23,2324/02,SME,Y,50%
10057235,LAW MORGAN LTD T/A MORGAN LAW,"4,024.30",Financial Servs,Agency Staff,25-May-23,2324/02,SME,Y,50%
10056907,VANHALLA REMOVALS & CLEARANCES,355,Homeless Prevention Fund,Removal Expenses,07-May-23,2324/02,ST,N,
10056689,HARRY KING & SONS LTD,"1,645.00",Open Spaces,"Equipment, Tools & Materials",03-May-23,2324/02,SME,N,
10056767,BIG YELLOW SELF STORAGE COMPANY LTD,362.58,Homeless Prevention Fund,Removal Expenses,18-Apr-23,2324/02,LGE,N,
10057156,APEX ROOFERS LTD,380,Building Services,Repairs,08-May-23,2324/02,SME,N,
10057159,APEX ROOFERS LTD,350,Building Services,Repairs,08-May-23,2324/02,SME,N,
10057160,APEX ROOFERS LTD,331,Building Services,Repairs,08-May-23,2324/02,SME,N,
10057161,APEX ROOFERS LTD,450,Building Services,Repairs,08-May-23,2324/02,SME,N,
10057162,APEX ROOFERS LTD,285,Building Services,Repairs,08-May-23,2324/02,SME,N,
10056596,STEVE SMITH ELECTRICAL CONTRACTORS LTD,"4,458.00",Renovation/Home Repair Grants,Grants,28-Apr-23,2324/02,SME,N,
10056970,TP PROPERTY INVESTMENT LTD,"1,050.00",Homeless Prevention Fund,Removal Expenses,16-May-23,2324/02,SME,N,
10056769,S W STIFF CARPENTRY & BUILDING MAINTENAN,"1,125.44",Mand Disabled Facilities Grant,Grants,05-May-23,2324/02,ST,N,
10056773,LAVENHAM LAWN TENNIS CLUB,"13,476.48",Comm Devt Grants,Grants,09-May-23,2324/02,SME,N,
10056772,PRIVATE LANDLORD,700,Homeless Prevention Fund,Misc Supplies & Services Costs,09-May-23,2324/02,ST,N,
10056936,G L WARNER BUILDING SERVICES,"6,337.76",Mand Disabled Facilities Grant,Grants,15-May-23,2324/02,SME,N,
20028457,SIMPLY MOVED LTD,590,Homeless Prevention Fund,Misc Supplies & Services Costs,18-May-23,2324/02,SME,N,
10057167,LITTLE MUSKETEERS LTD,763.2,Holiday Activity Funding,"Equipment, Tools & Materials",23-May-23,2324/02,SME,N,
315,CIVICA UK LIMITED,-768,Lettings & Allocations,Contracted Services,31-May-23,2324/02,LGE,N,
10057073,CIVICA UK LIMITED,"-10,980.82",ICT,Desktop Software,27-Oct-22,2324/02,LGE,Y,50%
1119,KNOWLES ASSOCIATES TFM LTD,-299.44,Building Services,Lease Cars - Payment,19-May-23,2324/02,SME,Y,50%
20028459,KNOWLES ASSOCIATES TFM LTD,-216.23,Building Services,Lease Cars - Payment,31-Mar-23,2324/02,SME,Y,50%
20028460,KNOWLES ASSOCIATES TFM LTD,-216.23,Building Services,Lease Cars - Payment,31-Mar-23,2324/02,SME,Y,50%
314,SUDBURYS,"-2,532.10",Rent Deposit Scheme,Misc Supplies & Services Costs,15-May-23,2324/02,SME,N,
10056914,EDMUNDSON ELECTRICAL LTD (IPSWICH),-106.84,Building Services,"Equipment, Tools & Materials",11-May-23,2324/02,LGE,N,
20028446,NWES PROPERTY SERVICES LTD,-620,Major Imps,Rent Payable,16-Jun-22,2324/02,SME,N,
10057326,AARON SERVICES LTD,"28,814.11",Planned Maint - Heating,Property Servicing,30-May-23,2324/03,SME,N,
20028545,AARON SERVICES LTD,443.8,Current Liabilities,Cert IBS Creditors Holding ac,09-Jun-23,2324/03,SME,N,
20028546,AARON SERVICES LTD,434.6,Current Liabilities,Cert IBS Creditors Holding ac,31-May-23,2324/03,SME,N,
20028547,AARON SERVICES LTD,"11,658.03",Current Liabilities,Cert IBS Creditors Holding ac,30-May-23,2324/03,SME,N,
20028548,AARON SERVICES LTD,"7,635.24",Current Liabilities,Cert IBS Creditors Holding ac,14-Jun-23,2324/03,SME,N,
20028557,AARON SERVICES LTD,"5,574.91",Current Liabilities,Cert IBS Creditors Holding ac,22-Jun-23,2324/03,SME,N,
10057010,AE WHITE SURFACING,398.57,Insurance Claims,Misc Premises Costs,30-Apr-23,2324/03,SME,N,
10057402,AE WHITE SURFACING,"2,515.00",HRA Strategic Property,Misc Supplies & Services Costs,31-May-23,2324/03,SME,N,
10057418,AE WHITE SURFACING,"12,449.00",Council House Adaptions,Improvements,31-May-23,2324/03,SME,N,
10057885,AE WHITE SURFACING,762,Insurance Claims,Misc Premises Costs,16-Jun-23,2324/03,SME,N,
10057557,AINGER HOLBROWS LTD,500,Taxi & Private Hire Licensing,Contracted Services,31-May-23,2324/03,SME,N,
10057416,BINDER LTD,662.6,Sewage Treatment Works,Contracted Services,31-May-23,2324/03,SME,N,
10057419,BINDER LTD,577.59,Sewage Treatment Works,Contracted Services,31-May-23,2324/03,SME,N,
10057577,BINDER LTD,"1,064.88",Sewage Treatment Works,Contracted Services,06-Jun-23,2324/03,SME,N,
10057562,BOTTOMLINE TECHNOLOGIES,701.21,ICT,Software Licnse (Line of Bus) ,31-May-23,2324/03,LGE,Y,50%
10057564,BOWER FULLER,375.32,Sheltered Accommodation,Repairs,31-May-23,2324/03,SME,N,
10057567,BOWER FULLER,"3,495.93",Sheltered Accommodation,Repairs,31-May-23,2324/03,SME,N,
10057761,CENTRAL TYRE LTD,291.12,Street & Major Road Cleansing,Plant & Vehicle - Other costs,12-Jun-23,2324/03,SME,N,
10057840,CENTRAL TYRE LTD,274.23,Street & Major Road Cleansing,Plant & Vehicle - Other costs,16-Jun-23,2324/03,SME,N,
10058065,CENTRAL TYRE LTD,274.23,Street & Major Road Cleansing,Plant & Vehicle - Other costs,16-Jun-23,2324/03,SME,N,
10057145,CHIPSIDE LTD,384.92,C Parks General,Contracted Services,30-Apr-23,2324/03,SME,N,
10057650,CLARKE FENCING LTD,"1,077.92",Open Spaces,"Equipment, Tools & Materials",07-Jun-23,2324/03,SME,N,
10057197,D W ADAMS LTD,"6,989.00",Council House Adaptions,Improvements,23-May-23,2324/03,SME,N,
10057300,D W ADAMS LTD,"2,472.00",Council House Adaptions,Improvements,26-May-23,2324/03,SME,N,
10057301,D W ADAMS LTD,980,Building Services,Repairs,26-May-23,2324/03,SME,N,
10057592,D W ADAMS LTD,"4,528.00",Council House Adaptions,Improvements,06-Jun-23,2324/03,SME,N,
10057924,D W ADAMS LTD,"2,423.00",Council House Adaptions,Improvements,21-Jun-23,2324/03,SME,N,
10057925,D W ADAMS LTD,557,Building Services,Repairs,21-Jun-23,2324/03,SME,N,
10057995,D W ADAMS LTD,"2,409.01",Council House Adaptions,Improvements,23-Jun-23,2324/03,SME,N,
10056665,ENER-G SWITCH2 LTD,494.14,Temporary Accommodation,Repairs,30-Apr-23,2324/03,SME,N,
10057373,ENER-G SWITCH2 LTD,291.2,Building Services,Repairs,31-May-23,2324/03,SME,N,
10057598,ENER-G SWITCH2 LTD,515.92,Homelessness Private Sector,Electricity,06-Jun-23,2324/03,SME,N,
10057611,ENGLISH SECURITY,570,Sheltered Accommodation,Fire Prevention,07-Jun-23,2324/03,SME,N,
10057254,ENVIROVENT LTD,531.3,Insulation Imps,Repairs,19-May-23,2324/03,SME,N,
10057332,ENVIROVENT LTD,531.3,Insulation Imps,Repairs,14-Apr-23,2324/03,SME,N,
10057834,ENVIROVENT LTD,"1,106.50",Insulation Imps,Repairs,13-Jun-23,2324/03,SME,N,
10057978,ENVIROVENT LTD,818.9,Insulation Imps,Repairs,19-Jun-23,2324/03,SME,N,
10057818,FELGAINS CARE CENTRE,"2,662.00",Council House Adaptions,Improvements,15-Jun-23,2324/03,SME,N,
10056844,FELLBRIDGE BUILDING SERVICES,"23,615.64",Voids Maintenance,Repairs,08-May-23,2324/03,SME,N,
10056859,FELLBRIDGE BUILDING SERVICES,"8,334.42",Voids Maintenance,Repairs,08-May-23,2324/03,SME,N,
10057350,FORE-MOST GARAGE DOORS LTD,891,Building Services,Repairs,31-May-23,2324/03,SME,N,
10057150,HAYES DIGGINS BUILDERS,"5,050.00",Major Imps,Improvements,12-Apr-23,2324/03,SME,N,
10057184,HAYES DIGGINS BUILDERS,"5,300.00",Responsive maintenance,Repairs,24-May-23,2324/03,SME,N,
10057391,HAYES DIGGINS BUILDERS,815,Kingfisher Leisure Centre,Repairs,01-Jun-23,2324/03,SME,N,
10057392,HAYES DIGGINS BUILDERS,"2,990.00",Insulation Imps,Repairs,01-Jun-23,2324/03,SME,N,
10057623,HAYES DIGGINS BUILDERS,890,Hadleigh Pool,Repairs,08-Jun-23,2324/03,SME,N,
10057922,HAYES DIGGINS BUILDERS,"2,990.00",Kingfisher Leisure Centre,Repairs,03-May-23,2324/03,SME,N,
10058029,HEALTH SHIELD FRIENDLY SOCIETY LTD,688.8,Organisational Devt,Misc Supplies & Services Costs,17-Apr-23,2324/03,SME,Y,50%
10057357,HEMMING GROUP LTD,"1,920.00",Management Team,Conference Expenses,18-May-23,2324/03,SME,Y,50%
10057831,KEYWAYS THE LOCKSMITHS LTD,750,Temporary Accommodation,Misc Premises Costs,16-Jun-23,2324/03,SME,N,
10058068,KINGSLEY HOUSE HOTEL,"3,920.00",Homelessness Private Sector,B&B Costs,04-Apr-23,2324/03,SME,N,
10057139,M & H CIVIL ENGINEERING LTD,"1,655.09",Building Services,Repairs,22-May-23,2324/03,SME,N,
10057755,M & H CIVIL ENGINEERING LTD,350,Building Services,Repairs,12-Jun-23,2324/03,SME,N,
10057756,M & H CIVIL ENGINEERING LTD,350,Building Services,Repairs,12-Jun-23,2324/03,SME,N,
10057876,MALJON TIMBER PRESERVATION LTD,655,Insulation Imps,Repairs,19-Jun-23,2324/03,SME,N,
10057191,MERCURY BUILDING SERVICES LTD,"9,865.00",Pld Maint/Enhncmts-Kingfisher,Improvements,23-May-23,2324/03,SME,N,
10057192,MERCURY BUILDING SERVICES LTD,"4,403.00",Kingfisher Leisure Centre,Repairs,23-May-23,2324/03,SME,N,
10057866,MERCURY BUILDING SERVICES LTD,"2,231.00",Kingfisher Leisure Centre,Repairs,19-Jun-23,2324/03,SME,N,
10057686,MERLIN DMS LTD,510,ICT,Contracted Services,01-Jun-23,2324/03,SME,N,
10057328,MIXBROW LTD,"6,570.19",Council House Adaptions,Improvements,26-May-23,2324/03,SME,N,
10057330,MIXBROW LTD,"6,753.94",Council House Adaptions,Improvements,26-May-23,2324/03,SME,N,
10057651,MIXBROW LTD,"6,247.81",Council House Adaptions,Improvements,08-Jun-23,2324/03,SME,N,
10057739,MIXBROW LTD,"4,005.00",Council House Adaptions,Improvements,12-Jun-23,2324/03,SME,N,
10057757,MIXBROW LTD,"7,982.69",Council House Adaptions,Improvements,12-Jun-23,2324/03,SME,N,
10057604,MONTHIND CLEAN LTD,789.93,Tenancy Services,Contracted Services,31-May-23,2324/03,LGE,N,
10057737,MONTHIND CLEAN LTD,720.21,Jnt Waste Contract,General Cleaning,15-Jun-23,2324/03,LGE,Y,50%
10057803,ORWELL HOUSING ASSOCIATION LTD,575.8,Sheltered Accommodation,Contracted Services,08-Feb-23,2324/03,LGE,N,
10057726,PRO-FLAT SPECIALIST SERVICES LTD,"1,760.00",Roofing,Repairs,31-May-23,2324/03,SME,N,
10057727,PRO-FLAT SPECIALIST SERVICES LTD,790,Building Services,Repairs,31-May-23,2324/03,SME,N,
10057950,PRO-FLAT SPECIALIST SERVICES LTD,820,Roofing,BMBS Repairs Work,20-Jun-23,2324/03,SME,N,
10056717,R H ENVIRONMENTAL LTD,"5,600.00",Housing Standards,Prof & Consultancy Fees,28-Apr-23,2324/03,LGE,N,
10057589,R H ENVIRONMENTAL LTD,750,Housing Standards,Training,31-May-23,2324/03,LGE,N,
10057590,R H ENVIRONMENTAL LTD,"6,400.00",Housing Standards,Prof & Consultancy Fees,31-May-23,2324/03,LGE,N,
10057015,REID PLUMBING & HEATING CONTRACTORS LTD,"7,087.67",Central Heating,Major Contracts,17-May-23,2324/03,SME,N,
10057199,REID PLUMBING & HEATING CONTRACTORS LTD,"3,092.18",Central Heating,Major Contracts,24-May-23,2324/03,SME,N,
10057227,REID PLUMBING & HEATING CONTRACTORS LTD,750,Kitchens/Bathrooms,Improvements,25-May-23,2324/03,SME,N,
10057356,REID PLUMBING & HEATING CONTRACTORS LTD,"5,567.77",Central Heating,Major Contracts,31-May-23,2324/03,SME,N,
10057433,REID PLUMBING & HEATING CONTRACTORS LTD,"20,572.69",Central Heating,Major Contracts,31-May-23,2324/03,SME,N,
10057790,REID PLUMBING & HEATING CONTRACTORS LTD,"5,658.82",Central Heating,Major Contracts,14-Jun-23,2324/03,SME,N,
10057799,REID PLUMBING & HEATING CONTRACTORS LTD,"10,086.00",Central Heating,Major Contracts,14-Jun-23,2324/03,SME,N,
10057935,REID PLUMBING & HEATING CONTRACTORS LTD,"14,965.90",Central Heating,Major Contracts,21-Jun-23,2324/03,SME,N,
10057603,SEAGER HOME SOLUTIONS,"11,545.00",Council House Adaptions,Improvements,05-Jun-23,2324/03,SME,N,
10057765,SEAGER HOME SOLUTIONS,"6,259.00",Mand Disabled Facilities Grant,Grants,13-Jun-23,2324/03,SME,N,
10057889,SEAGER HOME SOLUTIONS,"33,313.13",Kitchens/Bathrooms,Major Contracts,07-Jun-23,2324/03,SME,N,
10058036,SEAGER HOME SOLUTIONS,"16,635.51",Kitchens/Bathrooms,Major Contracts,27-Jun-23,2324/03,SME,N,
10057190,SOLUTIONS ON SECURITY SERVICES,"1,588.60",Kingfisher Leisure Centre,Repairs,23-May-23,2324/03,SME,N,
10057242,SOLUTIONS ON SECURITY SERVICES,"1,386.50",Hadleigh Pool,Repairs,25-May-23,2324/03,SME,N,
10057389,SPALDINGS LTD,758.08,Open Spaces,"Equipment, Tools & Materials",31-May-23,2324/03,SME,N,
10057760,SPALDINGS LTD,465.59,Open Spaces,"Equipment, Tools & Materials",09-Jun-23,2324/03,SME,N,
10057732,SUDBURY OFFICE SUPPLIES,283.18,Central Stationery & equip,Stationery,05-Jun-23,2324/03,SME,N,
10057733,SUDBURY OFFICE SUPPLIES,275.5,Central Stationery & equip,Stationery,05-Jun-23,2324/03,SME,Y,50%
10057632,SUFFOLK POLICE & CRIME COMMISSIONER,"1,000.00",Homelessness Private Sector,Contributions to other Bodies,08-Jun-23,2324/03,LGE,N,
10057740,SUFFOLK TREE SERVICES LTD,300,Public Tree Programme,Tree felling/maintenance,12-Jun-23,2324/03,SME,N,
10057741,SUFFOLK TREE SERVICES LTD,600,Public Tree Programme,Tree felling/maintenance,12-Jun-23,2324/03,SME,N,
10056733,SUREFIX,"1,350.00",Building Services,Repairs,03-May-23,2324/03,SME,N,
10056734,SUREFIX,"3,850.00",Window & Door Rplcmts,Repairs,02-May-23,2324/03,SME,N,
10057272,SUREFIX,337.58,Voids Maintenance,Repairs,11-May-23,2324/03,SME,N,
10057278,SUREFIX,"1,500.00",Window & Door Rplcmts,Repairs,25-May-23,2324/03,SME,N,
10057279,SUREFIX,975,Building Services,Repairs,26-May-23,2324/03,SME,N,
10057507,SUREFIX,"1,025.00",Window & Door Rplcmts,Repairs,30-May-23,2324/03,SME,N,
10057509,SUREFIX,300,Building Services,Repairs,30-May-23,2324/03,SME,N,
10057668,SUREFIX,645.92,Building Services,Repairs,08-Jun-23,2324/03,SME,N,
10057839,SUREFIX,900,Window & Door Rplcmts,Repairs,15-Jun-23,2324/03,SME,N,
10057988,SUREFIX,900,Building Services,Repairs,19-Jun-23,2324/03,SME,N,
10057990,SUREFIX,"1,350.00",Building Services,Repairs,20-Jun-23,2324/03,SME,N,
10057625,THE PLAY INSPECTION COMPANY LTD,"3,342.50",Open Spaces,Subscriptions,08-Jun-23,2324/03,SME,Y,50%
10057570,THERMATECH,450,Tenancy Services,Fire Prevention,05-Jun-23,2324/03,SME,N,
10057571,THERMATECH,"3,950.00",Fire Risk Assessment (Flats),Prof & Consultancy Fees,05-Jun-23,2324/03,SME,N,
10057720,THERMATECH,450,Sheltered Accommodation,Fire Prevention,05-Jun-23,2324/03,SME,N,
10057720,THERMATECH,175,Tenancy Services,Fire Prevention,05-Jun-23,2324/03,SME,N,
10057720,THERMATECH,175,Tenancy Services,Fire Prevention,05-Jun-23,2324/03,SME,N,
10057351,WINDIMAN LTD,"1,560.00",Major Imps,Improvements,30-May-23,2324/03,SME,N,
10057908,WINDIMAN LTD,"3,625.00",Window & Door Rplcmts,Repairs,20-Jun-23,2324/03,SME,N,
10057581,WORKWEAR (EAST ANGLIA) LTD,"1,032.00",Open Spaces,Protective clothing,05-Jun-23,2324/03,SME,N,
10057729,WORKWEAR (EAST ANGLIA) LTD,363.48,Open Spaces,Protective clothing,05-Jun-23,2324/03,SME,N,
10057729,WORKWEAR (EAST ANGLIA) LTD,363.48,Street & Major Road Cleansing,Protective clothing,05-Jun-23,2324/03,SME,N,
10058006,WORKWEAR (EAST ANGLIA) LTD,719.32,Street & Major Road Cleansing,Protective clothing,06-Jun-23,2324/03,SME,N,
10057327,IDOX SOFTWARE LTD,"34,131.00",ICT,Software Licnse (Line of Bus) ,30-May-23,2324/03,SME,Y,50%
10057800,IPSWICH BOROUGH COUNCIL,"4,257.00",Shared Revenues Partnership,Contributions to other Bodies,14-Jun-23,2324/03,LGE,N,
10057804,IPSWICH BOROUGH COUNCIL,"6,839.17",Shared Revenues Partnership,Contributions to other Bodies,14-Jun-23,2324/03,LGE,N,
10057805,IPSWICH BOROUGH COUNCIL,"16,490.00",Shared Revenues Partnership,Contributions to other Bodies,14-Jun-23,2324/03,LGE,N,
10057806,IPSWICH BOROUGH COUNCIL,"5,572.99",Shared Revenues Partnership,Contributions to other Bodies,12-Jun-23,2324/03,LGE,N,
10057967,IPSWICH BOROUGH COUNCIL,"1,431.77",Shared Revenues Partnership,Contributions to other Bodies,19-Jun-23,2324/03,LGE,N,
10057968,IPSWICH BOROUGH COUNCIL,"1,431.77",Shared Revenues Partnership,Contributions to other Bodies,19-Jun-23,2324/03,LGE,N,
10057969,IPSWICH BOROUGH COUNCIL,"6,000.00",Shared Revenues Partnership,Contributions to other Bodies,19-Jun-23,2324/03,LGE,N,
10057624,SERCO LTD,"1,292.87",Open Spaces,Plant & Vehicle - Other costs,07-Jun-23,2324/03,LGE,N,
10057624,SERCO LTD,265.32,Street & Major Road Cleansing,Plant & Vehicle - Other costs,07-Jun-23,2324/03,LGE,N,
20028559,EDF ENERGY,28.77,Tenancy Services,Electricity,15-Jun-23,2324/03,LGE,N,
20028559,EDF ENERGY,823.07,Climate Change and Sustainabil,Electricity,15-Jun-23,2324/03,LGE,N,
10057628,ERNST & YOUNG LLP,"52,140.00",Ext Audit,Audit Fees,25-Apr-23,2324/03,LGE,N,
20028553,GPC BARCLAYS,"8,359.71",Current Assets,Barclaycard Control,16-Jun-23,2324/03,LGE,Y,21%
10057502,STANNAH STAIRLIFTS LTD,"2,631.15",Stairlifts,Repairs,01-Jun-23,2324/03,LGE,N,
10057593,STANNAH STAIRLIFTS LTD,"1,700.00",Sheltered Accommodation,Repairs,06-Jun-23,2324/03,LGE,N,
10057583,RICHARD JACKSON LTD,"2,650.00",Major Imps,Prof & Consultancy Fees,31-May-23,2324/03,SME,N,
10057333,CAPEL ST MARY PARISH COUNCIL,"70,835.23",CIL Funded REFCUS,Grants,30-May-23,2324/03,SME,N,
10057812,CAPEL ST MARY PARISH COUNCIL,"11,844.78",Comm Devt Grants,Grants,15-Jun-23,2324/03,SME,N,
10057559,EDWARDSTONE MILLENIUM GREEN TRUST,"11,120.38",CIL Funded REFCUS,Grants,06-Jun-23,2324/03,SME,N,
10057933,EDWARDSTONE MILLENIUM GREEN TRUST,"2,429.96",S106 Open Spaces Expenditure,Grants,21-Jun-23,2324/03,SME,N,
10057503,HADLEIGH TOWN COUNCIL,"5,995.00",Headquarters General,Rent Payable,02-Jun-23,2324/03,SME,N,
10057643,LEAVENHEATH PARISH COUNCIL,500,Grants & Contrbns,Contributions & Donations,09-Jun-23,2324/03,SME,N,
10057457,NEW ANGLIA LOCAL ENTERPRISE PARTNERSHIP,"7,000.00",Management Team,Advertising&mkting (non-staff),23-May-23,2324/03,SME,N,
10057195,SUDBURY TOWN COUNCIL,"28,410.90",Street & Major Road Cleansing,Contributions & Donations,24-May-23,2324/03,SME,N,
10057953,SUDBURY TOWN COUNCIL,500,Grants & Contrbns,Contributions & Donations,21-Jun-23,2324/03,SME,N,
10057970,SUDBURY TOWN COUNCIL,285.35,Sheltered Accommodation,General Cleaning,22-Jun-23,2324/03,SME,N,
10057970,SUDBURY TOWN COUNCIL,604.24,Sheltered Accommodation,General Cleaning,22-Jun-23,2324/03,SME,N,
10057324,SUFFOLK COUNTY COUNCIL,"4,695.47",ICT,Photocopying,26-May-23,2324/03,LGE,Y,50%
10057325,SUFFOLK COUNTY COUNCIL,254.64,ICT,Desktop Software,26-May-23,2324/03,LGE,Y,50%
10057395,SUFFOLK COUNTY COUNCIL,344.7,ICT,Desktop Software,31-May-23,2324/03,LGE,Y,50%
10057511,SUFFOLK COUNTY COUNCIL,"193,361.76",ICT,Major Contracts,01-Jun-23,2324/03,LGE,Y,50%
10057512,SUFFOLK COUNTY COUNCIL,"2,921.67",Pre App Charging,Highways  Consultancy,01-Jun-23,2324/03,LGE,N,
10057633,SUFFOLK COUNTY COUNCIL,"3,229.07",ICT,Contracted Services,07-Jun-23,2324/03,LGE,Y,50%
10057642,SUFFOLK COUNTY COUNCIL,905,Land Chgs,Contracted Services,07-Jun-23,2324/03,LGE,N,
10057663,SUFFOLK COUNTY COUNCIL,"20,434.92",Domestic Waste,MRF Disposal,08-Jun-23,2324/03,LGE,N,
10057663,SUFFOLK COUNTY COUNCIL,"17,360.62",Garden Waste,Garden Waste Disposal,08-Jun-23,2324/03,LGE,N,
10057664,SUFFOLK COUNTY COUNCIL,427.18,ICT,Desktop Software,08-Jun-23,2324/03,LGE,Y,50%
10057842,SUFFOLK COUNTY COUNCIL,816.76,Assets & Development,Contracted Services,16-Jun-23,2324/03,LGE,N,
10057868,SUFFOLK COUNTY COUNCIL,726.45,ICT,Desktop Software,16-Jun-23,2324/03,LGE,Y,50%
10057999,SUFFOLK COUNTY COUNCIL,937.5,ICT,Misc Supplies & Services Costs,23-Jun-23,2324/03,LGE,Y,50%
10058000,SUFFOLK COUNTY COUNCIL,"9,957.45",ICT,Computer Equpt Purchases,23-Jun-23,2324/03,LGE,Y,50%
10058014,SUFFOLK COUNTY COUNCIL,345.86,ICT,Desktop Software,27-Jun-23,2324/03,LGE,Y,50%
10057533,ROYAL MAIL,900.92,Electoral Registration,Postage,05-Jun-23,2324/03,LGE,Y,100%
10057346,REED SPECIALIST RECRUITMENT LTD,766.64,Financial Servs,Agency Staff,26-May-23,2324/03,LGE,Y,50%
10057530,REED SPECIALIST RECRUITMENT LTD,766.64,Financial Servs,Agency Staff,26-May-23,2324/03,LGE,Y,50%
10057531,REED SPECIALIST RECRUITMENT LTD,"1,055.88",PP&I,Agency Staff,26-May-23,2324/03,LGE,Y,50%
10057707,REED SPECIALIST RECRUITMENT LTD,563.58,Financial Servs,Agency Staff,02-Jun-23,2324/03,LGE,Y,50%
10057708,REED SPECIALIST RECRUITMENT LTD,465.09,PP&I,Agency Staff,09-Jun-23,2324/03,LGE,Y,50%
10057709,REED SPECIALIST RECRUITMENT LTD,890.46,PP&I,Agency Staff,09-Jun-23,2324/03,LGE,Y,50%
10057830,REED SPECIALIST RECRUITMENT LTD,"1,500.00",PP&I,Agency Staff,13-Jun-23,2324/03,LGE,Y,50%
10057864,REED SPECIALIST RECRUITMENT LTD,766.64,Financial Servs,Agency Staff,09-Jun-23,2324/03,LGE,Y,50%
10058009,REED SPECIALIST RECRUITMENT LTD,766.64,Financial Servs,Agency Staff,16-Jun-23,2324/03,LGE,Y,50%
10057307,TELEFONICA UK LIMITED - O2,305.67,ICT,Telephone Costs,27-May-23,2324/03,LGE,Y,50%
10058054,TELEFONICA UK LIMITED - O2,304,ICT,Telephone Costs,27-Jun-23,2324/03,LGE,Y,50%
10057450,LEX AUTOLEASE,323.02,Building Services,Lease Cars - Payment,29-May-23,2324/03,SME,Y,50%
10057451,LEX AUTOLEASE,304.25,Building Services,Lease Cars - Payment,29-May-23,2324/03,SME,Y,50%
10057452,LEX AUTOLEASE,365.95,Building Services,Lease Cars - Payment,29-May-23,2324/03,SME,Y,50%
10057454,LEX AUTOLEASE,365.95,Building Services,Lease Cars - Payment,29-May-23,2324/03,SME,Y,50%
10057666,LEX AUTOLEASE,376.73,Building Services,Lease Cars - Payment,04-Jun-23,2324/03,SME,Y,50%
10057895,LEX AUTOLEASE,318.97,Building Services,Lease Cars - Payment,07-Jun-23,2324/03,SME,Y,50%
10057896,LEX AUTOLEASE,380.78,Building Services,Lease Cars - Payment,08-Jun-23,2324/03,SME,Y,50%
10057897,LEX AUTOLEASE,331.38,Building Services,Lease Cars - Payment,11-Jun-23,2324/03,SME,Y,50%
10057898,LEX AUTOLEASE,311.43,Building Services,Lease Cars - Payment,11-Jun-23,2324/03,SME,Y,50%
10057899,LEX AUTOLEASE,324.97,Building Services,Lease Cars - Payment,11-Jun-23,2324/03,SME,Y,50%
10057900,LEX AUTOLEASE,355.2,Building Services,Lease Cars - Payment,11-Jun-23,2324/03,SME,Y,50%
10057901,LEX AUTOLEASE,328.72,Building Services,Lease Cars - Payment,11-Jun-23,2324/03,SME,Y,50%
10057902,LEX AUTOLEASE,346.16,Building Services,Lease Cars - Payment,11-Jun-23,2324/03,SME,Y,50%
10057903,LEX AUTOLEASE,336.11,Building Services,Lease Cars - Payment,11-Jun-23,2324/03,SME,Y,50%
10057684,CIVICA UK LIMITED,731.43,Lettings & Allocations,Contracted Services,31-May-23,2324/03,LGE,N,
10057282,HARWICH HARBOUR FERRY SERVICES LTD,"1,000.00",Visitor Economy,Grants,27-Jan-23,2324/03,SME,N,
10057165,SUDBURY & DISTRICT CAB,"36,750.00",Grants & Contrbns,Grants,24-May-23,2324/03,SME,N,
10057040,GREENWAYS COUNTRYSIDE PROJECT,"5,500.00",Open Spaces,Contracted Services,16-May-23,2324/03,SME,N,
10057041,GREENWAYS COUNTRYSIDE PROJECT,"5,700.00",Open Spaces,Contracted Services,16-May-23,2324/03,SME,N,
10057303,WHYBROW PROPERTY SOLUTIONS LTD,"7,335.49",Council House Adaptions,Improvements,26-May-23,2324/03,SME,N,
10057304,WHYBROW PROPERTY SOLUTIONS LTD,"9,135.40",Voids Maintenance,Repairs,26-May-23,2324/03,SME,N,
10057305,WHYBROW PROPERTY SOLUTIONS LTD,"5,000.00",Voids Maintenance,Repairs,17-May-23,2324/03,SME,N,
10057329,WHYBROW PROPERTY SOLUTIONS LTD,"2,355.88",Voids Maintenance,Repairs,26-May-23,2324/03,SME,N,
10057706,WHYBROW PROPERTY SOLUTIONS LTD,"5,928.47",Council House Adaptions,Improvements,08-Jun-23,2324/03,SME,N,
10057844,WHYBROW PROPERTY SOLUTIONS LTD,"7,000.00",Major Imps,Repairs,15-Jun-23,2324/03,SME,N,
10057845,WHYBROW PROPERTY SOLUTIONS LTD,488.92,Building Services,Repairs,15-Jun-23,2324/03,SME,N,
10057852,WHYBROW PROPERTY SOLUTIONS LTD,"13,868.09",Major Imps,Repairs,08-Jun-23,2324/03,SME,N,
10057853,WHYBROW PROPERTY SOLUTIONS LTD,"7,000.00",Major Imps,Repairs,08-Jun-23,2324/03,SME,N,
10057909,WHYBROW PROPERTY SOLUTIONS LTD,"10,000.00",Major Imps,Repairs,19-Jun-23,2324/03,SME,N,
10057910,WHYBROW PROPERTY SOLUTIONS LTD,"1,084.05",Major Imps,Repairs,19-Jun-23,2324/03,SME,N,
10057943,WHYBROW PROPERTY SOLUTIONS LTD,863,Roads and Paths,Prof & Consultancy Fees,15-Jun-23,2324/03,SME,N,
10057954,WHYBROW PROPERTY SOLUTIONS LTD,297,Voids Maintenance,Repairs,21-Jun-23,2324/03,SME,N,
10056984,L A C CLEANING CONTRACTORS LIMITED,"1,345.50",Voids Maintenance,Repairs,15-May-23,2324/03,SME,N,
10057007,L A C CLEANING CONTRACTORS LIMITED,"1,335.50",Voids Maintenance,Repairs,16-May-23,2324/03,SME,N,
10057008,L A C CLEANING CONTRACTORS LIMITED,648.48,Sheltered Accommodation,Contracted Services,23-Jan-23,2324/03,SME,N,
10057193,L A C CLEANING CONTRACTORS LIMITED,415.5,Temporary Accommodation,General Cleaning,24-May-23,2324/03,SME,N,
10057194,L A C CLEANING CONTRACTORS LIMITED,825.5,Other Temp Accommodation,General Cleaning,24-May-23,2324/03,SME,N,
10057212,L A C CLEANING CONTRACTORS LIMITED,962.7,Wenham Depot TDP,General Cleaning,23-May-23,2324/03,SME,Y,50%
10057386,L A C CLEANING CONTRACTORS LIMITED,869.5,Voids Maintenance,Repairs,01-Jun-23,2324/03,SME,N,
10057555,L A C CLEANING CONTRACTORS LIMITED,"2,495.50",Voids Maintenance,Repairs,05-Jun-23,2324/03,SME,N,
10057849,L A C CLEANING CONTRACTORS LIMITED,691.77,Sheltered Accommodation,Contracted Services,24-Apr-23,2324/03,SME,N,
10057850,L A C CLEANING CONTRACTORS LIMITED,691.77,Sheltered Accommodation,Contracted Services,23-May-23,2324/03,SME,N,
10057979,L A C CLEANING CONTRACTORS LIMITED,415.5,Voids Maintenance,Repairs,23-Jun-23,2324/03,SME,N,
10057751,RA INFORMATION SYSTEMS ,"4,413.00",Public Tree Programme,Tree felling/maintenance,12-Jun-23,2324/03,SME,N,
10057544,ARMSTRONG YORK ASBESTOS ENVIRONMENTAL,"13,285.68",Asbestos Survey & Reinspection,Prof & Consultancy Fees,31-May-23,2324/03,SME,N,
10057584,ARMSTRONG YORK ASBESTOS ENVIRONMENTAL,"11,647.16",Asbestos Survey & Reinspection,Prof & Consultancy Fees,28-Apr-23,2324/03,SME,N,
10057110,DMP TRAINING (UK),344,Street & Major Road Cleansing,Training,15-May-23,2324/03,SME,N,
10057384,TRADITION (UK) LTD,517.81,Treasury Management,Prof & Consultancy Fees,31-May-23,2324/03,LGE,N,
10057681,STOWE VETERINARY GROUP,"1,087.49",Animal Welfare Licensing,Prof & Consultancy Fees,18-May-23,2324/03,SME,N,
10057247,CONCERTUS DESIGN & PROPERTY CONSULTANTS,385,Public Conveniences,Repairs,28-Apr-23,2324/03,SME,N,
10057622,LANGUAGE LINE SOLUTIONS,283.5,Homelessness Private Sector,Prof & Consultancy Fees,31-May-23,2324/03,LGE,N,
10057514,TAYLOR COMMERCIALS LTD,"2,476.39",Open Spaces,Plant & Vehicle - Other costs,02-Jun-23,2324/03,SME,N,
10057510,CARTER JONAS LLP,"4,000.00",Assets & Development,Prof & Consultancy Fees,22-Dec-22,2324/03,LGE,N,
10057518,OPUS PEOPLE SOLUTIONS LTD,371.25,Climate Change and Sustainabil,Agency Staff,01-Jun-23,2324/03,SME,N,
10057518,OPUS PEOPLE SOLUTIONS LTD,395.56,Health & Safety,Agency Staff,01-Jun-23,2324/03,SME,N,
10057518,OPUS PEOPLE SOLUTIONS LTD,352.13,Building Services,Agency Staff,01-Jun-23,2324/03,SME,N,
10057518,OPUS PEOPLE SOLUTIONS LTD,68.28,Devt Management -Applications,Agency Staff,01-Jun-23,2324/03,SME,N,
10057703,OPUS PEOPLE SOLUTIONS LTD,495,Climate Change and Sustainabil,Agency Staff,08-Jun-23,2324/03,SME,N,
10057703,OPUS PEOPLE SOLUTIONS LTD,197.78,Health & Safety,Agency Staff,08-Jun-23,2324/03,SME,N,
10057703,OPUS PEOPLE SOLUTIONS LTD,615.07,Homeless Prevention Fund,Agency Staff,08-Jun-23,2324/03,SME,N,
10057703,OPUS PEOPLE SOLUTIONS LTD,136.56,Devt Management -Applications,Agency Staff,08-Jun-23,2324/03,SME,N,
10057846,OPUS PEOPLE SOLUTIONS LTD,804.38,Climate Change and Sustainabil,Agency Staff,15-Jun-23,2324/03,SME,N,
10057846,OPUS PEOPLE SOLUTIONS LTD,197.78,Health & Safety,Agency Staff,15-Jun-23,2324/03,SME,N,
10057846,OPUS PEOPLE SOLUTIONS LTD,156.76,Devt Management -Applications,Agency Staff,15-Jun-23,2324/03,SME,N,
10057846,OPUS PEOPLE SOLUTIONS LTD,335.63,Homeless Prevention Fund,Agency Staff,15-Jun-23,2324/03,SME,N,
10057846,OPUS PEOPLE SOLUTIONS LTD,70.42,Building Services,Agency Staff,15-Jun-23,2324/03,SME,N,
10058013,OPUS PEOPLE SOLUTIONS LTD,"1,197.00",Organisational Devt,Agency Staff,22-Jun-23,2324/03,SME,N,
10058013,OPUS PEOPLE SOLUTIONS LTD,742.5,Climate Change and Sustainabil,Agency Staff,22-Jun-23,2324/03,SME,N,
10058013,OPUS PEOPLE SOLUTIONS LTD,269.7,Health & Safety,Agency Staff,22-Jun-23,2324/03,SME,N,
10058013,OPUS PEOPLE SOLUTIONS LTD,571.69,Devt Management -Applications,Agency Staff,22-Jun-23,2324/03,SME,N,
10058013,OPUS PEOPLE SOLUTIONS LTD,687,Homeless Prevention Fund,Agency Staff,22-Jun-23,2324/03,SME,N,
10058013,OPUS PEOPLE SOLUTIONS LTD,323.96,Building Services,Agency Staff,22-Jun-23,2324/03,SME,N,
10057762,CORNERSTONE BARRISTERS,"2,000.00","Alc,Ents&Late Night Refreshmt",Misc Legal Expenses,12-Jun-23,2324/03,SME,N,
10056382,VERTAS GROUP LTD,"19,043.54",Central Postal Serv,Postage,19-Apr-23,2324/03,SME,Y,50%
10057381,VERTAS GROUP LTD,"12,846.75",Central Postal Serv,Postage,18-May-23,2324/03,SME,Y,50%
10057148,COLLINS SKIP HIRE,825,Building Services,Waste Disposal,22-May-23,2324/03,SME,Y,50%
10057414,COLLINS SKIP HIRE,275,Building Services,Waste Disposal,31-May-23,2324/03,SME,Y,50%
10057748,COLLINS SKIP HIRE,550,Building Services,Waste Disposal,12-Jun-23,2324/03,SME,Y,50%
10057867,COLLINS SKIP HIRE,550,Building Services,Waste Disposal,19-Jun-23,2324/03,SME,Y,50%
10057635,4PRINCIPLES CONSTRUCTION LTD,"7,126.87",Mand Disabled Facilities Grant,Grants,08-Jun-23,2324/03,SME,N,
10057524,PENNA PLC,"4,620.00",Management Team,Agency Staff,02-Jun-23,2324/03,SME,Y,50%
10057525,PENNA PLC,"11,160.00",Management Team,Agency Staff,02-Jun-23,2324/03,SME,Y,50%
10057721,FROST AND PARTNERS,"1,100.00",Homes for Ukraine,Rent Payable,13-Jun-23,2324/03,SME,N,
10057937,SUFFOLK MARKET EVENTS,937.5,RHSSF,Prof & Consultancy Fees,21-Jun-23,2324/03,SME,N,
10057974,SUFFOLK MARKET EVENTS,682.5,Hadleigh Market,Contracted Services,21-Jun-23,2324/03,SME,N,
10057904,SAVILLS,750,Assets & Development,Prof & Consultancy Fees,08-Jun-23,2324/03,SME,N,
10057230,ADVANCE SUPPLIES,310.25,Sheltered Accommodation,Cleaning Materials,23-May-23,2324/03,SME,N,
10057347,HAYS SPECIALIST RECRUITMENT LTD,539.37,Pld Maint/Enhncmts-Corp Bldgs,Agency Staff,26-May-23,2324/03,LGE,Y,50%
10057352,HAYS SPECIALIST RECRUITMENT LTD,"3,540.00",Financial Servs,Agency Staff,30-May-23,2324/03,LGE,Y,50%
10057353,HAYS SPECIALIST RECRUITMENT LTD,"2,023.90",Financial Servs,Recruitment,30-May-23,2324/03,LGE,Y,50%
10057370,HAYS SPECIALIST RECRUITMENT LTD,"1,492.26",Pld Maint/Enhncmts-Corp Bldgs,Agency Staff,30-May-23,2324/03,LGE,Y,50%
10057430,HAYS SPECIALIST RECRUITMENT LTD,"1,826.85",ICT - Finance System,Agency Staff,31-May-23,2324/03,LGE,Y,50%
10057595,HAYS SPECIALIST RECRUITMENT LTD,"1,198.60",Pld Maint/Enhncmts-Corp Bldgs,Agency Staff,06-Jun-23,2324/03,LGE,Y,50%
10057596,HAYS SPECIALIST RECRUITMENT LTD,"3,540.00",Financial Servs,Agency Staff,06-Jun-23,2324/03,LGE,Y,50%
10057614,HAYS SPECIALIST RECRUITMENT LTD,"1,461.48",ICT - Finance System,Agency Staff,07-Jun-23,2324/03,LGE,Y,50%
10057763,HAYS SPECIALIST RECRUITMENT LTD,"3,540.00",Financial Servs,Agency Staff,12-Jun-23,2324/03,LGE,Y,50%
10057764,HAYS SPECIALIST RECRUITMENT LTD,874.98,Pld Maint/Enhncmts-Corp Bldgs,Agency Staff,12-Jun-23,2324/03,LGE,Y,50%
10057881,HAYS SPECIALIST RECRUITMENT LTD,"3,540.00",Financial Servs,Agency Staff,19-Jun-23,2324/03,LGE,Y,50%
10057882,HAYS SPECIALIST RECRUITMENT LTD,"1,114.70",Pld Maint/Enhncmts-Corp Bldgs,Agency Staff,19-Jun-23,2324/03,LGE,Y,50%
10057955,HAYS SPECIALIST RECRUITMENT LTD,"1,461.48",ICT - Finance System,Agency Staff,21-Jun-23,2324/03,LGE,Y,50%
10057785,NORTHERN HOUSING CONSORTIUM,"1,351.50",HRA Strategic Property,Subscriptions,18-Apr-23,2324/03,SME,N,
10057422,THE STOWMARKET GLASS COMPANY LTD,520,Building Services,Repairs,02-May-23,2324/03,SME,N,
10057423,THE STOWMARKET GLASS COMPANY LTD,"1,365.00",Building Services,Repairs,03-May-23,2324/03,SME,N,
10057468,THE STOWMARKET GLASS COMPANY LTD,549.9,Building Services,Repairs,31-May-23,2324/03,SME,N,
10057472,THE STOWMARKET GLASS COMPANY LTD,455,Building Services,Repairs,31-May-23,2324/03,SME,N,
10057473,THE STOWMARKET GLASS COMPANY LTD,"1,560.00",Building Services,Repairs,31-May-23,2324/03,SME,N,
10057474,THE STOWMARKET GLASS COMPANY LTD,"2,275.00",Building Services,Repairs,18-May-23,2324/03,SME,N,
10057478,THE STOWMARKET GLASS COMPANY LTD,"1,947.60",Building Services,Repairs,18-May-23,2324/03,SME,N,
10057479,THE STOWMARKET GLASS COMPANY LTD,655.2,Building Services,Repairs,18-May-23,2324/03,SME,N,
10057487,THE STOWMARKET GLASS COMPANY LTD,735.65,Building Services,Repairs,05-May-23,2324/03,SME,N,
10057493,THE STOWMARKET GLASS COMPANY LTD,715,Building Services,Repairs,10-May-23,2324/03,SME,N,
10057494,THE STOWMARKET GLASS COMPANY LTD,497.44,Building Services,Repairs,11-May-23,2324/03,SME,N,
10057498,THE STOWMARKET GLASS COMPANY LTD,"2,407.15",Building Services,Repairs,11-May-23,2324/03,SME,N,
10057699,THE STOWMARKET GLASS COMPANY LTD,312.21,Building Services,Repairs,19-Apr-23,2324/03,SME,N,
10057372,ASPECT CONTRACTS LTD,"5,885.00",Asbestos,Improvements,18-May-23,2324/03,LGE,N,
10057716,ASPECT CONTRACTS LTD,"7,572.00",Asbestos,Improvements,31-May-23,2324/03,LGE,N,
10057987,FENLAND LEISURE PRODUCTS LTD,"1,383.92",Open Spaces,"Equipment, Tools & Materials",22-Jun-23,2324/03,SME,N,
10057746,TRANSDEC TRANSPORT LTD,"2,790.00",Regen Fund - HQ Sites,Removal Expenses,07-Mar-23,2324/03,SME,Y,50%
20028550,RIX PETROLEUM (EAST ANGLIA) LTD,"1,103.80",Open Spaces,Plant & Vehicle Fuel,02-Jun-23,2324/03,SME,Y,50%
10057767,STORETEC SERVICES LTD,972.38,ICT,"Equipment, Tools & Materials",31-May-23,2324/03,SME,Y,50%
10057521,GIPPING OCCUPATIONAL HEALTH LTD,"1,084.50",Health & Safety,Contracted Services,28-Apr-23,2324/03,SME,Y,50%
10057653,GIPPING OCCUPATIONAL HEALTH LTD,392.56,Health & Safety,Contracted Services,06-Jun-23,2324/03,SME,Y,50%
10057654,GIPPING OCCUPATIONAL HEALTH LTD,291.56,Health & Safety,Contracted Services,06-Jun-23,2324/03,SME,N,
10057719,GIPPING OCCUPATIONAL HEALTH LTD,483.05,Health & Safety,Contracted Services,06-Jun-23,2324/03,SME,Y,50%
10057407,AIRMAX REMOTE LTD,459.61,Building Services,Plant & Vehicle - Other costs,31-May-23,2324/03,SME,Y,50%
10058028,DOCUSIGN INC,"15,289.56",Tenancy Services,Line of Business Applications,14-Jun-23,2324/03,SME,Y,50%
10057971,WS TRAINING LTD,"12,280.00",HRA General Management,Training,22-Jun-23,2324/03,SME,Y,50%
10057551,RESIDENTIALLY CHARTERED SURVEYORS,400,Waldingfield Rd S106 Andersons,Prof & Consultancy Fees,03-May-23,2324/03,SME,N,
10057731,TOP FLOORS (EAST ANGLIA) LTD,892.35,Other Temp Accommodation,"Equipment, Tools & Materials",31-May-23,2324/03,SME,N,
10057991,TOP FLOORS (EAST ANGLIA) LTD,515.47,Other Temp Accommodation,"Equipment, Tools & Materials",21-Jun-23,2324/03,SME,N,
10057857,SUDBURYS,440,Guaranteed Rent Scheme,Rent Payable,19-Jun-23,2324/03,SME,N,
10057580,WILLIAM H BROWN ESTATE AGENTS - SUDBURY,925,Guaranteed Rent Scheme,Rent Payable,05-Jun-23,2324/03,SME,N,
10057713,WILLIAM H BROWN ESTATE AGENTS - SUDBURY,775,Guaranteed Rent Scheme,Rent Payable,12-Jun-23,2324/03,SME,N,
10057383,ACTIVLIVES,"9,990.00",Grow Your Community,Contributions & Donations,31-May-23,2324/03,SME,N,
10057547,MTM PLANT AND SALES LTD,700,Open Spaces,Horticultural Purchases,31-May-23,2324/03,SME,N,
10058027,ABBEYCROFT LEISURE,"1,757.32",Holiday Activity Funding,"Equipment, Tools & Materials",27-Jun-23,2324/03,LGE,N,
10057519,BELLWAY HOMES LIMITED (ESSEX DIVISION),"7,047.63",Bourne Hill Wherstead S106 acq,Prof & Consultancy Fees,12-May-23,2324/03,LGE,N,
10057266,EARTH ANCHORS LTD,338,Sheltered General Mgmt,Furniture,19-May-23,2324/03,SME,N,
10057267,EARTH ANCHORS LTD,290,Sheltered General Mgmt,Furniture,26-May-23,2324/03,SME,N,
10057662,A C LEIGH (NORWICH) LTD,343.84,Building Services,"Equipment, Tools & Materials",09-Jun-23,2324/03,SME,N,
10057776,A C LEIGH (NORWICH) LTD,712.92,Building Services,"Equipment, Tools & Materials",08-Jun-23,2324/03,SME,N,
10057778,A C LEIGH (NORWICH) LTD,300.56,Building Services,"Equipment, Tools & Materials",09-Jun-23,2324/03,SME,N,
10057821,SUFFOLK POWER EQUIPMENT,928.93,Open Spaces,Plant & Vehicle - Other costs,10-Jun-23,2324/03,ST,N,
10057822,SUFFOLK POWER EQUIPMENT,880.74,Open Spaces,Plant & Vehicle - Other costs,10-Jun-23,2324/03,ST,N,
10057823,SUFFOLK POWER EQUIPMENT,825.98,Open Spaces,Plant & Vehicle - Other costs,10-Jun-23,2324/03,ST,N,
10057824,SUFFOLK POWER EQUIPMENT,796.58,Open Spaces,Plant & Vehicle - Other costs,10-Jun-23,2324/03,ST,N,
10057825,SUFFOLK POWER EQUIPMENT,754.87,Open Spaces,Plant & Vehicle - Other costs,10-Jun-23,2324/03,ST,N,
10057826,SUFFOLK POWER EQUIPMENT,598.9,Open Spaces,Plant & Vehicle - Other costs,10-Jun-23,2324/03,ST,N,
10057828,SUFFOLK POWER EQUIPMENT,749.64,Open Spaces,Plant & Vehicle - Other costs,10-Jun-23,2324/03,ST,N,
10057367,EDMUNDSON ELECTRICAL LTD (IPSWICH),381.16,Building Services,"Equipment, Tools & Materials",26-May-23,2324/03,LGE,N,
10057369,EDMUNDSON ELECTRICAL LTD (IPSWICH),536.38,Building Services,"Equipment, Tools & Materials",26-May-23,2324/03,LGE,N,
10057658,EDMUNDSON ELECTRICAL LTD (IPSWICH),285.87,Building Services,"Equipment, Tools & Materials",31-May-23,2324/03,LGE,N,
10057659,EDMUNDSON ELECTRICAL LTD (IPSWICH),334.31,Building Services,"Equipment, Tools & Materials",07-Jun-23,2324/03,LGE,N,
10057660,EDMUNDSON ELECTRICAL LTD (IPSWICH),733.68,Building Services,"Equipment, Tools & Materials",07-Jun-23,2324/03,LGE,N,
10057536,WEST SUFFOLK COUNCIL,"43,767.41",Community Safety-General,Contributions & Donations,03-Apr-23,2324/03,LGE,N,
10057335,EAST SUFFOLK COUNCIL,"2,500.00",Independent Living Service,Contributions & Donations,24-May-23,2324/03,LGE,N,
10057513,STAGE EVENT SECURITY LTD,"1,581.00",Open Spaces,Contracted Services,06-Feb-23,2324/03,SME,N,
10057320,HUGHES TRADE,282.41,Other Temp Accommodation,Furniture,14-Apr-23,2324/03,LGE,N,
10057586,HUGHES TRADE,265.81,Other Temp Accommodation,Furniture,06-Jun-23,2324/03,LGE,N,
10057833,HUGHES TRADE,252.04,Other Temp Accommodation,Furniture,16-Jun-23,2324/03,LGE,N,
10057486,APTL ENTERPRISES LTD,"5,506.67",PV Panels,Contracted Services,31-May-23,2324/03,SME,N,
10057492,APTL ENTERPRISES LTD,"5,506.67",PV Panels,Contracted Services,30-Apr-23,2324/03,SME,N,
10057782,APTL ENTERPRISES LTD,"11,800.00",PV Panels,Contracted Services,31-May-23,2324/03,SME,N,
10057621,WASHCO LTD,277.45,Sheltered Accommodation,Repairs,07-Jun-23,2324/03,SME,N,
10056389,ANGLIA COMMERCIAL FLOORING LTD,"2,068.33",Voids Maintenance,Repairs,11-Apr-23,2324/03,SME,N,
10057355,ANGLIA COMMERCIAL FLOORING LTD,551.5,Building Services,Repairs,31-May-23,2324/03,SME,N,
10057600,ANGLIA COMMERCIAL FLOORING LTD,491.65,Building Services,Repairs,31-May-23,2324/03,SME,N,
10057616,ANGLIA COMMERCIAL FLOORING LTD,486.05,Voids Maintenance,Repairs,31-May-23,2324/03,SME,N,
10057617,ANGLIA COMMERCIAL FLOORING LTD,403.82,Voids Maintenance,Repairs,31-May-23,2324/03,SME,N,
10057618,ANGLIA COMMERCIAL FLOORING LTD,281.95,Voids Maintenance,Repairs,31-May-23,2324/03,SME,N,
10057619,ANGLIA COMMERCIAL FLOORING LTD,769.61,Voids Maintenance,Repairs,18-May-23,2324/03,SME,N,
10057926,ANGLIA COMMERCIAL FLOORING LTD,281.95,Building Services,Repairs,21-Jun-23,2324/03,SME,N,
10057929,ANGLIA COMMERCIAL FLOORING LTD,907.9,Voids Maintenance,Repairs,12-Jun-23,2324/03,SME,N,
10057930,ANGLIA COMMERCIAL FLOORING LTD,921.89,Voids Maintenance,Repairs,12-Jun-23,2324/03,SME,N,
20028544,ANGLIAN WATER BUS (NAT) LTD T/A WAVE,16.61,Belle Vue House,Water Rates - Metered,12-Jun-23,2324/03,LGE,N,
20028544,ANGLIAN WATER BUS (NAT) LTD T/A WAVE,393.5,C Parks General,Water Rates - Metered,12-Jun-23,2324/03,LGE,N,
20028544,ANGLIAN WATER BUS (NAT) LTD T/A WAVE,749.03,Chilton Depot,Water Rates - Metered,12-Jun-23,2324/03,LGE,Y,50%
20028544,ANGLIAN WATER BUS (NAT) LTD T/A WAVE,5.9,Friars Meadow Sudb,Water Rates - Metered,12-Jun-23,2324/03,LGE,N,
20028544,ANGLIAN WATER BUS (NAT) LTD T/A WAVE,147.32,General Rechargeable Works,Misc Supplies & Services Costs,12-Jun-23,2324/03,LGE,N,
20028544,ANGLIAN WATER BUS (NAT) LTD T/A WAVE,166.17,HQ Energy,Water Rates - Metered,12-Jun-23,2324/03,LGE,N,
20028544,ANGLIAN WATER BUS (NAT) LTD T/A WAVE,731.3,Public Conveniences,Water Rates - Metered,12-Jun-23,2324/03,LGE,N,
20028544,ANGLIAN WATER BUS (NAT) LTD T/A WAVE,"7,703.74",Sheltered Accommodation,Water Rates - Metered,12-Jun-23,2324/03,LGE,N,
20028544,ANGLIAN WATER BUS (NAT) LTD T/A WAVE,54,Sheltered Accommodation,Water Rates - Unmetered,12-Jun-23,2324/03,LGE,N,
20028544,ANGLIAN WATER BUS (NAT) LTD T/A WAVE,711.02,Temporary Accommodation,Water Rates - Metered,12-Jun-23,2324/03,LGE,N,
20028544,ANGLIAN WATER BUS (NAT) LTD T/A WAVE,158.93,Temporary Accommodation,Water Rates - Other Charges,12-Jun-23,2324/03,LGE,N,
20028544,ANGLIAN WATER BUS (NAT) LTD T/A WAVE,239.06,Tenancy Services,Water Rates - Metered,12-Jun-23,2324/03,LGE,N,
20028555,PARKYNS LETTINGS BURY ST EDMUNDS,"1,421.00",Guaranteed Rent Scheme,Rent Payable,22-Jun-23,2324/03,SME,N,
20028555,PARKYNS LETTINGS BURY ST EDMUNDS,250,Guaranteed Rent Scheme,Misc Supplies & Services Costs,22-Jun-23,2324/03,SME,N,
10057401,STUDLEY CAPITAL LIMITED,"2,850.00",Hamilton Road Regeneration,Prof & Consultancy Fees,01-Jun-23,2324/03,ST,N,
10057408,GREENACRE RECRUITMENT LTD,"2,400.00",Building Services,Agency Staff,01-Jun-23,2324/03,SME,N,
10057409,GREENACRE RECRUITMENT LTD,"2,780.00",Building Services,Agency Staff,01-Jun-23,2324/03,SME,Y,50%
10057410,GREENACRE RECRUITMENT LTD,"1,256.55",Building Services,Agency Staff,01-Jun-23,2324/03,SME,Y,50%
10057411,GREENACRE RECRUITMENT LTD,"1,368.00",Building Services,Agency Staff,01-Jun-23,2324/03,SME,Y,50%
10057412,GREENACRE RECRUITMENT LTD,"4,202.25",Management Team,Agency Staff,01-Jun-23,2324/03,SME,Y,50%
10057637,GREENACRE RECRUITMENT LTD,"1,500.00",HRA General Management,Prof & Consultancy Fees,08-Jun-23,2324/03,SME,Y,50%
10057645,GREENACRE RECRUITMENT LTD,"3,282.10",Management Team,Agency Staff,08-Jun-23,2324/03,SME,Y,50%
10057646,GREENACRE RECRUITMENT LTD,"1,476.00",Building Services,Agency Staff,08-Jun-23,2324/03,SME,Y,50%
10057647,GREENACRE RECRUITMENT LTD,"1,200.00",Building Services,Agency Staff,08-Jun-23,2324/03,SME,Y,50%
10057648,GREENACRE RECRUITMENT LTD,"2,780.00",Building Services,Agency Staff,08-Jun-23,2324/03,SME,Y,50%
10057649,GREENACRE RECRUITMENT LTD,"1,920.00",Building Services,Agency Staff,08-Jun-23,2324/03,SME,Y,50%
10057750,GREENACRE RECRUITMENT LTD,"1,500.00",HRA General Management,Prof & Consultancy Fees,25-May-23,2324/03,SME,Y,50%
10057792,GREENACRE RECRUITMENT LTD,"1,422.00",Building Services,Agency Staff,14-Jun-23,2324/03,SME,Y,50%
10057793,GREENACRE RECRUITMENT LTD,450,Building Services,Agency Staff,14-Jun-23,2324/03,SME,Y,50%
10057794,GREENACRE RECRUITMENT LTD,"3,475.00",Building Services,Agency Staff,14-Jun-23,2324/03,SME,Y,50%
10057795,GREENACRE RECRUITMENT LTD,"2,443.65",Building Services,Agency Staff,14-Jun-23,2324/03,SME,Y,50%
10057796,GREENACRE RECRUITMENT LTD,"3,795.40",HRA General Management,Agency Staff,14-Jun-23,2324/03,SME,Y,50%
10057914,GREENACRE RECRUITMENT LTD,"3,452.90",HRA General Management,Agency Staff,21-Jun-23,2324/03,SME,Y,50%
10057915,GREENACRE RECRUITMENT LTD,"2,400.00",Building Services,Agency Staff,21-Jun-23,2324/03,SME,Y,50%
10057916,GREENACRE RECRUITMENT LTD,"3,475.00",Building Services,Agency Staff,21-Jun-23,2324/03,SME,Y,50%
10057918,GREENACRE RECRUITMENT LTD,"1,152.00",Building Services,Agency Staff,21-Jun-23,2324/03,SME,Y,50%
10057873,STUTTON COMMUNITY ASSOCIATION,"18,000.00",CIL Funded REFCUS,Grants,19-Jun-23,2324/03,SME,N,
10057228,SUDBURY - BAPTIST CHURCH,350,Elections,Misc Supplies & Services Costs,25-May-23,2324/03,SME,N,
10057428,TIAA LTD,"5,000.00",Internal Audit,Contracted Services,31-May-23,2324/03,SME,Y,50%
10057515,TIAA LTD,"5,000.00",Internal Audit,Contracted Services,02-Jun-23,2324/03,SME,Y,50%
10058045,BYCHOICE LTD,950,Guaranteed Rent Scheme,Rent Payable,26-Jun-23,2324/03,SME,N,
10057609,LAND USE CONSULTANTS LTD,"3,500.00",Nghbrhd Plan Designations,Prof & Consultancy Fees,07-Jun-23,2324/03,SME,N,
10057354,P & P PROPERTY MAINTENANCE,"6,950.00",Mand Disabled Facilities Grant,Grants,31-May-23,2324/03,SME,N,
10057884,MAN WITH A VAN SUDBURY,320,Homeless Prevention Fund,Removal Expenses,16-Jun-23,2324/03,SME,N,
10057923,REEFER PROPERTIES LTD,695,Guaranteed Rent Scheme,Rent Payable,21-Jun-23,2324/03,SME,N,
10058050,REEFER PROPERTIES LTD,695,Guaranteed Rent Scheme,Rent Payable,26-Jun-23,2324/03,SME,N,
10057725,OCN CONTRACTS,"1,290.00",Other Temp Accommodation,Furniture,08-Jun-23,2324/03,SME,Y,50%
10056685,WADDINGTON BROWN LTD,"1,105.28",Organisational Devt,Agency Staff,02-May-23,2324/03,SME,Y,50%
10056827,WADDINGTON BROWN LTD,879.2,Organisational Devt,Agency Staff,09-May-23,2324/03,SME,Y,50%
10057587,WADDINGTON BROWN LTD,502.4,Organisational Devt,Agency Staff,05-Jun-23,2324/03,SME,Y,50%
10058049,PRIVATE LANDLORD,515,Guaranteed Rent Scheme,Rent Payable,26-Jun-23,2324/03,ST,N,
10057673,PRIVATE LANDLORD,675,Guaranteed Rent Scheme,Rent Payable,12-Jun-23,2324/03,ST,N,
10057856,PRIVATE LANDLORD,700,Guaranteed Rent Scheme,Rent Payable,19-Jun-23,2324/03,ST,N,
10057877,PRIVATE LANDLORD,"1,198.00",Guaranteed Rent Scheme,Rent Payable,19-Jun-23,2324/03,ST,N,
10057752,BUCHER MUNICIPAL LTD,818.48,Street & Major Road Cleansing,Plant & Vehicle - Other costs,05-Jun-23,2324/03,LGE,Y,50%
10057976,PLUG-N-GO-LIMITED,412.47,Climate Change and Sustainabil,Contracted Services,31-Mar-23,2324/03,SME,N,
10057680,PAUL WRIGHT & CO,500,Guaranteed Rent Scheme,Rent Payable,12-Jun-23,2324/03,SME,N,
10057869,PRIVATE LANDLORD,550,Guaranteed Rent Scheme,Rent Payable,19-Jun-23,2324/03,ST,N,
10058048,PRIVATE LANDLORD,750,Guaranteed Rent Scheme,Rent Payable,26-Jun-23,2324/03,ST,N,
10057535,PRIVATE LANDLORD,490,Guaranteed Rent Scheme,Rent Payable,05-Jun-23,2324/03,ST,N,
10057561,PRIVATE LANDLORD,"1,320.00",Guaranteed Rent Scheme,Rent Payable,06-Jun-23,2324/03,ST,N,
10056703,SUFFOLK DOORS & WINDOWS LTD,"9,850.00",Building Services,Repairs,04-May-23,2324/03,SME,N,
10057183,SUFFOLK DOORS & WINDOWS LTD,"2,800.00",Building Services,Repairs,23-May-23,2324/03,SME,N,
10057323,SUFFOLK DOORS & WINDOWS LTD,450,Building Services,Repairs,26-May-23,2324/03,SME,N,
10057534,PRIVATE LANDLORD,786.5,Guaranteed Rent Scheme,Rent Payable,05-Jun-23,2324/03,ST,N,
10057678,PRIVATE LANDLORD,650,Guaranteed Rent Scheme,Rent Payable,12-Jun-23,2324/03,ST,N,
10056920,COUNTRYSTYLE RECYCLING LTD,400,Street & Major Road Cleansing,"Equipment, Tools & Materials",30-Apr-23,2324/03,SME,N,
10057439,COUNTRYSTYLE RECYCLING LTD,"4,596.24",Bring Sites,Contracted Services,31-May-23,2324/03,SME,N,
10057542,PRIVATE LANDLORD,750,Guaranteed Rent Scheme,Rent Payable,05-Jun-23,2324/03,ST,N,
10057679,PRIVATE LANDLORD,835,Guaranteed Rent Scheme,Rent Payable,12-Jun-23,2324/03,ST,N,
10057712,PRIVATE LANDLORD,880,Guaranteed Rent Scheme,Rent Payable,12-Jun-23,2324/03,ST,N,
10056831,ARAN INSULATION LTD,"3,162.48",Insulation Imps,Repairs,09-May-23,2324/03,SME,N,
10057186,ARAN INSULATION LTD,"4,121.84",Insulation Imps,Repairs,24-May-23,2324/03,SME,N,
10057931,P TUCKWELL LTD,790.14,Open Spaces,"Equipment, Tools & Materials",21-Jun-23,2324/03,SME,N,
10057880,PRIVATE LANDLORD,595,Guaranteed Rent Scheme,Rent Payable,19-Jun-23,2324/03,ST,N,
10054783,UK CENTRE FOR ECOLOGY & HYDROLOGY,"31,110.30",Devt Policy & Local Plans,Prof & Consultancy Fees,28-Dec-22,2324/03,SME,Y,50%
10058046,PRIVATE LANDLORD,575,Guaranteed Rent Scheme,Rent Payable,26-Jun-23,2324/03,ST,N,
10057221,URBA,"8,159.25",CIL,Prof & Consultancy Fees,24-May-23,2324/03,SME,Y,50%
10057879,E.ON NEXT,182.97,HRA Strategic Property,Electricity,17-Aug-22,2324/03,LGE,N,
10057879,E.ON NEXT,182.97,HRA Strategic Property,Gas,17-Aug-22,2324/03,LGE,N,
10057317,JACKSON LIFT SERVICES LTD,300,Sheltered Accommodation,Repairs,24-May-23,2324/03,LGE,N,
10057377,JACKSON LIFT SERVICES LTD,525,Sheltered Accommodation,Plant Maintenance,04-Apr-23,2324/03,LGE,N,
10057783,JACKSON LIFT SERVICES LTD,525,Sheltered Accommodation,Plant Maintenance,06-Jun-23,2324/03,LGE,N,
10057855,DAVID BURR LETTINGS,750,Guaranteed Rent Scheme,Rent Payable,19-Jun-23,2324/03,SME,N,
10057859,START AFRESH CLEANING LTD,"1,281.78",Open Spaces,Grounds & Site Maintenance,31-May-23,2324/03,SME,N,
10057674,PRIVATE LANDLORD,715,Guaranteed Rent Scheme,Rent Payable,12-Jun-23,2324/03,ST,N,
10057872,PRIVATE LANDLORD,500,Guaranteed Rent Scheme,Rent Payable,19-Jun-23,2324/03,ST,N,
10057601,ANGLIA SPORTS MANAGEMENT LTD,336.84,Holiday Activity Funding,"Equipment, Tools & Materials",06-Jun-23,2324/03,SME,N,
10057432,NAGELS UK LTD,685,C Parks General,"Equipment, Tools & Materials",01-Jun-23,2324/03,SME,N,
10057675,PRIVATE LANDLORD,675,Guaranteed Rent Scheme,Rent Payable,12-Jun-23,2324/03,ST,N,
10057541,PRIVATE LANDLORD,500,Guaranteed Rent Scheme,Rent Payable,05-Jun-23,2324/03,ST,N,
10057711,PRIVATE LANDLORD,650,Guaranteed Rent Scheme,Rent Payable,12-Jun-23,2324/03,ST,N,
10057860,PRIVATE LANDLORD,650,Guaranteed Rent Scheme,Rent Payable,19-Jun-23,2324/03,ST,N,
10057599,BELL CONTAINER TRADING LTD,695.27,Public Realm TransitionProject,"Equipment, Tools & Materials",26-May-23,2324/03,SME,N,
10058066,BELL CONTAINER TRADING LTD,672.85,Public Realm TransitionProject,"Equipment, Tools & Materials",26-Jun-23,2324/03,SME,N,
10057591,MINI WASTE LTD,262,Open Spaces,Waste Disposal,31-May-23,2324/03,SME,N,
10057636,MAXIM SPORTS COACHING,295,Holiday Activity Funding,"Equipment, Tools & Materials",08-Jun-23,2324/03,SME,N,
10057677,PRIVATE LANDLORD,725,Guaranteed Rent Scheme,Rent Payable,12-Jun-23,2324/03,ST,N,
10057413,NEC SOFTWARE SOLUTIONS UK LTD,"3,000.00",ICT,Contracted Services,31-May-23,2324/03,LGE,Y,50%
20028560,HAMILTON SMITH LETTINGS,670,Guaranteed Rent Scheme,Rent Payable,28-Jun-23,2324/03,SME,N,
10057543,JB PROPERTY SOLUTIONS (SUFFOLK) LTD T/A,455,Guaranteed Rent Scheme,Rent Payable,05-Jun-23,2324/03,SME,N,
10057714,KBM HOUSE SHARE & PROPERTY MANAGEMENT LT,600,Guaranteed Rent Scheme,Rent Payable,12-Jun-23,2324/03,SME,N,
10057248,PAY 360 LIMITED,"1,082.36",Bank Chgs,Bank Charges,09-May-23,2324/03,LGE,N,
10057249,PAY 360 LIMITED,"5,306.20",Bank Chgs,Bank Charges,12-May-23,2324/03,LGE,N,
10057691,PAY 360 LIMITED,"6,533.20",Bank Chgs,Bank Charges,08-Jun-23,2324/03,LGE,N,
10057886,PAY 360 LIMITED,"1,066.93",Bank Chgs,Bank Charges,06-Jun-23,2324/03,LGE,N,
10057702,PRIVATE LANDLORD,550,Guaranteed Rent Scheme,Rent Payable,12-Jun-23,2324/03,ST,N,
10057665,ESIA CONSULT LIMITED,"3,150.00",Devt Management -Applications,Environmental  Consultancy,09-Jun-23,2324/03,SME,N,
10057676,PRIVATE LANDLORD,750,Guaranteed Rent Scheme,Rent Payable,12-Jun-23,2324/03,ST,N,
10057871,PRIVATE LANDLORD,575,Guaranteed Rent Scheme,Rent Payable,19-Jun-23,2324/03,ST,N,
10057608,JPK TRADE SUPPLIES LTD,"1,400.00",Street & Major Road Cleansing,"Equipment, Tools & Materials",02-Jun-23,2324/03,SME,N,
10057375,EASTEC UK LTD,890,Open Spaces,Training,14-Feb-23,2324/03,SME,N,
10057376,EASTEC UK LTD,"3,580.00",Open Spaces,Training,31-Mar-23,2324/03,SME,N,
10057667,EASTEC UK LTD,465,Open Spaces,Training,09-Jun-23,2324/03,SME,N,
10057438,NEWSQUEST MEDIA GROUP,865.2,Devt Management -Applications,Advertising&mkting (non-staff),31-May-23,2324/03,LGE,N,
10057641,NEWSQUEST MEDIA GROUP,782.8,Devt Management -Applications,Advertising&mkting (non-staff),07-Jun-23,2324/03,LGE,N,
10057784,NEWSQUEST MEDIA GROUP,865.2,Devt Management -Applications,Advertising&mkting (non-staff),14-Jun-23,2324/03,LGE,N,
10057939,NEWSQUEST MEDIA GROUP,741.6,Devt Management -Applications,Advertising&mkting (non-staff),21-Jun-23,2324/03,LGE,N,
10058089,NEWSQUEST MEDIA GROUP,"1,030.00",Devt Management -Applications,Advertising&mkting (non-staff),28-Jun-23,2324/03,LGE,N,
10057420,BELL DECORATING GROUP LTD,"24,640.00",Insulation Imps,Repairs,31-May-23,2324/03,LGE,N,
10057749,BELL DECORATING GROUP LTD,"17,724.74",Planned Maint - Ext Painting,Major Contracts,31-May-23,2324/03,LGE,N,
10057309,J COOK CARPENTRY LTD,495,Sheltered Accommodation,Fire Prevention,27-May-23,2324/03,SME,N,
10057638,J COOK CARPENTRY LTD,295,Sheltered Accommodation,Fire Prevention,08-Jun-23,2324/03,SME,N,
10057723,FAITHORN FARRELL TIMMS,"8,000.00",Building Servs Tech Staff,Prof & Consultancy Fees,31-May-23,2324/03,SME,Y,50%
10056613,GCS COMPLIANCE LTD,"1,184.76",Building Services,Prof & Consultancy Fees,30-Apr-23,2324/03,SME,N,
10057556,GCS COMPLIANCE LTD,"1,972.46",Building Services,Prof & Consultancy Fees,31-May-23,2324/03,SME,N,
10057268,QODA CONSULTING LTD,300,Roads and Paths,Prof & Consultancy Fees,26-May-23,2324/03,SME,N,
10057861,SOCITM ADVISORY LTD,"32,762.00",ICT - Finance System,Contracted Services,16-Jun-23,2324/03,SME,Y,50%
10058002,SOCITM ADVISORY LTD,"35,578.00",ICT - Finance System,Contracted Services,11-Jun-23,2324/03,SME,Y,50%
10058002,SOCITM ADVISORY LTD,"11,513.00",ICT - Finance System,Contracted Services,11-Jun-23,2324/03,SME,Y,50%
10057887,GREENHALGH KERR,"1,532.00",Shared Revenues Partnership,Misc Supplies & Services Costs,31-May-23,2324/03,SME,N,
10057400,SCH SUPPLIES LTD,945,Open Spaces,Plant & Vehicle - Other costs,31-May-23,2324/03,SME,N,
10058047,PRIVATE LANDLORD,575,Guaranteed Rent Scheme,Rent Payable,26-Jun-23,2324/03,ST,N,
10057358,PRECISION RESOURCE GROUP LTD T/A PANORAM,"2,812.50",HRA Strategic Property,Agency Staff,31-May-23,2324/03,LGE,N,
10057390,PRECISION RESOURCE GROUP LTD T/A PANORAM,"2,100.00",Building Servs Tech Staff,Agency Staff,17-May-23,2324/03,LGE,Y,50%
10057415,PRECISION RESOURCE GROUP LTD T/A PANORAM,"2,250.00",HRA Strategic Property,Agency Staff,17-May-23,2324/03,LGE,Y,50%
10057426,PRECISION RESOURCE GROUP LTD T/A PANORAM,"1,875.00",Building Servs Tech Staff,Agency Staff,31-May-23,2324/03,LGE,Y,50%
10057427,PRECISION RESOURCE GROUP LTD T/A PANORAM,"2,700.00",Building Servs Tech Staff,Agency Staff,31-May-23,2324/03,LGE,Y,50%
10057527,PRECISION RESOURCE GROUP LTD T/A PANORAM,"1,875.00",Building Servs Tech Staff,Agency Staff,24-May-23,2324/03,LGE,Y,50%
10057528,PRECISION RESOURCE GROUP LTD T/A PANORAM,"2,700.00",Building Servs Tech Staff,Agency Staff,24-May-23,2324/03,LGE,Y,50%
10057602,PRECISION RESOURCE GROUP LTD T/A PANORAM,"2,250.00",HRA Strategic Property,Agency Staff,07-Jun-23,2324/03,LGE,Y,50%
10057639,PRECISION RESOURCE GROUP LTD T/A PANORAM,"1,500.00",Building Servs Tech Staff,Agency Staff,07-Jun-23,2324/03,LGE,Y,50%
10057640,PRECISION RESOURCE GROUP LTD T/A PANORAM,"2,100.00",Building Servs Tech Staff,Agency Staff,07-Jun-23,2324/03,LGE,Y,50%
10057791,PRECISION RESOURCE GROUP LTD T/A PANORAM,"2,812.50",Building Services Compliance,Agency Staff,14-Jun-23,2324/03,LGE,Y,50%
10057906,PRECISION RESOURCE GROUP LTD T/A PANORAM,"1,875.00",Building Servs Tech Staff,Agency Staff,14-Jun-23,2324/03,LGE,Y,50%
10057907,PRECISION RESOURCE GROUP LTD T/A PANORAM,"2,700.00",Building Servs Tech Staff,Agency Staff,14-Jun-23,2324/03,LGE,Y,50%
10057936,PRECISION RESOURCE GROUP LTD T/A PANORAM,"2,812.50",Building Services Compliance,Agency Staff,21-Jun-23,2324/03,LGE,Y,50%
10058016,PRECISION RESOURCE GROUP LTD T/A PANORAM,"1,875.00",Building Servs Tech Staff,Agency Staff,21-Jun-23,2324/03,LGE,Y,50%
10058017,PRECISION RESOURCE GROUP LTD T/A PANORAM,"2,700.00",Building Servs Tech Staff,Agency Staff,21-Jun-23,2324/03,LGE,Y,50%
10057538,CUTLERS WOOD LTD,750,Guaranteed Rent Scheme,Rent Payable,05-Jun-23,2324/03,SME,N,
10057870,CREATIVE VEHICLE WRAPPING LIMITED,"2,495.00",Rplcmt Ref Freighters-Jnt Schm,Plant & Vehicle - Purchase,16-Jun-23,2324/03,SME,N,
10057540,HOME TO RENT LTD,975,Guaranteed Rent Scheme,Rent Payable,05-Jun-23,2324/03,SME,N,
10057539,PRIVATE LANDLORD,"1,000.00",Guaranteed Rent Scheme,Rent Payable,05-Jun-23,2324/03,ST,N,
10057781,SDP ELECTRICAL,260,Guaranteed Rent Scheme,Misc Supplies & Services Costs,14-Jun-23,2324/03,ST,N,
10057406,MORE IQ LIMITED,"3,200.00",Building Services,Prof & Consultancy Fees,01-Jun-23,2324/03,SME,Y,50%
10057685,HIREBASE (HUWS GRAY LTD),324.3,Open Spaces,"Equipment, Tools & Materials",31-May-23,2324/03,LGE,N,
20028540,SEFE ENERGY LIMITED,189.63,Belle Vue House,Gas,18-May-23,2324/03,LGE,N,
20028540,SEFE ENERGY LIMITED,61.82,HQ Energy,Gas,18-May-23,2324/03,LGE,N,
20028540,SEFE ENERGY LIMITED,"4,089.69",Sheltered Accommodation,Gas,18-May-23,2324/03,LGE,N,
20028540,SEFE ENERGY LIMITED,390.42,Temporary Accommodation,Gas,18-May-23,2324/03,LGE,N,
20028552,SEFE ENERGY LIMITED,153.04,Belle Vue House,Gas,16-Jun-23,2324/03,LGE,N,
20028552,SEFE ENERGY LIMITED,63.88,HQ Energy,Gas,16-Jun-23,2324/03,LGE,N,
20028552,SEFE ENERGY LIMITED,"3,240.22",Sheltered Accommodation,Gas,16-Jun-23,2324/03,LGE,N,
20028552,SEFE ENERGY LIMITED,186.43,Temporary Accommodation,Gas,16-Jun-23,2324/03,LGE,N,
10057938,ALL STAR TRAINING,595,Organisational Devt,Health & Safety Training,21-Jun-23,2324/03,SME,Y,50%
10056487,MERISTEM DESIGN LTD,"2,974.70",Assets & Development,Misc Supplies & Services Costs,25-Apr-23,2324/03,SME,Y,50%
10057517,LAC SERVICES (EAST ANGLIA) LTD,"1,468.84",Sheltered Accommodation,Fire Prevention,31-May-23,2324/03,SME,N,
10057574,PRINCIPLE CONSTRUCTION & MAINTENANCE LTD,"8,210.53",Council House Adaptions,Improvements,06-Jun-23,2324/03,SME,N,
10057396,LAW MORGAN LTD T/A MORGAN LAW,"3,025.00",ICT - Finance System,Agency Staff,01-Jun-23,2324/03,SME,N,
10057397,LAW MORGAN LTD T/A MORGAN LAW,"4,024.30",Financial Servs,Agency Staff,01-Jun-23,2324/03,SME,Y,50%
10057398,LAW MORGAN LTD T/A MORGAN LAW,"2,300.00",Commissioning & Procurement,Agency Staff,01-Jun-23,2324/03,SME,Y,50%
10057627,LAW MORGAN LTD T/A MORGAN LAW,"1,840.00",Commissioning & Procurement,Agency Staff,08-Jun-23,2324/03,SME,Y,50%
10057629,LAW MORGAN LTD T/A MORGAN LAW,"2,420.00",ICT - Finance System,Agency Staff,08-Jun-23,2324/03,SME,Y,50%
10057631,LAW MORGAN LTD T/A MORGAN LAW,"3,219.44",Financial Servs,Agency Staff,08-Jun-23,2324/03,SME,Y,50%
10057813,LAW MORGAN LTD T/A MORGAN LAW,"4,024.30",Financial Servs,Agency Staff,15-Jun-23,2324/03,SME,Y,50%
10057814,LAW MORGAN LTD T/A MORGAN LAW,"2,300.00",Commissioning & Procurement,Agency Staff,15-Jun-23,2324/03,SME,Y,50%
10057815,LAW MORGAN LTD T/A MORGAN LAW,"3,025.00",ICT - Finance System,Agency Staff,15-Jun-23,2324/03,SME,Y,50%
10057963,LAW MORGAN LTD T/A MORGAN LAW,"4,024.30",Financial Servs,Agency Staff,22-Jun-23,2324/03,SME,Y,50%
10057964,LAW MORGAN LTD T/A MORGAN LAW,"3,025.00",ICT - Finance System,Agency Staff,22-Jun-23,2324/03,SME,Y,50%
10057965,LAW MORGAN LTD T/A MORGAN LAW,"2,300.00",Commissioning & Procurement,Agency Staff,22-Jun-23,2324/03,SME,Y,50%
10057308,THE GREAT WHITE HORSE HOTEL,350,Homelessness Private Sector,B&B Costs,28-May-23,2324/03,SME,N,
10057809,BIG YELLOW SELF STORAGE COMPANY LTD,365.53,Homeless Prevention Fund,Removal Expenses,10-May-23,2324/03,LGE,N,
10057894,APEX ROOFERS LTD,"1,350.00",Building Services,Repairs,20-Jun-23,2324/03,SME,N,
10057260,LINKFIELD LTD T/A PROVEEDA,829.32,Open Spaces,Plant & Vehicle - Other costs,25-May-23,2324/03,SME,N,
20028537,SWITCH PROPERTY SERVICES LTD,789,Homes for Ukraine,Rent Payable,07-Jun-23,2324/03,SME,N,
20028537,SWITCH PROPERTY SERVICES LTD,750,Homes for Ukraine,Misc Supplies & Services Costs,07-Jun-23,2324/03,SME,N,
10057588,RMK PLUMBING & HEATING,"5,895.00",Mand Disabled Facilities Grant,Grants,06-Jun-23,2324/03,SME,N,
10057766,PRIVATE LANDLORD,850,Homeless Prevention Fund,Misc Supplies & Services Costs,13-Jun-23,2324/03,ST,N,
20028554,SHELTERED HOUSING RENTALS LTD,750,Guaranteed Rent Scheme,Misc Supplies & Services Costs,22-Jun-23,2324/03,SME,N,
10057349,AARON SERVICES LTD,-225,Building Services,Payments to Tenants,26-May-23,2324/03,SME,N,
10057835,AARON SERVICES LTD,-50,Planned Maint - Heating,Property Servicing,14-Jun-23,2324/03,SME,N,
10057689,ADVANCE SUPPLIES,-7.43,Sheltered Accommodation,Cleaning Materials,02-Jun-23,2324/03,SME,N,
20028551,NORTHERN HOUSING CONSORTIUM,-261.45,HRA Strategic Property,Subscriptions,31-Mar-23,2324/03,SME,N,
20028539,THE STOWMARKET GLASS COMPANY LTD,-0.18,Building Services,Repairs,12-Jun-23,2324/03,SME,N,
1124,ANGLIA COMMERCIAL FLOORING LTD,"-1,088.64",Voids Maintenance,Repairs,12-Jun-23,2324/03,SME,N,
10057280,TIAA LTD,"-4,506.38",Internal Audit,Contracted Services,26-May-23,2324/03,SME,Y,50%
EBX0048976,ELLISONS SOLICITORS,26.8,Current Assets,LLOYDS GENERAL PAYMENTS,27-Jun-23,2324/03,SME,N,
